Workbook

Sheet License
A3: This workbook is shared under the Creative Commons Attribution 4.0 International License (CC BY 4.0)
A5: You are free to:
A6: * Share - copy and redistribute the material in any medium or format
A7: * Adapt - remix, transform, and build upon the material for any purpose, even commercially.
A9: The licensor cannot revoke these freedoms as long as you follow the license terms.
A11: Under the following terms:
A12: Attribution - You must give appropriate credit, provide a link to the license, and indicate if changes were made. You may do so in any reasonable manner, but not in any way that suggests the licensor endorses you or your use.
A13: No additional restrictions - You may not apply legal terms or technological measures that legally restrict others from doing anything the license permits.

Sheet Control
A1: PSA controls
A3: PSA iterations | B3: 1000
B5: =IF(PSA_Iterations<>1000,"Warning: You will need to adjust the calculation columns on the sheet PSA if you change the number of PSA iterations","") -> 

Sheet Results
A1: =IF(PSA,"Live PSA sample results","Deterministic results") -> Deterministic results
A3: 20-node Gaussian quadrature
A5: Arm | B5: Discounted QALYs | D5: Discounted costs | F5: NMB
B6: Absolute | C6: Incremental | D6: Absolute | E6: Incremental | F6: Absolute | G6: Incremental
A7: Control | B7: =Model!$B$12 -> 1.677847001 | D7: =Model!$B$18 -> 8436.79663 | F7: =$B7*threshold-$D7 -> 25120.14339
A8: Treatment | B8: =Model!$C$12 -> 1.871009089 | C8: =B8-B7 -> 0.1931620882 | D8: =Model!$C$18 -> 8529.248631 | E8: =D8-D7 -> 92.45200123 | F8: =$B8*threshold-$D8 -> 28890.93315 | G8: =F8-F7 -> 3770.789763
A11: 30-node Gaussian quadrature
A13: Arm | B13: Discounted QALYs | D13: Discounted costs | F13: NMB
B14: Absolute | C14: Incremental | D14: Absolute | E14: Incremental | F14: Absolute | G14: Incremental
A15: Control | B15: =Model!$B$29 -> 1.677798718 | D15: =Model!$B$35 -> 8436.80087 | F15: =$B15*threshold-$D15 -> 25119.17348
A16: Treatment | B16: =Model!$C$29 -> 1.871373643 | C16: =B16-B15 -> 0.1935749254 | D16: =Model!$C$35 -> 8528.888088 | E16: =D16-D15 -> 92.08721805 | F16: =$B16*threshold-$D16 -> 28898.58477 | G16: =F16-F15 -> 3779.411291
A19: PSA results [Mean (95% CrI)]
A21: Arm | B21: Discounted QALYs | D21: Discounted costs | F21: NMB
B22: Absolute | C22: Incremental | D22: Absolute | E22: Incremental | F22: Absolute | G22: Incremental
A23: Control | B23: =CONCATENATE(TEXT(PSA!$V$5,"0.00"), " (",TEXT(PSA!$V$7,"0.00")," to ",TEXT(PSA!$V$8,"0.00"),")") -> 1.72 (0.77 to 3.28) | D23: =CONCATENATE(TEXT(PSA!$T$5,"£#,##0"), " (",TEXT(PSA!$T$7,"£#,##0")," to ",TEXT(PSA!$T$8,"£#,##0"),")") -> £8,707 (£4,238 to £15,007) | F23: =CONCATENATE(TEXT(PSA!$Z$5,"£#,##0"), " (",TEXT(PSA!$Z$7,"£#,##0")," to ",TEXT(PSA!$Z$8,"£#,##0"),")") -> £25,699 (£6,150 to £55,885)
A24: Treatment | B24: =CONCATENATE(TEXT(PSA!$W$5,"0.00"), " (",TEXT(PSA!$W$7,"0.00")," to ",TEXT(PSA!$W$8,"0.00"),")") -> 1.95 (0.85 to 3.82) | C24: =CONCATENATE(TEXT(PSA!$Y$5,"0.00"), " (",TEXT(PSA!$Y$7,"0.00")," to ",TEXT(PSA!$Y$8,"0.00"),")") -> 0.23 (-0.03 to 1.01) | D24: =CONCATENATE(TEXT(PSA!$U$5,"£#,##0"), " (",TEXT(PSA!$U$7,"£#,##0")," to ",TEXT(PSA!$U$8,"£#,##0"),")") -> £8,799 (£4,367 to £14,707) | E24: =CONCATENATE(TEXT(PSA!$X$5,"£#,##0"), " (",TEXT(PSA!$X$7,"£#,##0")," to ",TEXT(PSA!$X$8,"£#,##0"),")") -> £92 (-£1,022 to £1,493) | F24: =CONCATENATE(TEXT(PSA!$AA$5,"£#,##0"), " (",TEXT(PSA!$AA$7,"£#,##0")," to ",TEXT(PSA!$AA$8,"£#,##0"),")") -> £30,253 (£7,609 to £66,667) | G24: =CONCATENATE(TEXT(PSA!$AB$5,"£#,##0"), " (",TEXT(PSA!$AB$7,"£#,##0")," to ",TEXT(PSA!$AB$8,"£#,##0"),")") -> £4,554 (-£624 to £20,676)
A26: =CONCATENATE("At a threshold of ",TEXT(threshold,"£#,##0")," per QALY, Treatment has a ",TEXT(PSA!$AD$5,"0%")," probability of being cost-effective") -> At a threshold of £20,000 per QALY, Treatment has a 94% probability of being cost-effective

Sheet Parameters
A1: Parameter | B1: Description | C1: Live value | D1: Base case value | E1: PSA value | F1: PSA distribution
A2: Setup
A3: discount_rate | B3: (Continuous) discount rate | C3: =LN(1.035) -> 0.03440142672
A4: threshold | B4: Cost-effectiveness threshold | C4: 20000
A5: Time-to-event (progression)
A6: lambda_control | B6: Weibull scale parameter (control) | C6: =IF(PSA,$E6,$D6) -> 1.5 | D6: 1.5 | E6: =_xlfn.GAMMA.INV(RAND(),2,0.75) -> 0.6621771461 | F6: Γ(0.75, 2)
A7: hr_treatment | B7: Hazard ratio | C7: =IF(PSA,$E7,$D7) -> 0.56 | D7: 0.56 | E7: =_xlfn.GAMMA.INV(RAND(),8,0.07) -> 0.4708318178 | F7: Γ(0.07, 8)
A8: lambda_treatment | B8: Weibull scale parameter (treatment) | C8: =lambda_control*POWER(hr_treatment,-1/k_1) -> 2.004459314
A9: k_1 | B9: Weibull shape parameter | C9: 2 | D9: 2 | E9: =_xlfn.GAMMA.INV(RAND(),5,0.4) -> 1.493316997 | F9: Γ(0.4, 5)
A10: Time-to-event (death from stable disease)
A11: alpha_2 | B11: Gompertz shape parameter | C11: 0.4 | D11: 0.4 | E11: =_xlfn.GAMMA.INV(RAND(),4,0.1) -> 0.1575139113 | F11: Γ(0.1, 4)
A12: beta_2 | B12: Gompertz rate parameter | C12: 0.1 | D12: 0.1 | E12: =_xlfn.GAMMA.INV(RAND(),1,0.1) -> 0.06917903922 | F12: Γ(0.1, 1)
A13: Time-to-event (post-progression survival)
A14: mu_3 | B14: Log-normal location parameter | C14: 0 | D14: 0 | E14: =_xlfn.NORM.INV(RAND(),0,0.2) -> -0.07077984479 | F14: N(0, 0.2)
A15: sigma_3 | B15: Log-normal scale parameter | C15: 1 | D15: 1 | E15: =_xlfn.GAMMA.INV(RAND(),2,0.5) -> 0.5810940554 | F15: Γ(0.5, 2)
A16: Utility
A17: u_0 | B17: Baseline utility intercept | C17: 0.95 | D17: 0.95 | E17: =_xlfn.BETA.INV(RAND(),95,5) -> 0.9631269333 | F17: Beta(95, 5)
A18: u_1 | B18: Baseline utility linear coefficient | C18: -0.002 | D18: -0.002 | E18: =-_xlfn.BETA.INV(RAND(),2,998) -> -0.0007057227557 | F18: -Beta(2, 998)
A19: u_2 | B19: Baseline utility quadratic coefficient | C19: -0.0005 | D19: -0.0005 | E19: =-_xlfn.BETA.INV(RAND(),5,9995) -> -0.0007832924889 | F19: -Beta(5, 9995)
A20: v_sd | B20: Utility multiplier for stable disease | C20: 0.9 | D20: 0.9 | E20: =_xlfn.BETA.INV(RAND(),90,10) -> 0.9072523577 | F20: Beta(90, 10)
A21: v_pd | B21: Utility multiplier for progressive disease | C21: 0.6 | D21: 0.6 | E21: =_xlfn.BETA.INV(RAND(),60,40) -> 0.5253100111 | F21: Beta(60, 40)
A22: Costs
A23: c_treatment | B23: Stable disease in treatment arm (per year) | C23: 480 | D23: 480 | E23: =_xlfn.GAMMA.INV(RAND(),4,120) -> 434.2400056 | F23: Γ(120, 4)
A24: c_control | B24: Stable disease in control arm (per year) | C24: 200 | D24: 200 | E24: =_xlfn.GAMMA.INV(RAND(),4,50) -> 302.5728768 | F24: Γ(50, 4)
A25: c_pd | B25: Progressive disease (per year) | C25: 1000 | D25: 1000 | E25: =_xlfn.GAMMA.INV(RAND(),5,200) -> 1033.869621 | F25: Γ(200, 5)
A26: c_progression | B26: Cost of progression (one-off) | C26: 3000 | D26: 3000 | E26: =_xlfn.GAMMA.INV(RAND(),5,600) -> 2008.844636 | F26: Γ(600, 5)
A27: c_death | B27: Cost of death (one-off) | C27: 5000 | D27: 5000 | E27: =_xlfn.GAMMA.INV(RAND(),5,1000) -> 7676.280633 | F27: Γ(1000, 5)

Sheet Model
A1: Arm | B1: Control | C1: Treatment
A2: 20-node Gaussian quadrature
A3: Discounted life years
A4: Stable disease | B4: =(1-(Quadrature!$B$4*Quadrature!$B$5+(1-Quadrature!$B$4)*Quadrature!$B$6))/discount_rate -> 1.161707169 | C4: =(1-(Quadrature!$E$4*Quadrature!$E$5+(1-Quadrature!$E$4)*Quadrature!$E$6))/discount_rate -> 1.470536458
A5: Progressive disease | B5: =Quadrature!$B$4*Quadrature!$B$5*(1-Quadrature!$B$7)/discount_rate -> 1.224033492 | C5: =Quadrature!$E$4*Quadrature!$E$5*(1-Quadrature!$E$7)/discount_rate -> 1.106119034
A6: Total | B6: =SUM(B4:B5) -> 2.385740661 | C6: =SUM(C4:C5) -> 2.576655492
A7: Discounted QALYs
A8: Stable disease | B8: =v_sd*(Quadrature!$B$4*B9+(1-Quadrature!$B$4)*B10) -> 0.9912307727 | C8: =v_sd*(Quadrature!$E$4*C9+(1-Quadrature!$E$4)*C10) -> 1.25182926
A9: (Progresses prior to death) | B9: =(((u_0*1+u_1*0+u_2*0)*discount_rate^2+(u_1*1+2*u_2*0)*discount_rate+(2*u_2*1))-((u_0*Quadrature!$B$5+u_1*Quadrature!$C$5+u_2*Quadrature!$D$5)*discount_rate^2+(u_1*Quadrature!$B$5+2*u_2*Quadrature!$C$5)*discount_rate+(2*u_2*Quadrature!$B$5)))/discount_rate^3 -> 1.147033891 | C9: =(((u_0*1+u_1*0+u_2*0)*discount_rate^2+(u_1*1+2*u_2*0)*discount_rate+(2*u_2*1))-((u_0*Quadrature!$E$5+u_1*Quadrature!$F$5+u_2*Quadrature!$G$5)*discount_rate^2+(u_1*Quadrature!$E$5+2*u_2*Quadrature!$F$5)*discount_rate+(2*u_2*Quadrature!$E$5)))/discount_rate^3 -> 1.458599912
A10: (Dies with stable disease) | B10: =(((u_0*1+u_1*0+u_2*0)*discount_rate^2+(u_1*1+2*u_2*0)*discount_rate+(2*u_2*1))-((u_0*Quadrature!$B$6+u_1*Quadrature!$C$6+u_2*Quadrature!$D$6)*discount_rate^2+(u_1*Quadrature!$B$6+2*u_2*Quadrature!$C$6)*discount_rate+(2*u_2*Quadrature!$B$6)))/discount_rate^3 -> 0.8756179647 | C10: =(((u_0*1+u_1*0+u_2*0)*discount_rate^2+(u_1*1+2*u_2*0)*discount_rate+(2*u_2*1))-((u_0*Quadrature!$E$6+u_1*Quadrature!$F$6+u_2*Quadrature!$G$6)*discount_rate^2+(u_1*Quadrature!$E$6+2*u_2*Quadrature!$F$6)*discount_rate+(2*u_2*Quadrature!$E$6)))/discount_rate^3 -> 1.175743683
A11: Progressive disease | B11: =v_pd*Quadrature!$B$4*(((u_0*Quadrature!$B$5+u_1*Quadrature!$C$5+u_2*Quadrature!$D$5)*discount_rate^2+(u_1*Quadrature!$B$5+2*u_2*Quadrature!$C$5)*discount_rate+(2*u_2*Quadrature!$B$5))-((u_0*Quadrature!$B$8+u_1*Quadrature!$C$8+u_2*Quadrature!$D$8)*discount_rate^2+(u_1*Quadrature!$B$8+2*u_2*Quadrature!$C$8)*discount_rate+(2*u_2*Quadrature!$B$8)))/discount_rate^3 -> 0.6866162282 | C11: =v_pd*Quadrature!$E$4*(((u_0*Quadrature!$E$5+u_1*Quadrature!$F$5+u_2*Quadrature!$G$5)*discount_rate^2+(u_1*Quadrature!$E$5+2*u_2*Quadrature!$F$5)*discount_rate+(2*u_2*Quadrature!$E$5))-((u_0*Quadrature!$E$8+u_1*Quadrature!$F$8+u_2*Quadrature!$G$8)*discount_rate^2+(u_1*Quadrature!$E$8+2*u_2*Quadrature!$F$8)*discount_rate+(2*u_2*Quadrature!$E$8)))/discount_rate^3 -> 0.6191798287
A12: Total | B12: =B8+B11 -> 1.677847001 | C12: =C8+C11 -> 1.871009089
A13: Discounted costs
A14: Stable disease | B14: =B4*c_control -> 232.3414339 | C14: =C4*c_treatment -> 705.8574999
A15: Progressive disease | B15: =c_pd*B5 -> 1224.033492 | C15: =c_pd*C5 -> 1106.119034
A16: Progression | B16: =c_progression*Quadrature!$B$4*Quadrature!$B$5 -> 2390.786117 | C16: =c_progression*Quadrature!$E$4*Quadrature!$E$5 -> 2160.475222
A17: Death | B17: =c_death*(Quadrature!$B$4*Quadrature!$B$8+(1-Quadrature!$B$4)*Quadrature!$B$6) -> 4589.635587 | C17: =c_death*(Quadrature!$E$4*Quadrature!$E$8+(1-Quadrature!$E$4)*Quadrature!$E$6) -> 4556.796875
A18: Total | B18: =SUM(B14:B17) -> 8436.79663 | C18: 8529.248631
A19: 30-node Gaussian quadrature
A20: Discounted life years
A21: Stable disease | B21: =(1-(Quadrature!$H$4*Quadrature!$H$5+(1-Quadrature!$H$4)*Quadrature!$H$6))/discount_rate -> 1.161716125 | C21: =(1-(Quadrature!$K$4*Quadrature!$K$5+(1-Quadrature!$K$4)*Quadrature!$K$6))/discount_rate -> 1.468695958
A22: Progressive disease | B22: =Quadrature!$H$4*Quadrature!$H$5*(1-Quadrature!$H$7)/discount_rate -> 1.224036043 | C22: =Quadrature!$K$4*Quadrature!$K$5*(1-Quadrature!$K$7)/discount_rate -> 1.106194226
A23: Total | B23: =SUM(B21:B22) -> 2.385752168 | C23: =SUM(C21:C22) -> 2.574890185
A24: Discounted QALYs
A25: Stable disease | B25: =v_sd*(Quadrature!$H$4*B26+(1-Quadrature!$H$4)*B27) -> 0.9911634522 | C25: =v_sd*(Quadrature!$K$4*C26+(1-Quadrature!$K$4)*C27) -> 1.252137943
A26: (Progresses prior to death) | B26: =(((u_0*1+u_1*0+u_2*0)*discount_rate^2+(u_1*1+2*u_2*0)*discount_rate+(2*u_2*1))-((u_0*Quadrature!$H$5+u_1*Quadrature!$I$5+u_2*Quadrature!$J$5)*discount_rate^2+(u_1*Quadrature!$H$5+2*u_2*Quadrature!$I$5)*discount_rate+(2*u_2*Quadrature!$H$5)))/discount_rate^3 -> 1.146570256 | C26: =(((u_0*1+u_1*0+u_2*0)*discount_rate^2+(u_1*1+2*u_2*0)*discount_rate+(2*u_2*1))-((u_0*Quadrature!$K$5+u_1*Quadrature!$L$5+u_2*Quadrature!$M$5)*discount_rate^2+(u_1*Quadrature!$K$5+2*u_2*Quadrature!$L$5)*discount_rate+(2*u_2*Quadrature!$K$5)))/discount_rate^3 -> 1.459165535
A27: (Dies with stable disease) | B27: =(((u_0*1+u_1*0+u_2*0)*discount_rate^2+(u_1*1+2*u_2*0)*discount_rate+(2*u_2*1))-((u_0*Quadrature!$H$6+u_1*Quadrature!$I$6+u_2*Quadrature!$J$6)*discount_rate^2+(u_1*Quadrature!$H$6+2*u_2*Quadrature!$I$6)*discount_rate+(2*u_2*Quadrature!$H$6)))/discount_rate^3 -> 0.8798078124 | C27: =(((u_0*1+u_1*0+u_2*0)*discount_rate^2+(u_1*1+2*u_2*0)*discount_rate+(2*u_2*1))-((u_0*Quadrature!$K$6+u_1*Quadrature!$L$6+u_2*Quadrature!$M$6)*discount_rate^2+(u_1*Quadrature!$K$6+2*u_2*Quadrature!$L$6)*discount_rate+(2*u_2*Quadrature!$K$6)))/discount_rate^3 -> 1.17714332
A28: Progressive disease | B28: =v_pd*Quadrature!$H$4*(((u_0*Quadrature!$H$5+u_1*Quadrature!$I$5+u_2*Quadrature!$J$5)*discount_rate^2+(u_1*Quadrature!$H$5+2*u_2*Quadrature!$I$5)*discount_rate+(2*u_2*Quadrature!$H$5))-((u_0*Quadrature!$H$8+u_1*Quadrature!$I$8+u_2*Quadrature!$J$8)*discount_rate^2+(u_1*Quadrature!$H$8+2*u_2*Quadrature!$I$8)*discount_rate+(2*u_2*Quadrature!$H$8)))/discount_rate^3 -> 0.6866352654 | C28: =v_pd*Quadrature!$K$4*(((u_0*Quadrature!$K$5+u_1*Quadrature!$L$5+u_2*Quadrature!$M$5)*discount_rate^2+(u_1*Quadrature!$K$5+2*u_2*Quadrature!$L$5)*discount_rate+(2*u_2*Quadrature!$K$5))-((u_0*Quadrature!$K$8+u_1*Quadrature!$L$8+u_2*Quadrature!$M$8)*discount_rate^2+(u_1*Quadrature!$K$8+2*u_2*Quadrature!$L$8)*discount_rate+(2*u_2*Quadrature!$K$8)))/discount_rate^3 -> 0.6192356996
A29: Total | B29: =B25+B28 -> 1.677798718 | C29: =C25+C28 -> 1.871373643
A30: Discounted costs
A31: Stable disease | B31: =B21*c_control -> 232.3432251 | C31: =C21*c_treatment -> 704.9740601
A32: Progressive disease | B32: =c_pd*B22 -> 1224.036043 | C32: =c_pd*C22 -> 1106.194226
A33: Progression | B33: =c_progression*Quadrature!$H$4*Quadrature!$H$5 -> 2390.787994 | C33: =c_progression*Quadrature!$K$4*Quadrature!$K$5 -> 2160.619282
A34: Death | B34: =c_death*(Quadrature!$H$4*Quadrature!$H$8+(1-Quadrature!$H$4)*Quadrature!$H$6) -> 4589.633608 | C34: =c_death*(Quadrature!$K$4*Quadrature!$K$8+(1-Quadrature!$K$4)*Quadrature!$K$6) -> 4557.10052
A35: Total | B35: =SUM(B31:B34) -> 8436.80087 | C35: 8528.888088

Sheet Quadrature
B1: 20-node Gauss-Legendre quadrature | H1: 30-node Gauss-Legendre quadrature
B2: Control | E2: Treatment | H2: Control | K2: Treatment
B3: EMGF(0, -r) | C3: EMGF(1, -r) | D3: EMGF(2,-r) | E3: EMGF(0, -r) | F3: EMGF(1, -r) | G3: EMGF(2,-r) | H3: EMGF(0, -r) | I3: EMGF(1, -r) | J3: EMGF(2,-r) | K3: EMGF(0, -r) | L3: EMGF(1, -r) | M3: EMGF(2,-r)
A4: Pr(X₁<X₂) | B4: =$F$32 -> 0.8317476558 | E4: =$K$32 -> 0.7607317627 | H4: =$F$66 -> 0.8302702171 | K4: =$K$66 -> 0.7592347348
A5: X₁|X₁<X₂ | B5: =$O$32 -> 0.9581376034 | C5: =$T$32 -> 1.177094667 | D5: =$W$32 -> 1.852776471 | E5: =$Z$32 -> 0.9466653593 | F5: =$AC$32 -> 1.486496136 | G5: =$AE$32 -> 2.988416334 | H5: =$O$66 -> 0.9598433317 | I5: =$T$66 -> 1.179110843 | J5: =$W$66 -> 1.855532196 | K5: =$Z$66 -> 0.9485952028 | L5: =$AC$66 -> 1.489900878 | M5: =$AE$66 -> 2.996720187
A6: X₂|X₂<X₁ | B6: =$AG$32 -> 0.9694183529 | C6: =$AL$32 -> 0.9028699562 | D6: =$AO$32 -> 1.275839949 | E6: =$AR$32 -> 0.9581423884 | F6: =$AU$32 -> 1.202386214 | G6: =$AW$32 -> 2.256996685 | H6: =$AG$66 -> 0.960974401 | I6: =$AL$66 -> 0.8949513673 | J6: =$AO$66 -> 1.26442 | K6: =$AR$66 -> 0.952248391 | L6: =$AU$66 -> 1.195247735 | M6: =$AW$66 -> 2.244220423
A7: X₃ | B7: =$AY$32 -> 0.9471615238 | C7: =$BB$32 -> 1.43497118 | D7: =$BD$32 -> 5.288997873 | E7: =$AY$32 -> 0.9471615238 | F7: =$BB$32 -> 1.43497118 | G7: =$BD$32 -> 5.288997873 | H7: =$AY$66 -> 0.9471614552 | I7: =$BB$66 -> 1.434989182 | J7: =$BD$66 -> 5.290431636 | K7: =$AY$66 -> 0.9471614552 | L7: =$BB$66 -> 1.434989182 | M7: =$BD$66 -> 5.290431636
A8: X₁+X₃|X₁<X₂ | B8: =B5*B7 -> 0.9075110724 | C8: =B5*C7+C5*B7 -> 2.489798625 | D8: =B5*D7+2*C5*C7+D5*B7 -> 10.20066018 | E8: =E5*E7 -> 0.8966450042 | F8: =E5*F7+F5*E7 -> 2.766389452 | G8: =E5*G7+2*F5*F7+G5*E7 -> 12.10358227 | H8: =H5*H7 -> 0.9091266068 | I8: =H5*I7+I5*H7 -> 2.494173139 | J8: =H5*J7+2*I5*I7+J5*H7 -> 10.21949671 | K8: =K5*K7 -> 0.8984728126 | L8: =K5*L7+L5*K7 -> 2.772400538 | M8: =K5*M7+2*L5*L7+M5*K7 -> 12.13283921
A10: 20-node Gauss-Legendre quadrature | F10: |---- | G10: Does progression or death from stable disease occur first? | L10: ----| | O10: |---- | P10: Extended moment generating functions for time before progression if progression precedes death from stable disease | AE10: ----| | AG10: |---- | AH10: Extended moment generating functions for time before death from stable disease if precedes progression | AW10: ----| | AY10: |---- | AZ10: Extended moment generating functions for post-progression survival | BD10: ----|
B11: nodes | C11: weights | D11: (1+y)/(1-y) | F11: Pr(X_1<X_2|Control) | K11: Pr(X_1<X_2|Treatment) | O11: EMGF_{X_1|X_1<X_2,Control}(0;-r) | T11: EMGF_{X_1|X_1<X_2,Control}(1;-r) | W11: EMGF_{X_1|X_1<X_2,Control}(2;-r) | Z11: EMGF_{X_1|X_1<X_2,Treatment}(0;-r) | AC11: EMGF_{X_1|X_1<X_2,Treatment}(1;-r) | AE11: EMGF_{X_1|X_1<X_2,Treatment}(2;-r) | AG11: EMGF_{X_2|X_2<X_1,Control}(0;-r) | AL11: EMGF_{X_2|X_2<X_1,Control}(1;-r) | AO11: EMGF_{X_2|X_2<X_1,Control}(2;-r) | AR11: EMGF_{X_2|X_2<X_1,Treatment}(0;-r) | AU11: EMGF_{X_2|X_2<X_1,Treatment}(1;-r) | AW11: EMGF_{X_2|X_2<X_1,Treatment}(2;-r) | AY11: EMGF_{X_3}(0;-r) | BB11: EMGF_{X_3}(1;-r) | BD11: EMGF_{X_3}(2;-r)
A12: 1 | B12: -0.9931285992 | C12: 0.01761400714 | D12: =(1+$B12)/(1-$B12) -> 0.00344754514 | F12: =PRODUCT($G12:$I12) -> 2.662224543e-07 | G12: =IF(alpha_2*$D12<100,beta_2*EXP(alpha_2*$D12)*EXP(-beta_2/alpha_2*(EXP(alpha_2*$D12)-1)),0) -> 0.1001034561 | H12: =1-EXP(-POWER($D12/lambda_control,k_1)) -> 5.282460488e-06 | I12: =2/(1-B12)^2 -> 0.5034534879 | K12: =PRODUCT($G12,$L12,$I12) -> 1.490847477e-07 | L12: =1-EXP(-POWER($D12/lambda_treatment,k_1)) -> 2.958181311e-06 | O12: =PRODUCT($P12:$R12) -> 0.001542102222 | P12: =(EXP(-discount_rate*$D12))*(2/(1-$B12)^2) -> 0.5033937816 | Q12: =(k_1/lambda_control)*POWER($D12/lambda_control,k_1-1)*EXP(-POWER($D12/lambda_control,k_1)) -> 0.003064468381 | R12: =IF(alpha_2*$D12<20,EXP(-beta_2/alpha_2*(EXP(alpha_2*$D12)-1)),0) -> 0.9996550672 | T12: =PRODUCT($U12,$Q12:$R12) -> 5.316467019e-06 | U12: =($D12*EXP(-discount_rate*$D12))*(2/(1-$B12)^2) -> 0.001735472785 | W12: =PRODUCT($X12,$Q12:$R12) -> 1.832876003e-08 | X12: =($D12^2*EXP(-discount_rate*$D12))*(2/(1-$B12)^2) -> 5.983120766e-06 | Z12: =PRODUCT($P12,AA12,$R12) -> 0.0008635792513 | AA12: =(k_1/lambda_treatment)*POWER($D12/lambda_treatment,k_1-1)*EXP(-POWER($D12/lambda_treatment,k_1)) -> 0.001716106282 | AC12: =PRODUCT($U12,$AA12,$R12) -> 2.977228451e-06 | AE12: =PRODUCT($X12,$AA12,$R12) -> 1.026412947e-08 | AG12: =PRODUCT($P12,$AI12,$AJ12) -> 0.05039119111 | AH12: See col 16 | AI12: =IF(alpha_2*$D12<20,beta_2*EXP(alpha_2*$D12)*EXP(-beta_2/alpha_2*(EXP(alpha_2*$D12)-1)),0) -> 0.1001034561 | AJ12: =EXP(-POWER($D12/lambda_control,k_1)) -> 0.9999947175 | AL12: =PRODUCT($U12,$AI12,$AJ12) -> 0.000173725906 | AM12: See col 21 | AO12: =PRODUCT($X12,$AI12,$AJ12) -> 5.989279028e-07 | AP12: See col 24 | AR12: =PRODUCT($P12,$AI12,$AS12) -> 0.05039130823 | AS12: =EXP(-POWER($D12/lambda_treatment,k_1)) -> 0.9999970418 | AU12: =PRODUCT($U12,$AI12,$AS12) -> 0.0001737263098 | AW12: =PRODUCT($X12,$AI12,$AS12) -> 5.989292949e-07 | AY12: =PRODUCT($P12,$AZ12) -> 6.081831225e-06 | AZ12: =_xlfn.LOGNORM.DIST($D12,mu_3,sigma_3,FALSE) -> 1.208165743e-05 | BB12: =PRODUCT($U12,$AZ12) -> 2.096738768e-08 | BD12: =PRODUCT($X12,$AZ12) -> 7.228601548e-11
A13: 2 | B13: -0.9639719273 | C13: 0.0406014298 | D13: =(1+$B13)/(1-$B13) -> 0.01834449476 | F13: =PRODUCT($G13:$I13) -> 7.797279506e-06 | G13: 0.1005511736 | H13: 0.000149553477 | I13: =2/(1-B13)^2 -> 0.518512755 | K13: =PRODUCT($G13,$L13,$I13) -> 4.366620198e-06 | L13: 8.375270286e-05 | O13: =PRODUCT($P13:$R13) -> 0.008432843235 | P13: 0.5181856369 | Q13: 0.01630377891 | R13: 0.9981604976 | T13: =PRODUCT($U13,$Q13:$R13) -> 0.0001546962485 | U13: 0.009505853698 | W13: =PRODUCT($X13,$Q13:$R13) -> 2.83782452e-06 | X13: 0.0001743800833 | Z13: =PRODUCT($P13,AA13,$R13) -> 0.004722702995 | AA13: 0.009130717048 | AC13: =PRODUCT($U13,$AA13,$R13) -> 8.663560033e-05 | AE13: =PRODUCT($X13,$AA13,$R13) -> 1.589286316e-06 | AG13: =PRODUCT($P13,$AI13,$AJ13) -> 0.05209638155 | AI13: 0.1005511736 | AJ13: 0.9998504465 | AL13: =PRODUCT($U13,$AI13,$AJ13) -> 0.0009556817981 | AO13: =PRODUCT($X13,$AI13,$AJ13) -> 1.753149973e-05 | AR13: =PRODUCT($P13,$AI13,$AS13) -> 0.05209981004 | AS13: 0.9999162473 | AU13: =PRODUCT($U13,$AI13,$AS13) -> 0.0009557446921 | AW13: =PRODUCT($X13,$AI13,$AS13) -> 1.753265349e-05 | AY13: =PRODUCT($P13,$AZ13) -> 0.003804240972 | AZ13: 0.007341463564 | BB13: =PRODUCT($U13,$AZ13) -> 6.978687857e-05 | BD13: =PRODUCT($X13,$AZ13) -> 1.280205028e-06
A14: 3 | B14: -0.9122344283 | C14: 0.06267204833 | D14: 0.04589686832 | F14: 5.189069067e-05 | G14: 0.1013821314 | H14: 0.0009357941031 | I14: 0.5469501296 | K14: 2.906477193e-05 | L14: 0.0005241526338 | O14: 0.0221551278 | P14: 0.5460872217 | Q14: 0.04075903849 | R14: 0.9953786352 | T14: 0.001016850983 | U14: 0.02506369331 | W14: 4.667027567e-05 | X14: 0.001150345031 | Z14: 0.01241198353 | AA14: 0.0228344661 | AC14: 0.0005696711738 | AE14: 2.614612285e-05 | AG14: 0.05531167766 | AI14: 0.1013821314 | AJ14: 0.9990642059 | AL14: 0.002538632786 | AO14: 0.0001165152947 | AR14: 0.05533446757 | AS14: 0.9994758474 | AU14: 0.002539678772 | AW14: 0.0001165633022 | AY14: 0.04117428032 | AZ14: 0.07539872512 | BB14: 0.001889770522 | BD14: 8.67345488e-05
A15: 4 | B15: -0.8391169718 | C15: 0.08327674158 | D15: 0.08747840983 | F15: 0.0002060736055 | G15: 0.1026431961 | H15: 0.003395321564 | I15: 0.5913046459 | K15: 0.0001154875612 | L15: 0.001902802671 | O15: 0.04528029239 | P15: 0.5895278592 | Q15: 0.07749457111 | R15: 0.9911368203 | T15: 0.003961047975 | U15: 0.05157095967 | W15: 0.0003465061781 | X15: 0.004511345545 | Z15: 0.02539493842 | AA15: 0.04346195127 | AC15: 0.002221508831 | AE15: 0.0001943340599 | AG15: 0.06030556926 | AI15: 0.1026431961 | AJ15: 0.9966046784 | AL15: 0.005275435303 | AO15: 0.0004614866914 | AR15: 0.06039588311 | AS15: 0.9980971973 | AU15: 0.005283335814 | AW15: 0.0004621778156 | AY15: 0.138215455 | AZ15: 0.2344510999 | BB15: 0.01209086822 | BD15: 0.001057689925
A16: 5 | B16: -0.7463319065 | C16: 0.1019301198 | D16: 0.1452576641 | F16: 0.0006391102364 | G16: 0.1044091376 | H16: 0.009333850643 | I16: 0.6558075586 | K16: 0.0003586399762 | L16: 0.005237738002 | O16: 0.08222894958 | P16: 0.6525386161 | Q16: 0.1279127563 | R16: 0.9851552309 | T16: 0.01194438514 | U16: 0.09478623514 | W16: 0.001735013485 | X16: 0.01376842711 | Z16: 0.04623860755 | AA16: 0.07192731718 | AC16: 0.006716512126 | AE16: 0.0009756248626 | AG16: 0.06749506962 | AI16: 0.1044091376 | AJ16: 0.9906661494 | AL16: 0.009804176154 | AO16: 0.001424131727 | AR16: 0.06777414185 | AS16: 0.994762262 | AU16: 0.009844713534 | AW16: 0.001430020092 | AY16: 0.278713009 | AZ16: 0.4271210961 | BB16: 0.04048520065 | BD16: 0.005880785678
A17: 6 | B17: -0.6360536807 | C17: 0.118194532 | D17: 0.2224537762 | F17: 0.001735821682 | G17: 0.106792381 | H17: 0.02175354007 | I17: 0.7471966174 | K17: 0.0009767614365 | L17: 0.01224089967 | O17: 0.1401338311 | P17: 0.7415003493 | Q17: 0.1934352169 | R17: 0.9770034346 | T17: 0.03117329989 | U17: 0.1649495527 | W17: 0.006934618276 | X17: 0.03669365088 | Z17: 0.07923804955 | AA17: 0.1093770804 | AC17: 0.01762680334 | AE17: 0.003921148964 | AG17: 0.0774639992 | AI17: 0.106792381 | AJ17: 0.9782464599 | AL17: 0.01723215914 | AO17: 0.003833358871 | AR17: 0.07821727273 | AS17: 0.9877591003 | AU17: 0.01739972768 | AW17: 0.003870635126 | AY17: 0.4297546729 | AZ17: 0.5795744712 | BB17: 0.0956005498 | BD17: 0.02126670331
A18: 7 | B18: -0.510867002 | C18: 0.1316886384 | D18: 0.323743253 | F18: 0.004384797643 | G18: 0.1099585501 | H18: 0.04551379275 | I18: 0.8761480999 | K18: 0.002480626089 | L18: 0.02574866867 | O18: 0.2299045615 | P18: 0.8664443738 | Q18: 0.2746741953 | R18: 0.9660265025 | T18: 0.0744300506 | U18: 0.2805055201 | W18: 0.0240962267 | X18: 0.09081176956 | Z18: 0.1314125873 | AA18: 0.1570027425 | AC18: 0.0425439385 | AE18: 0.01377331304 | AG18: 0.09093673299 | AI18: 0.1099585501 | AJ18: 0.9544862072 | AL18: 0.02944015375 | AO18: 0.009531051145 | AR18: 0.09281981501 | AS18: 0.9742513313 | AU18: 0.03004978885 | AW18: 0.009728416395 | AY18: 0.565263719 | AZ18: 0.652394702 | BB18: 0.1830003152 | BD18: 0.05924511734
A19: 8 | B19: -0.3737060887 | C19: 0.1420961093 | D19: 0.4559155095 | F19: 0.01067585433 | G19: 0.1141510984 | H19: 0.08824298592 | I19: 1.059844985 | K19: 0.006099739205 | L19: 0.05041837255 | O19: 0.3667087121 | P19: 1.043351902 | Q19: 0.3694970343 | R19: 0.9512166834 | T19: 0.1671881893 | U19: 0.475680314 | W19: 0.0762236885 | X19: 0.2168700327 | Z19: 0.213876193 | AA19: 0.2155024313 | AC19: 0.09750947351 | AE19: 0.04445608129 | AG19: 0.1085900467 | AI19: 0.1141510984 | AJ19: 0.9117570141 | AL19: 0.04950788646 | AO19: 0.02257141328 | AR19: 0.1130949493 | AS19: 0.9495816274 | AU19: 0.05156174142 | AW19: 0.02350779761 | AY19: 0.6706443254 | AZ19: 0.6427786484 | BB19: 0.3057571493 | BD19: 0.1393994265
A20: 9 | B20: -0.2277858511 | C20: 0.1491729865 | D20: 0.6289485647 | F20: 0.02561038919 | G20: 0.1197295981 | H20: 0.1612240796 | I20: 1.326736713 | K20: 0.01489423839 | L20: 0.09376311537 | O20: 0.5668113865 | P20: 1.298338799 | Q20: 0.4689305878 | R20: 0.9309834667 | T20: 0.356495208 | U20: 0.816588324 | W20: 0.2242171494 | X20: 0.5135920543 | Z20: 0.34294334 | AA20: 0.2837215797 | AC20: 0.2156937215 | AE20: 0.1356602565 | AG20: 0.1303873667 | AI20: 0.1197295981 | AJ20: 0.8387759204 | AL20: 0.08200694717 | AO20: 0.05157815172 | AR20: 0.1408741455 | AS20: 0.9062368846 | AU20: 0.0886025916 | AW20: 0.05572647282 | AY20: 0.7395904676 | AZ20: 0.5696436618 | BB20: 0.4651643631 | BD20: 0.2925644585
A21: 10 | B21: -0.07652652113 | C21: 0.1527533871 | D21: 0.8578269655 | F21: 0.06124739888 | G21: 0.1272257037 | H21: 0.2789537853 | I21: 1.725760517 | K21: 0.03674487531 | L21: 0.1673560387 | O21: 0.8316289923 | P21: 1.675576627 | Q21: 0.5498070101 | R21: 0.9027241369 | T21: 0.7133937748 | U21: 1.437354814 | W21: 0.611968417 | X21: 1.233001718 | Z21: 0.5377914381 | AA21: 0.355544967 | AC21: 0.4613319974 | AE21: 0.3957430274 | AG21: 0.1537100475 | AI21: 0.1272257037 | AJ21: 0.7210462147 | AL21: 0.1318566236 | AO21: 0.1131101673 | AR21: 0.1775000551 | AS21: 0.8326439613 | AU21: 0.1522643336 | AW21: 0.1306164513 | AY21: 0.7701370046 | AZ21: 0.4596250581 | BB21: 0.6606442896 | BD21: 0.5667184862
A22: 11 | B22: 0.07652652113 | C22: 0.1527533871 | D22: 1.165736262 | F22: 0.1460956011 | G22: 0.137406762 | H22: 0.4533648998 | I22: 2.345206778 | K22: 0.09247381456 | L22: 0.2869653937 | O22: 1.100041088 | P22: 2.253017853 | Q22: 0.5664287629 | R22: 0.8619835446 | T22: 1.282357785 | U22: 2.62642461 | W22: 1.494890971 | X22: 3.061718407 | Z22: 0.8035446746 | AA22: 0.4137580143 | AC22: 0.9367211652 | AE22: 1.091969829 | AG22: 0.169227233 | AI22: 0.137406762 | AJ22: 0.5466351002 | AL22: 0.197274322 | AO22: 0.2299698307 | AR22: 0.2207411735 | AS22: 0.7130346063 | AU22: 0.2573259904 | AW22: 0.2999742381 | AY22: 0.7620223668 | AZ22: 0.3382229598 | BB22: 0.8883171053 | BD22: 1.035543462
A23: 12 | B23: 0.2277858511 | C23: 0.1491729865 | D23: 1.589955135 | F23: 0.3423504789 | G23: 0.1512498625 | H23: 0.6748720856 | I23: 3.3539338 | K23: 0.2368862772 | L23: 0.4669715564 | O23: 1.168363813 | P23: 3.175411406 | Q23: 0.4595011528 | R23: 0.8007399412 | T23: 1.857646044 | U23: 5.04876167 | W23: 2.953573867 | X23: 8.027304541 | Z23: 1.072660408 | AA23: 0.4218623414 | AC23: 1.705481923 | AE23: 2.711639741 | AG23: 0.1561526098 | AI23: 0.1512498625 | AJ23: 0.3251279144 | AL23: 0.2482756437 | AO23: 0.3947471346 | AR23: 0.2560031879 | AS23: 0.5330284436 | AU23: 0.4070335831 | AW23: 0.6471651354 | AY23: 0.7155393641 | AZ23: 0.2253375304 | BB23: 1.137675486 | BD23: 1.808852981
A24: 13 | B24: 0.3737060887 | C24: 0.1420961093 | D24: 2.193388861 | F24: 0.7612781761 | G24: 0.1692526514 | H24: 0.8821334335 | I24: 5.098866209 | K24: 0.6023885602 | L24: 0.6980196013 | O24: 0.7648251712 | P24: 4.728284713 | Q24: 0.229801968 | R24: 0.7038900226 | T24: 1.677559011 | U24: 10.37096702 | W24: 3.679539248 | X24: 22.74756354 | Z24: 1.0973327 | AA24: 0.3297083093 | AC24: 2.406877322 | AE24: 5.279217907 | AG24: 0.09432563401 | AI24: 0.1692526514 | AJ24: 0.1178665665 | AL24: 0.206892795 | AO24: 0.4537963519 | AR24: 0.2416672804 | AS24: 0.3019803987 | AU24: 0.5300703208 | AW24: 1.162650337 | AY24: 0.6317333356 | AZ24: 0.1336072961 | BB24: 1.385636861 | BD24: 3.039240457
A25: 14 | B25: 0.510867002 | C25: 0.1316886384 | D25: 3.088867461 | F25: 1.539997191 | G25: 0.1869146745 | H25: 0.9855994642 | I25: 8.359418558 | K25: 1.417115706 | L25: 0.9069552133 | O25: 0.1614748445 | P25: 7.516701614 | Q25: 0.03953897466 | R25: 0.543315583 | T25: 0.4987743929 | U25: 23.21809503 | W25: 1.540647993 | X25: 71.71761826 | Z25: 0.5842601895 | AA25: 0.1430628338 | AC25: 1.804702288 | AE25: 5.574486175 | AG25: 0.02023249124 | AI25: 0.1869146745 | AJ25: 0.01440053581 | AL25: 0.06249548386 | AO25: 0.1930402666 | AR25: 0.1307262353 | AS25: 0.09304478675 | AU25: 0.4037960145 | AW25: 1.24727237 | AY25: 0.5139716785 | AZ25: 0.06837728899 | BB25: 1.587590394 | BD25: 4.903856309
A26: 15 | B26: 0.6360536807 | C26: 0.118194532 | D26: 4.495315914 | F26: 2.58695028 | G26: 0.1713512836 | H26: 0.9998742574 | I26: 15.0992485 | K26: 2.570349667 | L26: 0.993458005 | O26: 0.001844399343 | P26: 12.93581335 | Q26: 0.0005024469504 | R26: 0.2837729558 | T26: 0.008291157718 | U26: 58.15056759 | W26: 0.03727137323 | X26: 261.4051719 | Z26: 0.05373666099 | AA26: 0.01463881536 | AC26: 0.2415632673 | AE26: 1.0859032 | AG26: 0.0002787171047 | AI26: 0.1713512836 | AJ26: 0.0001257426241 | AL26: 0.001252921436 | AO26: 0.00563227767 | AR26: 0.01450077832 | AS26: 0.006541995045 | AU26: 0.06518557954 | AW26: 0.2930297731 | AY26: 0.3710073835 | AZ26: 0.02868063828 | BB26: 1.667795395 | BD26: 7.49726718
A27: 16 | B27: 0.7463319065 | C27: 0.1019301198 | D27: 6.884318331 | F27: 1.236747681 | G27: 0.03979081177 | H27: 0.9999999993 | I27: 31.08123778 | K27: 1.236738361 | L27: 0.9999924639 | O27: 2.70557108e-09 | P27: 24.52698592 | Q27: 4.35271821e-09 | R27: 0.02534277769 | T27: 1.862601259e-08 | U27: 168.8515788 | W27: 1.282273999e-07 | X27: 1162.428019 | Z27: 1.605255023e-05 | AA27: 2.582531585e-05 | AC27: 0.0001105108658 | AE27: 0.0007607919794 | AG27: 6.941912126e-10 | AI27: 0.03979081177 | AJ27: 7.112988898e-10 | AL27: 4.77903329e-09 | AO27: 3.290038649e-08 | AR27: 7.354889873e-06 | AS27: 7.536144086e-06 | AU27: 5.063340318e-05 | AW27: 0.0003485764657 | AY27: 0.2210412441 | AZ27: 0.009012165001 | BB27: 1.521718289 | BD27: 10.47599311
A28: 17 | B28: 0.8391169718 | C28: 0.08327674158 | D28: 11.43139207 | F28: 2.974681716e-08 | G28: 3.849736214e-10 | H28: 1 | I28: 77.26975435 | K28: 2.974681716e-08 | L28: 1 | O28: 1.260580612e-33 | P28: 52.14594419 | Q28: 6.077924673e-25 | R28: 3.977358836e-11 | T28: 1.441019121e-32 | U28: 596.1007326 | W28: 1.647285455e-31 | X28: 6814.261185 | Z28: 8.850398292e-23 | AA28: 4.267244285e-14 | AC28: 1.011723728e-21 | AE28: 1.15654106e-20 | AG28: 1.200771091e-33 | AI28: 3.849736214e-10 | AJ28: 5.981480836e-26 | AL28: 1.372648512e-32 | AO28: 1.569128331e-31 | AR28: 1.50544325e-22 | AS28: 7.499164508e-15 | AU28: 1.720931202e-21 | AW28: 1.967263929e-20 | AY28: 0.09355663002 | AZ28: 0.001794130521 | BB28: 1.069482518 | BD28: 12.22567397
A29: 18 | B29: 0.9122344283 | C29: 0.06267204833 | D29: 21.78797893 | F29: 0 | G29: 0 | H29: 1 | I29: 259.6459919 | K29: 0 | L29: 1 | O29: 0 | P29: 122.7048126 | Q29: 4.544503101e-91 | R29: 0 | T29: 0 | U29: 2673.489871 | W29: 0 | X29: 58249.94098 | Z29: 0 | AA29: 5.280666737e-51 | AC29: 0 | AE29: 0 | AG29: 0 | AI29: 0 | AJ29: 2.34650768e-92 | AL29: 0 | AO29: 0 | AR29: 0 | AS29: 4.868961144e-52 | AU29: 0 | AW29: 0 | AY29: 0.01948909648 | AZ29: 0.0001588291125 | BB29: 0.4246280236 | BD29: 9.251786432
A30: 19 | B30: 0.9639719273 | C30: 0.0406014298 | D30: 54.51226721 | F30: 0 | G30: 0 | H30: 1 | I30: 1540.805905 | K30: 0 | L30: 1 | O30: 0 | P30: 236.2194175 | Q30: 0 | R30: 0 | T30: 0 | U30: 12876.856 | W30: 0 | X30: 701946.6154 | Z30: 0 | AA30: 0 | AC30: 0 | AE30: 0 | AG30: 0 | AI30: 0 | AJ30: 0 | AL30: 0 | AO30: 0 | AR30: 0 | AS30: 0 | AU30: 0 | AW30: 0 | AY30: 0.0005835925669 | AZ30: 2.4705529e-06 | BB30: 0.03181295395 | BD30: 1.734196246
A31: 20 | B31: 0.9931285992 | C31: 0.01761400714 | D31: 290.0614668 | F31: 0 | G31: 0 | H31: 1 | I31: 42358.38872 | K31: 0 | L31: 1 | O31: 0 | P31: 1.964805913 | Q31: 0 | R31: 0 | T31: 0 | U31: 569.914485 | W31: 0 | X31: 165310.2315 | Z31: 0 | AA31: 0 | AC31: 0 | AE31: 0 | AG31: 0 | AI31: 0 | AJ31: 0 | AL31: 0 | AO31: 0 | AR31: 0 | AS31: 0 | AU31: 0 | AW31: 0 | AY31: 2.821409319e-10 | AZ31: 1.435973548e-10 | BB31: 8.183821253e-08 | BD31: 2.373811197e-05
F32: =SUMPRODUCT($C$12:$C$31,F$12:F$31) -> 0.8317476558 | G32: f_{X_2}((1+y)/(1-y)) | H32: F_{X_1}((1+y)/(1-y)) | I32: 2/(1-y)^2 | K32: =SUMPRODUCT($C$12:$C$31,K$12:K$31) -> 0.7607317627 | L32: F_{X_1}((1+y)/(1-y)) | O32: =SUMPRODUCT($C$12:$C$31,O$12:O$31) / $F32 -> 0.9581376034 | P32: e^(-r(1+y)/(1-y)) * 2/(1-y)^2 | Q32: f_{X_1}((1+y)/(1-y)) | R32: 1-F_{X_2}((1+y)/(1-y)) | T32: =SUMPRODUCT($C$12:$C$31,T$12:T$31) / $F32 -> 1.177094667 | U32: (1+y)/(1-y)*e^(-r(1+y)/(1-y)) * 2/(1-y)^2 | W32: =SUMPRODUCT($C$12:$C$31,W$12:W$31) / $F32 -> 1.852776471 | X32: ((1+y)/(1-y))^2*e^(-r(1+y)/(1-y)) * 2/(1-y)^2 | Z32: =SUMPRODUCT($C$12:$C$31,Z$12:Z$31) / $K32 -> 0.9466653593 | AA32: f_{X_1}((1+y)/(1-y)) | AC32: =SUMPRODUCT($C$12:$C$31,AC$12:AC$31) / $K32 -> 1.486496136 | AE32: =SUMPRODUCT($C$12:$C$31,AE$12:AE$31) / $K32 -> 2.988416334 | AG32: =SUMPRODUCT($C$12:$C$31,AG$12:AG$31) / (1-$F32) -> 0.9694183529 | AH32: e^(-r(1+y)/(1-y)) * 2/(1-y)^2 | AI32: f_{X_2}((1+y)/(1-y)) | AJ32: 1-F_{X_1}((1+y)/(1-y)) | AL32: =SUMPRODUCT($C$12:$C$31,AL$12:AL$31) / (1-$F32) -> 0.9028699562 | AM32: (1+y)/(1-y)*e^(-r(1+y)/(1-y)) * 2/(1-y)^2 | AO32: =SUMPRODUCT($C$12:$C$31,AO$12:AO$31) / (1-$F32) -> 1.275839949 | AP32: ((1+y)/(1-y))^2*e^(-r(1+y)/(1-y)) * 2/(1-y)^2 | AR32: =SUMPRODUCT($C$12:$C$31,AR$12:AR$31) / (1-$K32) -> 0.9581423884 | AS32: 1-F_{X_1}((1+y)/(1-y)) | AU32: =SUMPRODUCT($C$12:$C$31,AU$12:AU$31) / (1-$K32) -> 1.202386214 | AW32: =SUMPRODUCT($C$12:$C$31,AW$12:AW$31) / (1-$K32) -> 2.256996685 | AY32: =SUMPRODUCT($C$12:$C$31,AY$12:AY$31) -> 0.9471615238 | AZ32: f_{X_3}((1+y)/(1-y)) | BB32: =SUMPRODUCT($C$12:$C$31,BB$12:BB$31) -> 1.43497118 | BD32: =SUMPRODUCT($C$12:$C$31,BD$12:BD$31) -> 5.288997873
A34: 30-node Gauss-Legendre quadrature | F34: |---- | G34: Does progression or death from stable disease occur first? | L34: ----| | O34: |---- | P34: Extended moment generating functions for time before progression if progression precedes death from stable disease | AE34: ----| | AG34: |---- | AH34: Extended moment generating functions for time before death from stable disease if precedes progression | AW34: ----| | AY34: |---- | AZ34: Extended moment generating functions for post-progression survival | BD34: ----|
B35: nodes | C35: weights | D35: (1+y)/(1-y) | F35: Pr(X_1<X_2|Control) | K35: Pr(X_1<X_2|Treatment) | O35: EMGF_{X_1|X_1<X_2,Control}(0;-r) | T35: EMGF_{X_1|X_1<X_2,Control}(1;-r) | W35: EMGF_{X_1|X_1<X_2,Control}(2;-r) | Z35: EMGF_{X_1|X_1<X_2,Treatment}(0;-r) | AC35: EMGF_{X_1|X_1<X_2,Treatment}(1;-r) | AE35: EMGF_{X_1|X_1<X_2,Treatment}(2;-r) | AG35: EMGF_{X_2|X_2<X_1,Control}(0;-r) | AL35: EMGF_{X_2|X_2<X_1,Control}(1;-r) | AO35: EMGF_{X_2|X_2<X_1,Control}(2;-r) | AR35: EMGF_{X_2|X_2<X_1,Treatment}(0;-r) | AU35: EMGF_{X_2|X_2<X_1,Treatment}(1;-r) | AW35: EMGF_{X_2|X_2<X_1,Treatment}(2;-r) | AY35: EMGF_{X_3}(0;-r) | BB35: EMGF_{X_3}(1;-r) | BD35: EMGF_{X_3}(2;-r)
A36: 1 | B36: -0.9968934841 | C36: 0.007968192496 | D36: =(1+$B36)/(1-$B36) -> 0.001555674326 | F36: =PRODUCT($G36:$I36) -> 5.397311435e-08 | G36: =IF(alpha_2*$D36<100,beta_2*EXP(alpha_2*$D36)*EXP(-beta_2/alpha_2*(EXP(alpha_2*$D36)-1)),0) -> 0.1000466763 | H36: =1-EXP(-POWER($D36/lambda_control,k_1)) -> 1.07560947e-06 | I36: =2/(1-B36)^2 -> 0.5015568844 | K36: =PRODUCT($G36,$L36,$I36) -> 3.022495119e-08 | L36: =1-EXP(-POWER($D36/lambda_treatment,k_1)) -> 6.023414458e-07 | O36: =PRODUCT($P36:$R36) -> 0.0006934179271 | P36: =(EXP(-discount_rate*$D36))*(2/(1-$B36)^2) -> 0.5015300431 | Q36: =(k_1/lambda_control)*POWER($D36/lambda_control,k_1-1)*EXP(-POWER($D36/lambda_control,k_1)) -> 0.001382820136 | R36: =IF(alpha_2*$D36<20,EXP(-beta_2/alpha_2*(EXP(alpha_2*$D36)-1)),0) -> 0.9998443963 | T36: =PRODUCT($U36,$Q36:$R36) -> 1.078732467e-06 | U36: =($D36*EXP(-discount_rate*$D36))*(2/(1-$B36)^2) -> 0.0007802174118 | W36: =PRODUCT($X36,$Q36:$R36) -> 1.678156403e-09 | X36: =($D36^2*EXP(-discount_rate*$D36))*(2/(1-$B36)^2) -> 1.213764196e-06 | Z36: =PRODUCT($P36,AA36,$R36) -> 0.000388314223 | AA36: =(k_1/lambda_treatment)*POWER($D36/lambda_treatment,k_1-1)*EXP(-POWER($D36/lambda_treatment,k_1)) -> 0.0007743796426 | AC36: =PRODUCT($U36,$AA36,$R36) -> 6.040904672e-07 | AE36: =PRODUCT($X36,$AA36,$R36) -> 9.397680305e-10 | AG36: =PRODUCT($P36,$AI36,$AJ36) -> 0.05017635989 | AH36: See col 16 | AI36: =IF(alpha_2*$D36<20,beta_2*EXP(alpha_2*$D36)*EXP(-beta_2/alpha_2*(EXP(alpha_2*$D36)-1)),0) -> 0.1000466763 | AJ36: =EXP(-POWER($D36/lambda_control,k_1)) -> 0.9999989244 | AL36: =PRODUCT($U36,$AI36,$AJ36) -> 7.805807487e-05 | AM36: See col 21 | AO36: =PRODUCT($X36,$AI36,$AJ36) -> 1.21432943e-07 | AP36: See col 24 | AR36: =PRODUCT($P36,$AI36,$AS36) -> 0.05017638364 | AS36: =EXP(-POWER($D36/lambda_treatment,k_1)) -> 0.9999993977 | AU36: =PRODUCT($U36,$AI36,$AS36) -> 7.805811181e-05 | AW36: =PRODUCT($X36,$AI36,$AS36) -> 1.214330005e-07 | AY36: =PRODUCT($P36,$AZ36) -> 1.073933563e-07 | AZ36: =_xlfn.LOGNORM.DIST($D36,mu_3,sigma_3,FALSE) -> 2.14131452e-07 | BB36: =PRODUCT($U36,$AZ36) -> 1.670690873e-10 | BD36: =PRODUCT($X36,$AZ36) -> 2.599050898e-13
A37: 2 | B37: -0.9836681233 | C37: 0.01846646831 | D37: =(1+$B37)/(1-$B37) -> 0.008233169918 | F37: =PRODUCT($G37:$I37) -> 1.53500276e-06 | G37: 0.1002471643 | H37: 3.012625149e-05 | I37: =2/(1-B37)^2 -> 0.5082670625 | K37: =PRODUCT($G37,$L37,$I37) -> 8.596072427e-07 | L37: 1.687081265e-05 | O37: =PRODUCT($P37:$R37) -> 0.003715457357 | P37: 0.5081231249 | Q37: 0.007318152785 | R37: 0.9991756658 | T37: =PRODUCT($U37,$Q37:$R37) -> 3.058999174e-05 | U37: 0.004183464027 | W37: =PRODUCT($X37,$Q37:$R37) -> 2.518525998e-07 | X37: 3.444317018e-05 | Z37: =PRODUCT($P37,AA37,$R37) -> 0.002080683701 | AA37: 0.004098219884 | AC37: =PRODUCT($U37,$AA37,$R37) -> 1.713062245e-05 | AE37: =PRODUCT($X37,$AA37,$R37) -> 1.410393255e-07 | AG37: =PRODUCT($P37,$AI37,$AJ37) -> 0.05093636784 | AI37: 0.1002471643 | AJ37: 0.9999698737 | AL37: =PRODUCT($U37,$AI37,$AJ37) -> 0.0004193677714 | AO37: =PRODUCT($X37,$AI37,$AJ37) -> 3.45272612e-06 | AR37: =PRODUCT($P37,$AI37,$AS37) -> 0.05093704304 | AS37: 0.9999831292 | AU37: =PRODUCT($U37,$AI37,$AS37) -> 0.0004193733305 | AW37: =PRODUCT($X37,$AI37,$AS37) -> 3.452771889e-06 | AY37: =PRODUCT($P37,$AZ37) -> 0.0002449662865 | AZ37: 0.0004821002519 | BB37: =PRODUCT($U37,$AZ37) -> 2.016849061e-06 | BD37: =PRODUCT($X37,$AZ37) -> 1.660506102e-08
A38: 3 | B38: -0.960021865 | C38: 0.02878470788 | D38: 0.02039678013 | F38: 9.684173534e-06 | G38: 0.1006129399 | H38: 0.0001848845244 | I38: 0.5206047945 | K38: 5.423357782e-06 | L38: 0.0001035395453 | O38: 0.009411151706 | P38: 0.5202396255 | Q38: 0.01812711918 | R38: 0.9979540745 | T38: 0.0001919571921 | U38: 0.01061121326 | W38: 3.915308642e-06 | X38: 0.0002164345837 | Z38: 0.005270673743 | AA38: 0.01015201264 | AC38: 0.0001075047735 | AE38: 2.192751227e-06 | AG38: =PRODUCT($P38,$AI38,$AJ38) -> 0.0523331608 | AI38: 0.1006129399 | AJ38: 0.9998151155 | AL38: 0.001067427974 | AO38: 2.17720937e-05 | AR38: 0.05233741863 | AS38: 0.9998964605 | AU38: 0.00106751482 | AW38: 2.177386508e-05 | AY38: 0.005219622522 | AZ38: 0.01003311218 | BB38: 0.000106463493 | BD38: 2.171512458e-06
A39: 4 | B39: -0.9262000474 | C39: 0.03879919257 | D39: 0.03831375286 | F39: 3.556243111e-05 | G39: 0.1011530587 | H39: 0.0006522066243 | I39: 0.5390477247 | K39: 1.991781982e-05 | L39: 0.000365288132 | O39: 0.01825142862 | P39: 0.5383377021 | Q39: 0.03403445722 | R39: 0.9961465589 | T39: 0.0006992807255 | U39: 0.02062573767 | W39: 2.67920689e-05 | X39: 0.0007902494156 | Z39: 0.01022373448 | AA39: 0.01906476808 | AC39: 0.0003917096361 | AE39: 1.500786619e-05 | AG39: 0.05441898959 | AI39: 0.1011530587 | AJ39: 0.9993477934 | AL39: 0.002084995718 | AO39: 7.988401064e-05 | AR39: 0.05443461359 | AS39: 0.9996347119 | AU39: 0.002085594332 | AW39: 7.99069458e-05 | AY39: 0.02742203399 | AZ39: 0.05093834945 | BB39: 0.001050641033 | BD39: 4.025400088e-05
A40: 5 | B40: -0.8825605358 | C40: 0.04840267283 | D40: 0.06238283549 | F40: 9.935687981e-05 | G40: 0.1018811108 | H40: 0.001728113163 | I40: 0.5643286446 | K40: 5.566102369e-05 | L40: 0.0009681115981 | O40: 0.03097548861 | P40: 0.5631188609 | Q40: 0.05535558302 | R40: 0.9937031415 | T40: 0.00193233881 | U40: 0.03512895126 | W40: 0.0001205447741 | X40: 0.002191443587 | Z40: 0.01735947964 | AA40: 0.03102272666 | AC40: 0.001082933562 | AE40: 6.755646627e-05 | AG40: 0.05727203116 | AI40: 0.1018811108 | AJ40: 0.9982718868 | AL40: 0.003572791698 | AO40: 0.0002228808768 | AR40: 0.05731563334 | AS40: 0.9990318884 | AU40: 0.003575511726 | AW40: 0.0002230505598 | AY40: 0.07672203639 | AZ40: 0.1362448352 | BB40: 0.004786138175 | BD40: 0.0002985728704
A41: 6 | B41: -0.8295657624 | C41: 0.05749315622 | D41: 0.09315556791 | F41: 0.0002364790044 | G41: 0.1028160142 | H41: 0.003849442862 | I41: 0.5974945478 | K41: 0.0001325406007 | L41: 0.002157516988 | O41: 0.04866328603 | P41: 0.5955828312 | Q41: 0.08248619633 | R41: 0.9905536082 | T41: 0.004533256046 | U41: 0.05548185688 | W41: 0.0004222980415 | X41: 0.005168443886 | Z41: 0.02729772577 | AA41: 0.04627072585 | AC41: 0.002542935146 | AE41: 0.0002368885677 | AG41: 0.06099973046 | AI41: 0.1028160142 | AJ41: 0.9961505571 | AL41: 0.005682464533 | AO41: 0.0005293532107 | AR41: 0.06110333631 | AS41: 0.997842483 | AU41: 0.005692115995 | AW41: 0.0005302522981 | AY41: 0.1525316673 | AZ41: 0.2561048762 | BB41: 0.01420917409 | BD41: 0.001323663682
A42: 7 | B42: -0.7677774321 | C42: 0.06597422988 | D42: 0.1313641433 | F42: 0.0005084453605 | G42: 0.1039830778 | H42: 0.007640236383 | I42: 0.6399924124 | K42: 0.0002852097532 | L42: 0.004285750451 | O42: 0.07283632757 | P42: 0.637106739 | Q42: 0.1158759913 | R42: 0.9866028807 | T42: 0.009568081771 | U42: 0.08369298095 | W42: 0.001256902865 | X42: 0.01099425674 | Z42: 0.04092622078 | AA42: 0.06510990546 | AC42: 0.005376237931 | AE42: 0.0007062448899 | AG42: 0.06574216682 | AI42: 0.1039830778 | AJ42: 0.9923597636 | AL42: 0.008636163422 | AO42: 0.001134482209 | AR42: 0.06596439587 | AS42: 0.9957142495 | AU42: 0.008665356351 | AW42: 0.001138317113 | AY42: 0.2466013573 | AZ42: 0.3870644308 | BB42: 0.03239457603 | BD42: 0.004255485728
A43: 8 | B43: -0.6978504948 | C43: 0.07375597474 | D43: 0.1779600183 | F43: 0.001022221476 | G43: 0.1054154801 | H43: 0.01397685646 | I43: 0.6937949024 | K43: 0.0005742161501 | L43: 0.007851269902 | O43: 0.1055890585 | P43: 0.6895604107 | Q43: 0.1559757304 | R43: 0.9817243647 | T43: 0.01879063078 | U43: 0.1227141833 | W43: 0.003343980999 | X43: 0.02183821832 | Z43: 0.05949721214 | AA43: 0.08788904131 | AC43: 0.01058812496 | AE43: 0.001884262913 | AG43: 0.0716743593 | AI43: 0.1054154801 | AJ43: 0.9860231435 | AL43: 0.0127551703 | AO43: 0.00226991034 | AR43: 0.07211963028 | AS43: 0.9921487301 | AU43: 0.01283441073 | AW43: 0.002284011969 | AY43: 0.3484292482 | AZ43: 0.5052918393 | BB43: 0.06200647541 | BD43: 0.0110346735
A44: 9 | B44: -0.620526183 | C44: 0.08075589523 | D44: 0.2341670385 | F44: 0.001964822538 | G44: 0.1071563042 | H44: 0.02407618732 | I44: 0.7615841394 | K44: 0.001106197009 | L44: 0.01355491699 | O44: 0.14974325 | P44: 0.755473706 | Q44: 0.2031370569 | R44: 0.9757504166 | T44: 0.03506493339 | U44: 0.1769070404 | W44: 0.008211051605 | X44: 0.04142579773 | Z44: 0.0847602598 | AA44: 0.1149831442 | AC44: 0.01984805902 | AE44: 0.004647761199 | AG44: 0.07900471212 | AI44: 0.1071563042 | AJ44: 0.9759238127 | AL44: 0.01850029946 | AO44: 0.004332160335 | AR44: 0.07985644862 | AS44: 0.986445083 | AU44: 0.01869974807 | AW44: 0.004378864627 | AY44: 0.448711752 | AZ44: 0.5939475437 | BB44: 0.1050735021 | BD44: 0.0246047508
A45: 10 | B45: -0.5366241481 | C45: 0.0868997872 | D45: 0.3015544513 | F45: 0.0036657557 | G45: 0.109261319 | H45: 0.03960977647 | I45: 0.8470219949 | K45: 0.002071060362 | L45: 0.02237853384 | O45: 0.2089928247 | P45: 0.8382804907 | Q45: 0.2574310639 | R45: 0.9684586119 | T45: 0.06302271659 | U45: 0.2527872134 | W45: 0.01900478072 | X45: 0.07622910944 | Z45: 0.1191358318 | AA45: 0.1467479277 | AC45: 0.0359259404 | AE45: 0.01083362725 | AG45: 0.08796370805 | AI45: 0.109261319 | AJ45: 0.9603902235 | AL45: 0.02652584772 | AO45: 0.007998987453 | AR45: 0.08954194568 | AS45: 0.9776214662 | AU45: 0.0270017723 | AW45: 0.00814250463 | AY45: 0.5405853726 | AZ45: 0.6448740948 | BB45: 0.1630159254 | BD45: 0.04915817794
A46: 11 | B46: -0.4470337695 | C46: 0.09212252224 | D46: 0.3821377511 | F46: 0.006710664273 | G46: 0.1118027606 | H46: 0.06284059989 | I46: 0.9551523815 | K46: 0.003811555601 | L46: 0.03569250833 | O46: 0.2879470796 | P46: 0.9426780422 | Q46: 0.3183324316 | R46: 0.9595517468 | T46: 0.1100354494 | U46: 0.3602328671 | W46: 0.04204869919 | X46: 0.1376585777 | Z46: 0.165921544 | AA46: 0.183430263 | AC46: 0.06340488567 | AE46: 0.02422940042 | AG46: 0.09877098479 | AI46: 0.1118027606 | AJ46: 0.9371594001 | AL46: 0.037744122 | AO46: 0.0144234539 | AR46: 0.101632231 | AS46: 0.9643074917 | AU46: 0.03883751218 | AW46: 0.01484127956 | AY46: 0.6195932963 | AZ46: 0.6572692569 | BB46: 0.2367699889 | BD46: 0.09047875107
A47: 12 | B47: -0.3527047255 | C47: 0.09636873717 | D47: 0.4785192675 | F47: 0.01214932624 | G47: 0.1148744309 | H47: 0.09676200081 | I47: 1.093009612 | K47: 0.006955608181 | L47: 0.0553971925 | O47: 0.3918500485 | P47: 1.075164054 | Q47: 0.3841926985 | R47: 0.9486282679 | T47: 0.1875077982 | U47: 0.5144867155 | W47: 0.08972609426 | X47: 0.2461918062 | Z47: 0.2294853488 | AA47: 0.2250008537 | AC47: 0.109813161 | AE47: 0.05254771339 | AG47: 0.1115578945 | AI47: 0.1148744309 | AJ47: 0.9032379992 | AL47: 0.05338260197 | AO47: 0.02554460359 | AR47: 0.1166668148 | AS47: 0.9446028075 | AU47: 0.05582731875 | AW47: 0.02671444768 | AY47: 0.6831544489 | AZ47: 0.6353955441 | BB47: 0.3269025665 | BD47: 0.1564291767
A48: 13 | B48: -0.2546369262 | C48: 0.09959342059 | D48: 0.5940866702 | F48: 0.02187625793 | G48: 0.1185984491 | H48: 0.1451777832 | I48: 1.270556156 | K48: 0.01267193237 | L48: 0.08409496066 | O48: 0.5254926832 | P48: 1.244852805 | Q48: 0.4514119862 | R48: 0.9351377406 | T48: 0.3121881984 | U48: 0.7395504577 | W48: 0.1854668473 | X48: 0.4393570689 | Z48: 0.3153039039 | AA48: 0.2708543165 | AC48: 0.1873178464 | AE48: 0.1112830357 | AG48: 0.1262039108 | AI48: 0.1185984491 | AJ48: 0.8548222168 | AL48: 0.07497606112 | AO48: 0.0445422785 | AR48: 0.1352220328 | AS48: 0.9159050393 | AU48: 0.08033360722 | AW48: 0.04772512522 | AY48: 0.729955959 | AZ48: 0.5863793344 | BB48: 0.4336571051 | BD48: 0.2576299056
A49: 14 | B49: -0.1538699136 | C49: 0.1017623897 | D49: 0.7332976416 | F49: 0.03931958162 | G49: 0.1231338049 | H49: 0.2125765194 | I49: 1.502160357 | K49: 0.0231697898 | L49: 0.1252646409 | O49: 0.6903783315 | P49: 1.464740107 | Q49: 0.5132584722 | R49: 0.9183124067 | T49: 0.5062528023 | U49: 1.074090466 | W49: 0.371233986 | X49: 0.7876280054 | Z49: 0.4294805495 | AA49: 0.3192952627 | AC49: 0.3149370741 | AE49: 0.2309426137 | AG49: 0.1420189292 | AI49: 0.1231338049 | AJ49: 0.7874234806 | AL49: 0.1041421459 | AO49: 0.07636718996 | AR49: 0.1577664143 | AS49: 0.8747353591 | AU49: 0.1156897395 | AW49: 0.08483501316 | AY49: 0.759442821 | AZ49: 0.5184829838 | BB49: 0.5568976296 | BD49: 0.4083717184
A50: 15 | B50: -0.05147184256 | C50: 0.1028526529 | D50: 0.9020956331 | F50: 0.07065059326 | G50: 0.1286860332 | H50: 0.3034937123 | I50: 1.808983899 | K50: 0.04268132256 | L50: 0.1833461325 | O50: 0.8786249423 | P50: 1.753707168 | Q50: 0.5585024715 | R50: 0.89705971 | T50: 0.7926037236 | U50: 1.582011578 | W50: 0.7150043578 | X50: 1.427125736 | Z50: 0.5769053104 | AA50: 0.3667128329 | AC50: 0.5204237612 | AE50: 0.4694720023 | AG50: 0.1571858805 | AI50: 0.1286860332 | AJ50: 0.6965062877 | AL50: 0.1417966963 | AO50: 0.1279141805 | AR50: 0.1843005002 | AS50: 0.8166538675 | AU50: 0.1662566764 | AW50: 0.1499794217 | AY50: 0.7714526816 | AZ50: 0.4398982315 | BB50: 0.6959240951 | BD50: 0.6277900872
A51: 16 | B51: 0.05147184256 | C51: 0.1028526529 | D51: 1.10852992 | F51: 0.1267700803 | G51: 0.1355144993 | H51: 0.4208249304 | I51: 2.222949212 | K51: 0.07937683387 | L51: 0.2634986939 | O51: 1.062152477 | P51: 2.139773061 | Q51: 0.5706959054 | R51: 0.8697899672 | T51: 1.1774278 | U51: 2.372002461 | W51: 1.305213945 | X51: 2.629435698 | Z51: 0.7563774192 | AA51: 0.4064025698 | AC51: 0.838467 | AE51: 0.9294657565 | AG51: 0.1679435542 | AI51: 0.1355144993 | AJ51: 0.5791750696 | AL51: 0.1861704547 | AO51: 0.2063755193 | AR51: 0.2135634863 | AS51: 0.7365013061 | AU51: 0.2367415144 | AW51: 0.262435052 | AY51: 0.7659935144 | AZ51: 0.3579788569 | BB51: 0.8491267293 | BD51: 0.9412823854
A52: 17 | B52: 0.1538699136 | C52: 0.1017623897 | D52: 1.363702736 | F52: 0.2261324664 | G52: 0.1439249107 | H52: 0.5624335653 | I52: 2.793545311 | K52: 0.1489699768 | L52: 0.3705160807 | O52: 1.179313454 | P52: 2.665517414 | Q52: 0.5304093725 | R52: 0.8341353744 | T52: 1.608232983 | U52: 3.63497339 | W52: 2.193151719 | X52: 4.957023156 | Z52: 0.9500750649 | AA52: 0.4273068515 | AC52: 1.295619965 | AE52: 1.766840491 | AG52: 0.1678655173 | AI52: 0.1439249107 | AJ52: 0.4375664347 | AL52: 0.2289186651 | AO52: 0.3121770099 | AR52: 0.2414916578 | AS52: 0.6294839193 | AU52: 0.3293228344 | AW52: 0.4490984503 | AY52: 0.7431502161 | AZ52: 0.2788014861 | BB52: 1.013435983 | BD52: 1.382025422
A53: 18 | B53: 0.2546369262 | C53: 0.09959342059 | D53: 1.68325608 | F53: 0.3975535565 | G53: 0.1542072053 | H53: 0.7161380145 | I53: 3.599931597 | K53: 0.2808902334 | L53: 0.505985095 | O53: 1.134864093 | P53: 3.397393207 | Q53: 0.424722145 | R53: 0.786489874 | T53: 1.910266885 | U53: 5.718682773 | W53: 3.21546835 | X53: 9.62600755 | Z53: 1.106024375 | AA53: 0.4139288994 | AC53: 1.861722255 | AE53: 3.133755305 | AG53: 0.1487160072 | AI53: 0.1542072053 | AJ53: 0.2838619855 | AL53: 0.2503271233 | AO53: 0.4213646524 | AR53: 0.2588156495 | AS53: 0.494014905 | AU53: 0.4356530157 | AW53: 0.7333155877 | AY53: 0.7031113139 | AZ53: 0.2069561193 | BB53: 1.183516394 | BD53: 1.992161167
A54: 19 | B54: 0.3527047255 | C54: 0.09636873717 | D54: 2.089780011 | F54: 0.6802286428 | G54: 0.1663930796 | H54: 0.8564352474 | I54: 4.773370257 | K54: 0.5263962082 | L54: 0.6627540188 | O54: 0.8544806695 | P54: 4.442250842 | Q54: 0.2666833335 | R54: 0.7212790016 | T54: 1.785676623 | U54: 9.283327011 | W54: 3.731671311 | X54: 19.40011122 | Z54: 1.124059306 | AA54: 0.3508187997 | AC54: 2.349036669 | AE54: 4.908969874 | AG54: 0.1061172935 | AI54: 0.1663930796 | AJ54: 0.1435647526 | AL54: 0.2217617988 | AO54: 0.4634333742 | AR54: 0.2492786713 | AS54: 0.3372459812 | AU54: 0.5209375843 | AW54: 1.08864495 | AY54: 0.6463177777 | AZ54: 0.1454933097 | BB54: 1.350661972 | BD54: 2.822586391
A55: 20 | B55: 0.4470337695 | C55: 0.09212252224 | D55: 2.616857395 | F55: 1.117721496 | G55: 0.1794368709 | H55: 0.9523336727 | I55: 6.540828709 | K55: 0.9601928085 | L55: 0.8181143037 | O55: 0.4175343716 | P55: 5.977726092 | Q55: 0.1108764277 | R55: 0.6299658342 | T55: 1.092627908 | U55: 15.64285673 | W55: 2.859251422 | X55: 40.93512532 | Z55: 0.8922100597 | AA55: 0.236926756 | AC55: 2.334786493 | AE55: 6.1098033 | AG55: 0.05112806883 | AI55: 0.1794368709 | AJ55: 0.04766632732 | AL55: 0.133794865 | AO55: 0.350122082 | AR55: 0.1950950476 | AS55: 0.1818856963 | AU55: 0.5105359181 | AW55: 1.335999693 | AY55: 0.5737454007 | AZ55: 0.09598054375 | BB55: 1.501409895 | BD55: 3.928975586
A56: 21 | B56: 0.5366241481 | C56: 0.0868997872 | D56: 3.316150684 | F56: 1.743624923 | G56: 0.1886153324 | H56: 0.9924596846 | I56: 9.314578364 | K56: 1.643089048 | L56: 0.9352353346 | O56: 0.09246824397 | P56: 8.310339181 | Q56: 0.02222650843 | R56: 0.5006135679 | T56: 0.3066386305 | U56: 27.55833696 | W56: 1.016859904 | X56: 91.38759797 | Z56: 0.444763616 | AA56: 0.1069074294 | AC56: 1.47490317 | AE56: 4.891001155 | AG56: 0.01181912303 | AI56: 0.1886153324 | AJ56: 0.007540315374 | AL56: 0.03919399293 | AO56: 0.1299731865 | AR56: 0.1015158531 | AS56: 0.06476466538 | AU56: 0.3366418658 | AW56: 1.116355154 | AY56: 0.4873322674 | AZ56: 0.05864168198 | BB56: 1.616067232 | BD56: 5.359122457
A57: 22 | B57: 0.620526183 | C57: 0.08075589523 | D57: 4.270455853 | F57: 2.476017881 | G57: 0.1783276016 | H57: 0.9996980477 | I57: 13.88885245 | K57: 2.450302055 | L57: 0.9893152223 | O57: 0.004441081619 | P57: 11.99124455 | Q57: 0.001146199174 | R57: 0.3231204193 | T57: 0.01896544299 | U57: 51.20808046 | W57: 0.08099108704 | X57: 218.6818469 | Z57: 0.08800430062 | AA57: 0.02271303825 | AC57: 0.3758184807 | AE57: 1.604916231 | AG57: 0.0006456857555 | AI57: 0.1783276016 | AJ57: 0.0003019523243 | AL57: 0.002757372514 | AO57: 0.01177523759 | AR57: 0.02284800682 | AS57: 0.0106847777 | AU57: 0.09757140444 | AW57: 0.4166743752 | AY57: 0.3905385211 | AZ57: 0.03256863953 | BB57: 1.667777513 | BD57: 7.122170244
A58: 23 | B58: 0.6978504948 | C58: 0.07375597474 | D58: 5.619239699 | F58: 2.49789606 | G58: 0.1140219571 | H58: 0.999999196 | I58: 21.9071671 | K58: 2.496933114 | L58: 0.9996136935 | O58: 8.734141049e-06 | P58: 18.05646848 | Q58: 4.015695864e-06 | R58: 0.1204554831 | T58: 4.907923212e-05 | U58: 101.4636245 | W58: 0.0002757879695 | X58: 570.148427 | Z58: 0.002350198182 | AA58: 0.001080550573 | AC58: 0.01320632693 | AE58: 0.07420951654 | AG58: 1.655225175e-06 | AI58: 0.1140219571 | AJ58: 8.039624733e-07 | AL58: 9.301107013e-06 | AO58: 5.226514977e-05 | AR58: 0.0007953409448 | AS58: 0.0003863065176 | AU58: 0.004469211411 | AW58: 0.02511357019 | AY58: 0.2889481925 | AZ58: 0.01600247539 | BB58: 1.623669154 | BD58: 9.123786171
A59: 24 | B59: 0.7677774321 | C59: 0.06597422988 | D59: 7.612427371 | F59: 0.5237692112 | G59: 0.0141227352 | H59: 1 | I59: 37.08695261 | K59: 0.5237689259 | L59: 0.9999994552 | O59: 8.473285038e-12 | P59: 28.54229048 | Q59: 4.416296861e-11 | R59: 0.006722096392 | T59: 6.450226695e-11 | U59: 217.2761133 | W59: 4.910188225e-10 | X59: 1653.998632 | Z59: 3.960748723e-07 | AA59: 2.06435191e-06 | AC59: 3.015091199e-06 | AE59: 2.295216277e-05 | AG59: 2.630844971e-12 | AI59: 0.0141227352 | AJ59: 6.526609354e-12 | AL59: 2.002711627e-11 | AO59: 1.524549681e-10 | AR59: 2.196001865e-07 | AS59: 5.447849064e-07 | AU59: 1.671690471e-06 | AW59: 1.272562229e-05 | AY59: 0.1906451499 | AZ59: 0.006679392113 | BB59: 1.451272357 | BD59: 11.04770542
A60: 25 | B60: 0.8295657624 | C60: 0.05749315622 | D60: 10.7347314 | F60: 7.21393538e-06 | G60: 1.047745819e-07 | H60: 1 | I60: 68.85196053 | K60: 7.21393538e-06 | L60: 1 | O60: 3.716103682e-28 | P60: 47.59218773 | Q60: 5.458961883e-22 | R60: 1.430349247e-08 | T60: 3.989137488e-27 | U60: 510.8893521 | W60: 4.282231946e-26 | X60: 5484.259971 | Z60: 1.273469162e-18 | AA60: 1.870728109e-12 | AC60: 1.36703494e-17 | AE60: 1.46747529e-16 | AG60: 2.85274536e-28 | AI60: 1.047745819e-07 | AJ60: 5.720992812e-23 | AL60: 3.06234552e-27 | AO60: 3.287345662e-26 | AR60: 1.745724033e-18 | AS60: 3.500934497e-13 | AU60: 1.87398786e-17 | AW60: 2.011675632e-16 | AY60: 0.1057721061 | AZ60: 0.002222467829 | BB60: 1.135435149 | BD60: 12.18859135
A61: 26 | B61: 0.8825605358 | C61: 0.04840267283 | D61: 16.03005045 | F61: 8.317515351e-63 | G61: 5.735770128e-65 | H61: 1 | I61: 145.0113091 | K61: 8.317515351e-63 | L61: 1 | O61: 2.823127584e-113 | P61: 83.54247019 | Q61: 3.588694068e-49 | R61: 9.416440276e-67 | T61: 4.525487759e-112 | U61: 1339.190012 | W61: 7.254379708e-111 | X61: 21467.28345 | Z61: 1.052957256e-91 | AA61: 1.338494753e-27 | AC61: 1.687895793e-90 | AE61: 2.705705471e-89 | AG61: 1.206849515e-112 | AI61: 5.735770128e-65 | AJ61: 2.518570256e-50 | AL61: 1.934585861e-111 | AO61: 3.101150895e-110 | AR61: 8.03795054e-91 | AS61: 1.677437236e-28 | AU61: 1.288487526e-89 | AW61: 2.065452005e-88 | AY61: 0.04429529333 | AZ61: 0.0005302128754 | BB61: 0.7100557867 | BD61: 11.38223008
A62: 27 | B62: 0.9262000474 | C62: 0.03879919257 | D62: 26.10028842 | F62: 0 | G62: 0 | H62: 1 | I62: 367.2128162 | K62: 0 | L62: 1 | O62: 0 | P62: 149.6133652 | Q62: 7.509126488e-131 | R62: 0 | T62: 0 | U62: 3904.951984 | W62: 0 | X62: 101920.373 | Z62: 0 | AA62: 3.015330545e-73 | AC62: 0 | AE62: 0 | AG62: 0 | AI62: 0 | AJ62: 3.236656685e-132 | AL62: 0 | AO62: 0 | AR62: 0 | AS62: 2.320887642e-74 | AU62: 0 | AW62: 0 | AY62: 0.01118728358 | AZ62: 7.477462702e-05 | BB62: 0.2919913281 | BD62: 7.62105788
A63: 28 | B63: 0.960021865 | C63: 0.02878470788 | D63: 49.02734616 | F63: 0 | G63: 0 | H63: 1 | I63: 1251.367682 | K63: 0 | L63: 1 | O63: 0 | P63: 231.6857023 | Q63: 0 | R63: 0 | T63: 0 | U63: 11358.93513 | W63: 0 | X63: 556898.4444 | Z63: 0 | AA63: 3.72439435e-259 | AC63: 0 | AE63: 0 | AG63: 0 | AI63: 0 | AJ63: 0 | AL63: 0 | AO63: 0 | AR63: 0 | AS63: 1.526095701e-260 | AU63: 0 | AW63: 0 | AY63: 0.0009670704886 | AZ63: 4.174062012e-06 | BB63: 0.0474128996 | BD63: 2.324528641
A64: 29 | B64: 0.9836681233 | C64: 0.01846646831 | D64: 121.4599006 | F64: 0 | G64: 0 | H64: 1 | I64: 7498.213629 | K64: 0 | L64: 1 | O64: 0 | P64: 114.8958675 | Q64: 0 | R64: 0 | T64: 0 | U64: 13955.24065 | W64: 0 | X64: 1695002.142 | Z64: 0 | AA64: 0 | AC64: 0 | AE64: 0 | AG64: 0 | AI64: 0 | AJ64: 0 | AL64: 0 | AO64: 0 | AR64: 0 | AS64: 0 | AU64: 0 | AW64: 0 | AY64: 3.754705892e-06 | AZ64: 3.267920747e-08 | BB64: 0.0004560462045 | BD64: 0.05539132667
A65: 30 | B65: 0.9968934841 | C65: 0.007968192496 | D65: 642.8080628 | F65: 0 | G65: 0 | H65: 1 | I65: 207244.4109 | K65: 0 | L65: 1 | O65: 0 | P65: 5.160663226e-05 | Q65: 0 | R65: 0 | T65: 0 | U65: 0.03317315931 | W65: 0 | X65: 21.32397427 | Z65: 0 | AA65: 0 | AC65: 0 | AE65: 0 | AG65: 0 | AI65: 0 | AJ65: 0 | AL65: 0 | AO65: 0 | AR65: 0 | AS65: 0 | AU65: 0 | AW65: 0 | AY65: 2.67438144e-17 | AZ65: 5.182243683e-13 | BB65: 1.719113953e-14 | BD65: 1.10506031e-11
F66: =SUMPRODUCT($C$36:$C$65,F$36:F$65) -> 0.8302702171 | G66: f_{X_2}((1+y)/(1-y)) | H66: F_{X_1}((1+y)/(1-y)) | I66: 2/(1-y)^2 | K66: =SUMPRODUCT($C$36:$C$65,K$36:K$65) -> 0.7592347348 | L66: F_{X_1}((1+y)/(1-y)) | O66: =SUMPRODUCT($C$36:$C$65,O$36:O$65) / $F66 -> 0.9598433317 | P66: e^(-r(1+y)/(1-y)) * 2/(1-y)^2 | Q66: f_{X_1}((1+y)/(1-y)) | R66: 1-F_{X_2}((1+y)/(1-y)) | T66: =SUMPRODUCT($C$36:$C$65,T$36:T$65) / $F66 -> 1.179110843 | U66: (1+y)/(1-y)*e^(-r(1+y)/(1-y)) * 2/(1-y)^2 | W66: =SUMPRODUCT($C$36:$C$65,W$36:W$65) / $F66 -> 1.855532196 | X66: ((1+y)/(1-y))^2*e^(-r(1+y)/(1-y)) * 2/(1-y)^2 | Z66: =SUMPRODUCT($C$36:$C$65,Z$36:Z$65) / $K66 -> 0.9485952028 | AA66: f_{X_1}((1+y)/(1-y)) | AC66: =SUMPRODUCT($C$36:$C$65,AC$36:AC$65) / $K66 -> 1.489900878 | AE66: =SUMPRODUCT($C$36:$C$65,AE$36:AE$65) / $K66 -> 2.996720187 | AG66: =SUMPRODUCT($C$36:$C$65,AG$36:AG$65) / (1-$F66) -> 0.960974401 | AH66: e^(-r(1+y)/(1-y)) * 2/(1-y)^2 | AI66: f_{X_2}((1+y)/(1-y)) | AJ66: 1-F_{X_1}((1+y)/(1-y)) | AL66: =SUMPRODUCT($C$36:$C$65,AL$36:AL$65) / (1-$F66) -> 0.8949513673 | AM66: (1+y)/(1-y)*e^(-r(1+y)/(1-y)) * 2/(1-y)^2 | AO66: =SUMPRODUCT($C$36:$C$65,AO$36:AO$65) / (1-$F66) -> 1.26442 | AP66: ((1+y)/(1-y))^2*e^(-r(1+y)/(1-y)) * 2/(1-y)^2 | AR66: =SUMPRODUCT($C$36:$C$65,AR$36:AR$65) / (1-$K66) -> 0.952248391 | AS66: 1-F_{X_1}((1+y)/(1-y)) | AU66: =SUMPRODUCT($C$36:$C$65,AU$36:AU$65) / (1-$K66) -> 1.195247735 | AW66: =SUMPRODUCT($C$36:$C$65,AW$36:AW$65) / (1-$K66) -> 2.244220423 | AY66: =SUMPRODUCT($C$36:$C$65,AY$36:AY$65) -> 0.9471614552 | AZ66: f_{X_3}((1+y)/(1-y)) | BB66: =SUMPRODUCT($C$36:$C$65,BB$36:BB$65) -> 1.434989182 | BD66: =SUMPRODUCT($C$36:$C$65,BD$36:BD$65) -> 5.290431636

Sheet PSA
A1: Iteration | B1: Parameter | T1: Results (30-node) | X1: Calculations
B2: lambda_control | C2: hr_treatment | D2: lambda_treatment | E2: k_1 | F2: alpha_2 | G2: beta_2 | H2: mu_3 | I2: sigma_3 | J2: u_0 | K2: u_1 | L2: u_2 | M2: v_sd | N2: v_pd | O2: c_treatment | P2: c_control | Q2: c_pd | R2: c_progression | S2: c_death | T2: Cost.Control | U2: Cost.Treatment | V2: QALY.Control | W2: QALY.Treatment | X2: IncCost.Treatment | Y2: IncQALY.Treatment | Z2: NMB.Control | AA2: NMB.Treatment | AB2: INMB.Treatment | AC2: CE.Control | AD2: CE.Treatment
A3: Live | B3: =lambda_control -> 1.5 | C3: =hr_treatment -> 0.56 | D3: =lambda_treatment -> 2.004459314 | E3: =k_1 -> 2 | F3: =alpha_2 -> 0.4 | G3: =beta_2 -> 0.1 | H3: =mu_3 -> 0 | I3: =sigma_3 -> 1 | J3: =u_0 -> 0.95 | K3: =u_1 -> -0.002 | L3: =u_2 -> -0.0005 | M3: =v_sd -> 0.9 | N3: =v_pd -> 0.6 | O3: =c_treatment -> 480 | P3: =c_control -> 200 | Q3: =c_pd -> 1000 | R3: =c_progression -> 3000 | S3: =c_death -> 5000 | T3: =Results!$D$15 -> 8436.80087 | U3: =Results!$D$16 -> 8528.888088 | V3: =Results!$B$15 -> 1.677798718 | W3: =Results!$B$16 -> 1.871373643
A4: Count | B4: =COUNT(OFFSET(B$9,0,0,PSA_Iterations,1)) -> 1000 | C4: 1000 | D4: 1000 | E4: 1000 | F4: 1000 | G4: 1000 | H4: 1000 | I4: 1000 | J4: 1000 | K4: 1000 | L4: 1000 | M4: 1000 | N4: 1000 | O4: 1000 | P4: 1000 | Q4: 1000 | R4: 1000 | S4: 1000 | T4: 1000 | U4: 1000 | V4: 1000 | W4: 1000 | X4: 1000 | Y4: 1000 | Z4: 1000 | AA4: 1000 | AB4: 1000 | AC4: 1000 | AD4: 1000
A5: Mean | B5: =AVERAGE(OFFSET(B$9,0,0,PSA_Iterations,1)) -> 1.480314142 | C5: 0.5621554421 | D5: 2.385765327 | E5: 2.014769041 | F5: 0.3960377708 | G5: 0.1009241988 | H5: 0.008045506675 | I5: 1.026410208 | J5: 0.950277509 | K5: -0.001991985261 | L5: -0.0005115232683 | M5: 0.8993679896 | N5: 0.5979092478 | O5: 487.7506838 | P5: 199.4304714 | Q5: 998.0332605 | R5: 3006.417235 | S5: 5019.242453 | T5: 8706.938864 | U5: 8799.101941 | V5: 1.720274519 | W5: 1.952595026 | X5: 92.16307663 | Y5: 0.2323205065 | Z5: 25698.55152 | AA5: 30252.79857 | AB5: 4554.247053 | AC5: 0.065 | AD5: 0.935
A6: SE | B6: =_xlfn.STDEV.S(OFFSET(B$9,0,0,PSA_Iterations,1))/SQRT(B$4) -> 0.03398920391 | C6: 0.00606294881 | D6: 0.08850793358 | E6: 0.02951107853 | F6: 0.006191890407 | G6: 0.003262661027 | H6: 0.006399350453 | I6: 0.02271155484 | J6: 0.0006876005924 | K6: 4.437140941e-05 | L6: 7.206153195e-06 | M6: 0.0009608925383 | N6: 0.001486472441 | O6: 7.50972745 | P6: 2.940614884 | Q6: 14.46854789 | R6: 41.21281697 | S6: 72.01591508 | T6: 95.63947498 | U6: 94.03066402 | V6: 0.0252913458 | W6: 0.02906191233 | X6: 19.13110206 | Y6: 0.008806490172 | Z6: 521.9816793 | AA6: 591.5822687 | AB6: 173.2881078 | AC6: 0.007799733062 | AD6: 0.007799733062
A7: 95% LCrL | B7: =_xlfn.PERCENTILE.INC(OFFSET(B$9,0,0,PSA_Iterations,1),0.025) -> 0.1507058798 | C7: 0.2537857061 | D7: 0.2035461759 | E7: 0.6687749813 | F7: 0.1100129051 | G7: 0.002672028377 | H7: -0.388324542 | I7: 0.1101726025 | J7: 0.8987343613 | K7: -0.005574406169 | L7: -0.001035176992 | M7: 0.8311744207 | N7: 0.5065365186 | O7: 139.5407401 | P7: 57.17625377 | Q7: 316.0358505 | R7: 966.9175548 | S7: 1650.60569 | T7: 4237.830993 | U7: 4367.234479 | V7: 0.7706026049 | W7: 0.8489815422 | X7: -1021.951639 | Y7: -0.0276484927 | Z7: 6150.179516 | AA7: 7609.022199 | AB7: -624.2592376 | AC7: 0 | AD7: 0
A8: 95% UCrL | B8: =_xlfn.PERCENTILE.INC(OFFSET(B$9,0,0,PSA_Iterations,1),0.975) -> 4.285303223 | C8: 0.9785424776 | D8: 7.873765922 | E8: 4.07972915 | F8: 0.8722440525 | G8: 0.3833786656 | H8: 0.4375239878 | I8: 2.747243127 | J8: 0.983471346 | K8: -0.000256725058 | L8: -0.0001568483297 | M8: 0.9502088527 | N8: 0.6874240512 | O8: 1042.278219 | P8: 413.9549703 | Q8: 2093.695616 | R8: 5908.397009 | S8: 10105.41992 | T8: 15006.53611 | U8: 14706.51857 | V8: 3.281768797 | W8: 3.823239039 | X8: 1493.280878 | Y8: 1.009249226 | Z8: 55884.5195 | AA8: 66667.29078 | AB8: 20676.05561 | AC8: 1 | AD8: 1
A9: 1 | B9: 2.902585827 | C9: 0.5364094797 | D9: 3.640541415 | E9: 2.74955342 | F9: 0.6563429036 | G9: 0.0002138217041 | H9: 0.04251813406 | I9: 0.9419586937 | J9: 0.927501137 | K9: -0.004746565991 | L9: -0.0004116180549 | M9: 0.8781745853 | N9: 0.5927863002 | O9: 964.7935206 | P9: 88.49905318 | Q9: 1261.040642 | R9: 3691.329852 | S9: 4693.199598 | T9: 9420.601599 | U9: 11921.37623 | V9: 2.72183678 | W9: 3.164870775 | X9: =U9-T9 -> 2500.774633 | Y9: =W9-V9 -> 0.4430339953 | Z9: =V9*threshold-T9 -> 45016.134 | AA9: =W9*threshold-U9 -> 51376.03928 | AB9: =AA9-Z9 -> 6359.905272 | AC9: =1*(Z9>AA9) -> 0 | AD9: =1-AC9 -> 1
A10: 2 | B10: 1.168471936 | C10: 0.4154094937 | D10: 2.495723354 | E10: 1.157611857 | F10: 0.0742382044 | G10: 0.04074996148 | H10: 0.09200388648 | I10: 0.804485011 | J10: 0.9530121376 | K10: -0.003689840731 | L10: -0.0003748515588 | M10: 0.9105645192 | N10: 0.595392393 | O10: 481.3273338 | P10: 253.6265079 | Q10: 445.0424324 | R10: 1796.376394 | S10: 2836.163939 | T10: 5110.179633 | U10: 5533.231786 | V10: 1.635107067 | W10: 2.413167219 | X10: 423.0521523 | Y10: 0.7780601518 | Z10: 27591.96171 | AA10: 42730.1126 | AB10: 15138.15088 | AC10: 0 | AD10: =1-AC10 -> 1
A11: 3 | B11: 2.22107413 | C11: 0.3450356829 | D11: 3.266260432 | E11: 2.759222522 | F11: 0.5240167535 | G11: 0.0296799131 | H11: 0.3406727116 | I11: 1.435681538 | J11: 0.8862470377 | K11: -0.004162630997 | L11: -0.0005384776495 | M11: 0.933653627 | N11: 0.5580306764 | O11: 718.9869894 | P11: 289.5508143 | Q11: 669.1917967 | R11: 4488.231967 | S11: 3614.521462 | T11: 9006.488003 | U11: 9484.633436 | V11: 2.558675966 | W11: 2.953154842 | X11: 478.1454331 | Y11: 0.3944788762 | Z11: 42167.03132 | AA11: 49578.46341 | AB11: 7411.43209 | AC11: 0 | AD11: 1
A12: 4 | B12: 6.22730598 | C12: 0.4097472954 | D12: 10.08381748 | E12: 1.851113476 | F12: 0.2947026811 | G12: 0.05954463018 | H12: -0.1942866683 | I12: 0.8646214991 | J12: 0.9552084027 | K12: -0.002029904834 | L12: -0.0007797094799 | M12: 0.9537807949 | N12: 0.6045082004 | O12: 534.0564163 | P12: 169.1849276 | Q12: 893.7639737 | R12: 3254.271164 | S12: 3203.451448 | T12: 5131.233421 | U12: 5831.794984 | V12: 3.296006972 | W12: 3.64686969 | X12: 700.5615633 | Y12: 0.3508627176 | Z12: 60788.90603 | AA12: 67105.59881 | AB12: 6316.692788 | AC12: 0 | AD12: 1
A13: 5 | B13: 0.9371487583 | C13: 0.6973714573 | D13: 1.14188243 | E13: 1.824153612 | F13: 0.4130019343 | G13: 0.02441014234 | H13: 0.03004841432 | I13: 0.1592721145 | J13: 0.9320884022 | K13: -0.00127714152 | L13: -0.0005643745434 | M13: 0.8826497609 | N13: 0.628327304 | O13: 224.7010347 | P13: 214.8194439 | Q13: 836.8310043 | R13: 3931.871145 | S13: 5187.852896 | T13: 9581.386716 | U13: 9538.795108 | V13: 1.227819099 | W13: 1.357365763 | X13: -42.59160808 | Y13: 0.129546664 | Z13: 14974.99527 | AA13: 17608.52016 | AB13: 2633.524888 | AC13: 0 | AD13: 1
A14: 6 | B14: 4.412686006 | C14: 0.4436791505 | D14: 11.23450408 | E14: 0.8696075228 | F14: 0.4934494976 | G14: 0.1483655864 | H14: -0.04303995826 | I14: 0.5516864778 | J14: 0.9756826514 | K14: -0.000879782547 | L14: -0.0004778849316 | M14: 0.9368360753 | N14: 0.5056514472 | O14: 283.6718409 | P14: 141.341523 | Q14: 831.0179291 | R14: 1971.559082 | S14: 6395.237274 | T14: 7333.811902 | U14: 7085.63508 | V14: 1.699915899 | W14: 1.916458864 | X14: -248.1768222 | Y14: 0.2165429652 | Z14: 26664.50608 | AA14: 31243.54221 | AB14: 4579.036126 | AC14: 0 | AD14: 1
A15: 7 | B15: 0.6801931704 | C15: 0.6229258672 | D15: 0.8709494367 | E15: 1.914701387 | F15: 0.5930247855 | G15: 0.0204971757 | H15: 0.237259628 | I15: 2.23893873 | J15: 0.9477763917 | K15: -0.002997424654 | L15: -0.0003009166022 | M15: 0.8843383958 | N15: 0.5660685649 | O15: 337.5283442 | P15: 273.058656 | Q15: 1108.954836 | R15: 4481.445317 | S15: 8369.661557 | T15: 16324.99693 | U15: 16278.53366 | V15: 2.43473513 | W15: 2.541413054 | X15: -46.46327419 | Y15: 0.1066779241 | Z15: 32369.70566 | AA15: 34549.72741 | AB15: 2180.021756 | AC15: 0 | AD15: 1
A16: 8 | B16: 0.9000109868 | C16: 0.3772150119 | D16: 1.839290394 | E16: 1.364070984 | F16: 0.4959462536 | G16: 0.104081408 | H16: -0.1506801677 | I16: 0.6297207846 | J16: 0.9643644874 | K16: -0.00573231059 | L16: -0.0007345098684 | M16: 0.9068565753 | N16: 0.5263734688 | O16: 337.7052214 | P16: 125.8639912 | Q16: 608.0973078 | R16: 5266.804511 | S16: 4627.514357 | T16: 9572.852699 | U16: 8910.506213 | V16: 1.090613653 | W16: 1.496146169 | X16: -662.3464854 | Y16: 0.4055325159 | Z16: 12239.42035 | AA16: 21012.41716 | AB16: 8772.996804 | AC16: 0 | AD16: 1
A17: 9 | B17: 1.166029972 | C17: 0.4837566396 | D17: 1.970706012 | E17: 1.383748485 | F17: 0.4894381604 | G17: 0.06468186784 | H17: -0.06312652025 | I17: 1.293621478 | J17: 0.9767892773 | K17: -0.002822392736 | L17: -0.0006678500942 | M17: 0.9216209801 | N17: 0.5411019517 | O17: 356.9797912 | P17: 236.430576 | Q17: 558.7566779 | R17: 3441.632057 | S17: 7757.002348 | T17: 11204.88199 | U17: 10923.84238 | V17: 1.684830342 | W17: 2.037339353 | X17: -281.039605 | Y17: 0.3525090117 | Z17: 22491.72484 | AA17: 29822.94468 | AB17: 7331.219839 | AC17: 0 | AD17: 1
A18: 10 | B18: 2.935751739 | C18: 0.7416760103 | D18: 3.25940919 | E18: 2.85748632 | F18: 0.8942797202 | G18: 0.0467958402 | H18: -0.1290008101 | I18: 3.068383061 | J18: 0.9285330644 | K18: -0.0005509298056 | L18: -0.0004962044982 | M18: 0.9069911973 | N18: 0.6261892781 | O18: 335.0113884 | P18: 275.6235372 | Q18: 1158.743538 | R18: 3559.876079 | S18: 7094.31855 | T18: 11762.00804 | U18: 11289.0579 | V18: 2.673637587 | W18: 2.640858626 | X18: -472.9501418 | Y18: -0.03277896129 | Z18: 41710.74371 | AA18: 41528.11462 | AB18: -182.629084 | AC18: 1 | AD18: 0
A19: 11 | B19: 3.373664085 | C19: 0.4512185169 | D19: 6.472390942 | E19: 1.22140776 | F19: 0.4908613757 | G19: 0.1044752029 | H19: -0.1202298435 | I19: 0.6123481027 | J19: 0.9226298459 | K19: -0.00149982444 | L19: -0.0002661305876 | M19: 0.8963476133 | N19: 0.591377845 | O19: 852.0718739 | P19: 89.93465507 | Q19: 828.5944458 | R19: 2474.109509 | S19: 5872.812407 | T19: 7230.869466 | U19: 8231.956072 | V19: 1.773100787 | W19: 2.009965325 | X19: 1001.086606 | Y19: 0.2368645379 | Z19: 28231.14627 | AA19: 31967.35042 | AB19: 3736.204151 | AC19: 0 | AD19: 1
A20: 12 | B20: 2.736207393 | C20: 0.3253113445 | D20: 5.818594657 | E20: 1.488394248 | F20: 0.142321664 | G20: 0.1446305897 | H20: 0.380241627 | I20: 0.5234877907 | J20: 0.9519286159 | K20: -0.0009362420151 | L20: -0.0004591403249 | M20: 0.8671120509 | N20: 0.6010092208 | O20: 472.8838987 | P20: 102.0265532 | Q20: 953.2967187 | R20: 3392.904954 | S20: 2022.841489 | T20: 5084.360533 | U20: 4893.159309 | V20: 2.027224374 | W20: 2.520045914 | X20: -191.2012242 | Y20: 0.4928215397 | Z20: 35460.12695 | AA20: 45507.75896 | AB20: 10047.63202 | AC20: 0 | AD20: 1
A21: 13 | B21: 3.062727044 | C21: 0.4535499709 | D21: 5.123503102 | E21: 1.536636707 | F21: 1.056428055 | G21: 0.01313261554 | H21: 0.1995796882 | I21: 1.436002977 | J21: 0.9327417993 | K21: -0.001336969256 | L21: -0.0003323480044 | M21: 0.9018104108 | N21: 0.5945398427 | O21: 622.9446164 | P21: 167.1282171 | Q21: 968.8281723 | R21: 1405.943496 | S21: 7460.015434 | T21: 9418.23088 | U21: 9869.070521 | V21: 2.70626966 | W21: 2.860929186 | X21: 450.8396401 | Y21: 0.1546595256 | Z21: 44707.16233 | AA21: 47349.5132 | AB21: 2642.350871 | AC21: 0 | AD21: 1
A22: 14 | B22: 0.7361113024 | C22: 0.6963309587 | D22: 0.8850825841 | E22: 1.963814202 | F22: 0.3980800509 | G22: 0.06728732371 | H22: -0.1214225636 | I22: 0.6120848362 | J22: 0.8665901297 | K22: -0.004156439079 | L22: -0.0004294313449 | M22: 0.8103011614 | N22: 0.5978803034 | O22: 244.547457 | P22: 348.2660845 | Q22: 1156.348495 | R22: 1831.333467 | S22: 2923.214376 | T22: 5798.835016 | U22: 5705.458039 | V22: 0.9334053358 | W22: 1.007474054 | X22: -93.37697772 | Y22: 0.07406871774 | Z22: 12869.2717 | AA22: 14444.02303 | AB22: 1574.751333 | AC22: 0 | AD22: 1
A23: 15 | B23: 1.183173271 | C23: 0.5171389246 | D23: 1.435905661 | E23: 3.406292716 | F23: 0.1900719947 | G23: 0.06295740959 | H23: -0.07099593871 | I23: 1.747422163 | J23: 0.9405621282 | K23: -0.001879032252 | L23: -0.0003545182165 | M23: 0.9140390452 | N23: 0.6351195722 | O23: 181.4515503 | P23: 133.1278587 | Q23: 449.3327617 | R23: 2012.26812 | S23: 7267.961646 | T23: 9441.092264 | U23: 9417.77068 | V23: 2.193089926 | W23: 2.32602215 | X23: -23.32158474 | Y23: 0.1329322243 | Z23: 34420.70625 | AA23: 37102.67232 | AB23: 2681.96607 | AC23: 0 | AD23: 1
A24: 16 | B24: 1.107252363 | C24: 0.6181343357 | D24: 1.9140242 | E24: 0.8789079552 | F24: 0.4030450424 | G24: 0.1572151819 | H24: 0.03822631866 | I24: 1.059452052 | J24: 0.9527975899 | K24: -0.002062307857 | L24: -0.0006864662775 | M24: 0.8976031812 | N24: 0.5846850569 | O24: 377.4724941 | P24: 329.3378005 | Q24: 594.5880565 | R24: 2852.293792 | S24: 7022.585688 | T24: 9730.989632 | U24: 9369.925732 | V24: 1.431283551 | W24: 1.598047767 | X24: -361.0639 | Y24: 0.1667642158 | Z24: 18894.68139 | AA24: 22591.02961 | AB24: 3696.348216 | AC24: 0 | AD24: 1
A25: 17 | B25: 1.966091514 | C25: 0.4544526401 | D25: 5.242534259 | E25: 0.8041351849 | F25: 0.1893489861 | G25: 0.07328679503 | H25: 0.02644188686 | I25: 2.176386523 | J25: 0.9712782625 | K25: -0.0007886808352 | L25: -0.0005927604349 | M25: 0.9047060132 | N25: 0.6217270744 | O25: 583.1166253 | P25: 283.8784893 | Q25: 1508.847078 | R25: 2392.129332 | S25: 4719.934197 | T25: 10854.07113 | U25: 10083.50132 | V25: 2.740744817 | W25: 3.31098837 | X25: -770.5698118 | Y25: 0.570243553 | Z25: 43960.82522 | AA25: 56136.26609 | AB25: 12175.44087 | AC25: 0 | AD25: 1
A26: 18 | B26: 3.3932842 | C26: 0.5243469473 | D26: 5.171830976 | E26: 1.531936364 | F26: 0.6112597054 | G26: 0.06476181683 | H26: 0.1924032574 | I26: 0.7407028516 | J26: 0.9382284526 | K26: -0.00389796145 | L26: -0.0003154573664 | M26: 0.8414528312 | N26: 0.6394283985 | O26: 238.0653591 | P26: 325.5015373 | Q26: 1156.793885 | R26: 5172.37193 | S26: 4667.659477 | T26: 8526.019203 | U26: 7203.954735 | V26: 2.066105683 | W26: 2.194713431 | X26: -1322.064468 | Y26: 0.1286077488 | Z26: 32796.09445 | AA26: 36690.31389 | AB26: 3894.219443 | AC26: 0 | AD26: 1
A27: 19 | B27: 0.6917575073 | C27: 0.6010935622 | D27: 0.963263143 | E27: 1.537355102 | F27: 0.1904995902 | G27: 0.0005375202151 | H27: 0.1562030852 | I27: 0.6812287512 | J27: 0.9523659158 | K27: -0.0005155973708 | L27: -0.0006051257083 | M27: 0.9370201478 | N27: 0.5389489594 | O27: 337.0383858 | P27: 138.870396 | Q27: 1385.084416 | R27: 2905.168073 | S27: 3534.998115 | T27: 8140.816633 | U27: 8274.223903 | V27: 1.256017867 | W27: 1.459255441 | X27: 133.4072701 | Y27: 0.2032375735 | Z27: 16979.54071 | AA27: 20910.88491 | AB27: 3931.3442 | AC27: 0 | AD27: 1
A28: 20 | B28: 2.660275529 | C28: 0.3948823157 | D28: 3.968838563 | E28: 2.322664409 | F28: 0.6554969654 | G28: 0.008123248127 | H28: 0.1349011897 | I28: 0.3557667518 | J28: 0.9508155158 | K28: -0.002358540843 | L28: -0.0003018471115 | M28: 0.9112103348 | N28: 0.5759978539 | O28: 539.355413 | P28: 78.9079411 | Q28: 853.179751 | R28: 3633.279306 | S28: 4700.009896 | T28: 8393.329369 | U28: 9213.737208 | V28: 2.446807082 | W28: 3.122556653 | X28: 820.4078393 | Y28: 0.6757495708 | Z28: 40542.81227 | AA28: 53237.39585 | AB28: 12694.58358 | AC28: 0 | AD28: 1
A29: 21 | B29: 4.207400397 | C29: 0.6126596559 | D29: 4.866622685 | E29: 3.366046776 | F29: 0.4366319887 | G29: 0.02768364273 | H29: 0.07892156709 | I29: 0.1447073634 | J29: 0.8921902873 | K29: -0.001592058576 | L29: -0.0002093247849 | M29: 0.9541483896 | N29: 0.6225799258 | O29: 404.7050996 | P29: 166.6039101 | Q29: 958.3511759 | R29: 4658.617151 | S29: 3276.843597 | T29: 7110.025521 | U29: 7530.175001 | V29: 3.040675514 | W29: 3.28287054 | X29: 420.1494794 | Y29: 0.2421950256 | Z29: 53703.48477 | AA29: 58127.2358 | AB29: 4423.751032 | AC29: 0 | AD29: 1
A30: 22 | B30: 0.6153323976 | C30: 0.373163393 | D30: 0.9745659708 | E30: 2.143704727 | F30: 0.2736805483 | G30: 0.2577825434 | H30: -0.06981306091 | I30: 2.747148244 | J30: 0.9623955681 | K30: -0.0009962499535 | L30: -0.0004090845316 | M30: 0.9223188384 | N30: 0.6686315892 | O30: 341.1969424 | P30: 299.1877329 | Q30: 1582.318942 | R30: 3690.760477 | S30: 4541.167659 | T30: 13687.31525 | U30: 12825.93715 | V30: 2.37816837 | W30: 2.383006932 | X30: -861.3780985 | Y30: 0.004838562293 | Z30: 33876.05215 | AA30: 34834.20149 | AB30: 958.1493444 | AC30: 0 | AD30: 1
A31: 23 | B31: 0.6661319066 | C31: 0.5658783585 | D31: 0.769354359 | E31: 3.95224552 | F31: 0.6476393704 | G31: 0.06024181395 | H31: 0.01867847589 | I31: 1.648950389 | J31: 0.9529559424 | K31: -0.001901573917 | L31: -0.0004158232674 | M31: 0.893242386 | N31: 0.5139134845 | O31: 873.6799141 | P31: 126.027282 | Q31: 1229.815626 | R31: 2949.92987 | S31: 10611.15285 | T31: 15431.0818 | U31: 15851.45705 | V31: 1.63543845 | W31: 1.694618878 | X31: 420.3752528 | Y31: 0.05918042847 | Z31: 17277.6872 | AA31: 18040.92052 | AB31: 763.2333166 | AC31: 0 | AD31: 1
A32: 24 | B32: 0.7536039795 | C32: 0.5618264382 | D32: 0.8923090028 | E32: 3.412712141 | F32: 0.3831356596 | G32: 0.2403823683 | H32: -0.06501218672 | I32: 0.4970021455 | J32: 0.9534394781 | K32: -0.0003458314161 | L32: -0.0002493790039 | M32: 0.8834311647 | N32: 0.5340747279 | O32: 261.9952647 | P32: 257.9728747 | Q32: 374.4330433 | R32: 4307.541328 | S32: 3206.990492 | T32: 7013.245794 | U32: 6870.693475 | V32: 0.9384118521 | W32: 1.001136213 | X32: -142.5523196 | Y32: 0.06272436043 | Z32: 11754.99125 | AA32: 13152.03078 | AB32: 1397.039528 | AC32: 0 | AD32: 1
A33: 25 | B33: 3.121175794 | C33: 0.497441438 | D33: 4.907297675 | E33: 1.543108084 | F33: 0.3823167598 | G33: 0.04351609225 | H33: 0.05217220429 | I33: 0.7544059587 | J33: 0.8878928197 | K33: -0.001119959583 | L33: -0.0006458767869 | M33: 0.8752593815 | N33: 0.6293555792 | O33: 338.9122398 | P33: 250.9713867 | Q33: 1517.793053 | R33: 3246.469265 | S33: 5396.711743 | T33: 9124.748201 | U33: 8553.081784 | V33: 2.261708408 | W33: 2.686857514 | X33: -571.6664166 | Y33: 0.4251491061 | Z33: 36109.41996 | AA33: 45184.0685 | AB33: 9074.648538 | AC33: 0 | AD33: 1
A34: 26 | B34: 4.556223434 | C34: 0.318349726 | D34: 7.13838254 | E34: 2.549275718 | F34: 0.4171690592 | G34: 0.1023117588 | H34: -0.1303126487 | I34: 1.005036695 | J34: 0.9403009786 | K34: -0.003323919388 | L34: -0.000382432014 | M34: 0.9162257925 | N34: 0.6140967651 | O34: 562.02194 | P34: 190.3201175 | Q34: 754.6329934 | R34: 2470.978405 | S34: 10291.47973 | T34: 10921.63544 | U34: 11335.5195 | V34: 2.371056575 | W34: 2.504156551 | X34: 413.8840578 | Y34: 0.1330999766 | Z34: 36499.49606 | AA34: 38747.61153 | AB34: 2248.115473 | AC34: 0 | AD34: 1
A35: 27 | B35: 1.675870313 | C35: 0.5927177097 | D35: 2.169690101 | E35: 2.025299261 | F35: 0.4245385294 | G35: 0.1035058951 | H35: 0.0200731412 | I35: 0.8196811143 | J35: 0.9580972325 | K35: -0.004872675551 | L35: -0.0003207756589 | M35: 0.8969186117 | N35: 0.5786775629 | O35: 914.6807095 | P35: 404.5104134 | Q35: 1175.247065 | R35: 9032.939449 | S35: 4953.706778 | T35: 13167.6929 | U35: 13197.29632 | V35: 1.648875282 | W35: 1.826653427 | X35: 29.60342126 | Y35: 0.1777781446 | Z35: 19809.81275 | AA35: 23335.77222 | AB35: 3525.95947 | AC35: 0 | AD35: 1
A36: 28 | B36: 1.302628677 | C36: 0.3508597847 | D36: 1.886556469 | E36: 2.827906387 | F36: 0.2352627386 | G36: 0.03072394996 | H36: -0.06371629534 | I36: 1.057086917 | J36: 0.9438663695 | K36: -0.002431553903 | L36: -0.0004144289973 | M36: 0.8926501052 | N36: 0.5651930205 | O36: 299.4179815 | P36: 221.8288463 | Q36: 960.4211086 | R36: 2147.870399 | S36: 2194.450633 | T36: 5575.207638 | U36: 5636.320497 | V36: 1.666315486 | W36: 2.022453546 | X36: 61.11285966 | Y36: 0.3561380591 | Z36: 27751.10209 | AA36: 34812.75041 | AB36: 7061.648323 | AC36: 0 | AD36: 1
A37: 29 | B37: 0.6897744421 | C37: 0.494763264 | D37: 1.492239737 | E37: 0.9118884743 | F37: 0.3468691645 | G37: 0.006989145877 | H37: -0.04582793365 | I37: 1.284954974 | J37: 0.9461696085 | K37: -0.002382524373 | L37: -0.0003259259212 | M37: 0.9217077927 | N37: 0.519691936 | O37: 485.2953931 | P37: 144.6757445 | Q37: 1327.052693 | R37: 3787.635236 | S37: 2724.962359 | T37: 8683.27329 | U37: 8967.305993 | V37: 1.480741474 | W37: 2.080631688 | X37: 284.0327029 | Y37: 0.5998902145 | Z37: 20931.55618 | AA37: 32645.32777 | AB37: 11713.77159 | AC37: 0 | AD37: 1
A38: 30 | B38: 1.079340722 | C38: 0.4205863074 | D38: 1.661784571 | E38: 2.007003403 | F38: 0.2426895136 | G38: 0.02765985907 | H38: 0.007433615112 | I38: 0.7270990104 | J38: 0.9425809102 | K38: -0.005060048728 | L38: -0.000531992065 | M38: 0.881309767 | N38: 0.6860943206 | O38: 920.5978668 | P38: 123.7995372 | Q38: 1127.139573 | R38: 4139.536902 | S38: 3398.012488 | T38: 8489.478492 | U38: 9407.076342 | V38: 1.517960071 | W38: 1.868902076 | X38: 917.5978503 | Y38: 0.3509420041 | Z38: 21869.72294 | AA38: 27970.96517 | AB38: 6101.242232 | AC38: 0 | AD38: 1
A39: 31 | B39: 1.368662946 | C39: 0.3734187968 | D39: 1.666521045 | E39: 5.002717225 | F39: 0.3226334698 | G39: 0.03634702851 | H39: -0.1435909743 | I39: 0.8675066971 | J39: 0.9622229871 | K39: -0.0004923879127 | L39: -0.0005957370805 | M39: 0.9461943225 | N39: 0.5286376435 | O39: 361.1876243 | P39: 387.5710866 | Q39: 1173.100138 | R39: 617.6732785 | S39: 7379.761084 | T39: 9100.751905 | U39: 9057.798147 | V39: 1.64335041 | W39: 1.848039262 | X39: -42.9537587 | Y39: 0.2046888518 | Z39: 23766.2563 | AA39: 27902.9871 | AB39: 4136.730794 | AC39: 0 | AD39: 1
A40: 32 | B40: 0.7462390723 | C40: 0.5605079368 | D40: 1.183490652 | E40: 1.255290782 | F40: 0.4714069167 | G40: 0.1026867097 | H40: -0.2906802926 | I40: 0.242125219 | J40: 0.9437837711 | K40: -0.001349564886 | L40: -0.0006923727986 | M40: 0.8956670474 | N40: 0.6077443494 | O40: 121.7431784 | P40: 263.5279902 | Q40: 1405.514705 | R40: 1552.518104 | S40: 7460.727115 | T40: 9629.643261 | U40: 9323.236115 | V40: 0.9231733114 | W40: 1.150021061 | X40: -306.4071463 | Y40: 0.2268477501 | Z40: 8833.822967 | AA40: 13677.18511 | AB40: 4843.362147 | AC40: 0 | AD40: 1
A41: 33 | B41: 1.023572014 | C41: 0.6880086101 | D41: 1.352706076 | E41: 1.341256772 | F41: 0.3368756984 | G41: 0.06773387232 | H41: -0.2011299439 | I41: 0.421494796 | J41: 0.972422763 | K41: -0.001667713645 | L41: -0.0008929169441 | M41: 0.9059452558 | N41: 0.6507180978 | O41: 264.5375744 | P41: 222.6232385 | Q41: 2245.749345 | R41: 1527.625116 | S41: 3933.923567 | T41: 7034.245841 | U41: 6975.410225 | V41: 1.253861664 | W41: 1.444412334 | X41: -58.83561614 | Y41: 0.1905506703 | Z41: 18042.98743 | AA41: 21912.83645 | AB41: 3869.849022 | AC41: 0 | AD41: 1
A42: 34 | B42: 1.68975998 | C42: 0.7879413155 | D42: 1.931735183 | E42: 1.780825033 | F42: 0.4874433152 | G42: 0.00437753038 | H42: 0.08896567763 | I42: 0.1956366738 | J42: 0.8987694857 | K42: -0.001145258636 | L42: -0.0007833682808 | M42: 0.9135646095 | N42: 0.6267025101 | O42: 377.0974346 | P42: 200.0850497 | Q42: 634.0677729 | R42: 2089.893827 | S42: 5726.452178 | T42: 8142.383041 | U42: 8408.870975 | V42: 1.755715883 | W42: 1.909120239 | X42: 266.487934 | Y42: 0.1534043557 | Z42: 26971.93463 | AA42: 29773.53381 | AB42: 2801.59918 | AC42: 0 | AD42: 1
A43: 35 | B43: 1.663840665 | C43: 0.3028738403 | D43: 2.386558687 | E43: 3.311227909 | F43: 0.2556292724 | G43: 0.1124748906 | H43: -0.07425635413 | I43: 0.3734961002 | J43: 0.9677007057 | K43: -0.0005151692322 | L43: -0.0003355113363 | M43: 0.9245133692 | N43: 0.5999864763 | O43: 317.624345 | P43: 261.6285368 | Q43: 819.0419007 | R43: 2816.122899 | S43: 2363.887171 | T43: 5336.975211 | U43: 5164.664798 | V43: 1.605989418 | W43: 1.949843955 | X43: -172.3104129 | Y43: 0.3438545364 | Z43: 26782.81316 | AA43: 33832.2143 | AB43: 7049.401141 | AC43: 0 | AD43: 1
A44: 36 | B44: 0.9532588279 | C44: 0.450670232 | D44: 1.235398768 | E44: 3.074177762 | F44: 0.2558082795 | G44: 0.05211223911 | H44: -0.1555220572 | I44: 2.134676946 | J44: 0.9618131784 | K44: -0.002989972812 | L44: -0.0004808089314 | M44: 0.929590207 | N44: 0.6367020671 | O44: 525.1831091 | P44: 47.37740079 | Q44: 380.5499165 | R44: 4034.593249 | S44: 6555.952867 | T44: 10626.69806 | U44: 10977.35708 | V44: 2.254244598 | W44: 2.410888956 | X44: 350.659022 | Y44: 0.1566443579 | Z44: 34458.19389 | AA44: 37240.42203 | AB44: 2782.228135 | AC44: 0 | AD44: 1
A45: 37 | B45: 1.274964737 | C45: 0.3896974061 | D45: 2.481314836 | E45: 1.415268171 | F45: 0.1443176393 | G45: 0.1306513904 | H45: -0.07854429691 | I45: 1.082604148 | J45: 0.9549254377 | K45: -0.001508849212 | L45: -0.0002875814457 | M45: 0.893658246 | N45: 0.656351794 | O45: 308.0645852 | P45: 258.9000245 | Q45: 1646.795123 | R45: 2647.893498 | S45: 6706.855146 | T45: 10676.96019 | U45: 10069.15902 | V45: 1.627895777 | W45: 2.067706987 | X45: -607.8011673 | Y45: 0.4398112101 | Z45: 21880.95536 | AA45: 31284.98073 | AB45: 9404.025368 | AC45: 0 | AD45: 1
A46: 38 | B46: 0.8522732976 | C46: 0.4428501704 | D46: 3.090461135 | E46: 0.6323115952 | F46: 0.6940781344 | G46: 0.009685928387 | H46: 0.2458745842 | I46: 0.2917964756 | J46: 0.9597910198 | K46: -0.001831253108 | L46: -0.0005267730239 | M46: 0.9501987839 | N46: 0.5607267366 | O46: 408.4062442 | P46: 189.9507567 | Q46: 1734.949249 | R46: 2848.111789 | S46: 4982.552577 | T46: 9452.795987 | U46: 8948.089477 | V46: 1.541667727 | W46: 2.482602138 | X46: -504.7065101 | Y46: 0.9409344111 | Z46: 21380.55856 | AA46: 40703.95329 | AB46: 19323.39473 | AC46: 0 | AD46: 1
A47: 39 | B47: 2.91852286 | C47: 0.524990537 | D47: 4.82973507 | E47: 1.279247838 | F47: 0.4112406343 | G47: 0.02537611066 | H47: -0.1770315445 | I47: 0.4530236834 | J47: 0.9117914881 | K47: -0.001012600284 | L47: -0.0006141976374 | M47: 0.8684339985 | N47: 0.6670650027 | O47: 433.97566 | P47: 172.1469044 | Q47: 542.6559585 | R47: 2996.803128 | S47: 6055.521378 | T47: 8539.151027 | U47: 8772.048346 | V47: 2.181925138 | W47: 2.745157779 | X47: 232.8973198 | Y47: 0.563232641 | Z47: 35099.35173 | AA47: 46131.10723 | AB47: 11031.7555 | AC47: 0 | AD47: 1
A48: 40 | B48: 1.359607851 | C48: 0.6280314888 | D48: 1.812602169 | E48: 1.617587242 | F48: 0.308738693 | G48: 0.03047195775 | H48: 0.2835330351 | I48: 0.3804490183 | J48: 0.9750638446 | K48: -0.0005516334715 | L48: -0.0004210837214 | M48: 0.8893350541 | N48: 0.6696024846 | O48: 390.8770882 | P48: 235.7133292 | Q48: 587.0298933 | R48: 1484.488061 | S48: 4719.497142 | T48: 6700.315847 | U48: 6891.397995 | V48: 1.818844128 | W48: 2.089106464 | X48: 191.0821485 | Y48: 0.2702623357 | Z48: 29676.56672 | AA48: 34890.73129 | AB48: 5214.164565 | AC48: 0 | AD48: 1
A49: 41 | B49: 1.367376782 | C49: 0.6029833984 | D49: 1.689679739 | E49: 2.390162523 | F49: 0.5893519642 | G49: 0.1783627742 | H49: 0.2920744108 | I49: 1.232338794 | J49: 0.9244027339 | K49: -0.002298855386 | L49: -0.0004067573381 | M49: 0.9289404287 | N49: 0.5944172561 | O49: 245.6860446 | P49: 72.00687237 | Q49: 597.8766266 | R49: 2356.613537 | S49: 5379.966194 | T49: 7599.044255 | U49: 7517.021467 | V49: 1.742759673 | W49: 1.782466699 | X49: -82.02278851 | Y49: 0.03970702622 | Z49: 27256.1492 | AA49: 28132.31252 | AB49: 876.163313 | AC49: 0 | AD49: 1
A50: 42 | B50: 1.654830006 | C50: 0.388135605 | D50: 2.704335504 | E50: 1.926876116 | F50: 0.1287890967 | G50: 0.000414422396 | H50: 0.270636118 | I50: 2.075636952 | J50: 0.9609390157 | K50: -0.0006408628345 | L50: -0.0003942470152 | M50: 0.9072349729 | N50: 0.5942376624 | O50: 540.5446678 | P50: 89.15562262 | Q50: 1625.494278 | R50: 3329.023649 | S50: 6432.785465 | T50: 15156.62007 | U50: 15790.41584 | V50: 3.167073562 | W50: 3.823098019 | X50: 633.7957721 | Y50: 0.656024457 | Z50: 48184.85117 | AA50: 60671.54453 | AB50: 12486.69337 | AC50: 0 | AD50: 1
A51: 43 | B51: 3.090180301 | C51: 0.4447788879 | D51: 4.260151132 | E51: 2.523327891 | F51: 0.7244009503 | G51: 0.09431963518 | H51: -0.1356029039 | I51: 0.4728388549 | J51: 0.9334709565 | K51: -0.001037766214 | L51: -0.0002631136121 | M51: 0.882325094 | N51: 0.6030980842 | O51: 161.1727554 | P51: 182.6485808 | Q51: 1040.30564 | R51: 1766.009973 | S51: 6588.290175 | T51: 7580.024486 | U51: 7092.01973 | V51: 1.759057843 | W51: 1.85144342 | X51: -488.0047553 | Y51: 0.09238557695 | Z51: 27601.13237 | AA51: 29936.84867 | AB51: 2335.716294 | AC51: 0 | AD51: 1
A52: 44 | B52: 0.7537236703 | C52: 0.4933840694 | D52: 0.9685515558 | E52: 2.817126238 | F52: 0.1930994161 | G52: 0.002674123526 | H52: 0.3278297411 | I52: 0.1963437682 | J52: 0.9698249597 | K52: -0.001143911103 | L52: -0.0007209369883 | M52: 0.9163760387 | N52: 0.6658606226 | O52: 751.7417727 | P52: 94.58978487 | Q52: 684.7751605 | R52: 7488.418751 | S52: 2416.763195 | T52: 10537.63422 | U52: 11038.44092 | V52: 1.453950388 | W52: 1.611487462 | X52: 500.8067084 | Y52: 0.1575370736 | Z52: 18541.37354 | AA52: 21191.30831 | AB52: 2649.934763 | AC52: 0 | AD52: 1
A53: 45 | B53: 1.269209559 | C53: 0.733564554 | D53: 1.459602932 | E53: 2.216780459 | F53: 0.2157599675 | G53: 0.221707219 | H53: -0.2072475157 | I53: 1.028196746 | J53: 0.890380398 | K53: -0.001471427962 | L53: -0.0004648147534 | M53: 0.8943764181 | N53: 0.5849861876 | O53: 388.0831281 | P53: 221.680418 | Q53: 1193.471393 | R53: 3136.697854 | S53: 2829.593856 | T53: 6271.003279 | U53: 6291.187466 | V53: 1.229650697 | W53: 1.291932815 | X53: 20.18418665 | Y53: 0.06228211838 | Z53: 18322.01066 | AA53: 19547.46884 | AB53: 1225.458181 | AC53: 0 | AD53: 1
A54: 46 | B54: 0.9517921353 | C54: 0.4789424684 | D54: 1.439064192 | E54: 1.78077373 | F54: 0.9022847087 | G54: 0.1996922333 | H54: -0.1548745867 | I54: 1.204978448 | J54: 0.9774069418 | K54: -0.001915523667 | L54: -0.0006240796195 | M54: 0.8677485465 | N54: 0.5609055174 | O54: 765.7729306 | P54: 201.2530206 | Q54: 1378.071158 | R54: 2207.394464 | S54: 3769.439182 | T54: 6927.476776 | U54: 6836.248069 | V54: 1.227802924 | W54: 1.294902312 | X54: -91.22870694 | Y54: 0.06709938855 | Z54: 17628.5817 | AA54: 19061.79818 | AB54: 1433.216478 | AC54: 0 | AD54: 1
A55: 47 | B55: 1.338575758 | C55: 0.4113174298 | D55: 1.833073044 | E55: 2.825779149 | F55: 0.4962339882 | G55: 0.02188955746 | H55: -0.06914445851 | I55: 0.7570455511 | J55: 0.9755284325 | K55: -0.001485361041 | L55: -0.0004810705039 | M55: 0.9290171368 | N55: 0.5974159918 | O55: 533.952872 | P55: 155.5721171 | Q55: 1019.957166 | R55: 5165.266961 | S55: 5837.026291 | T55: 11469.81412 | U55: 11828.88784 | V55: 1.675398235 | W55: 2.006490376 | X55: 359.073718 | Y55: 0.3310921416 | Z55: 22038.15058 | AA55: 28300.91969 | AB55: 6262.769114 | AC55: 0 | AD55: 1
A56: 48 | B56: 2.425756778 | C56: 0.6436801119 | D56: 3.9488174 | E56: 0.9041210274 | F56: 0.1154117715 | G56: 0.05458880153 | H56: 0.1163759005 | I56: 0.4021028549 | J56: 0.951802036 | K56: -0.0003223532906 | L56: -0.0008331153361 | M56: 0.9136826278 | N56: 0.5295330498 | O56: 653.0131342 | P56: 197.3948407 | Q56: 1555.424137 | R56: 1096.211453 | S56: 6393.811603 | T56: 8476.625116 | U56: 9433.603266 | V56: 2.162229682 | W56: 2.758361663 | X56: 956.9781503 | Y56: 0.5961319808 | Z56: 34767.96852 | AA56: 45733.62998 | AB56: 10965.66147 | AC56: 0 | AD56: 1
A57: 49 | B57: 0.4001340241 | C57: 0.8081803673 | D57: 0.4605293749 | E57: 1.51496959 | F57: 0.5861000517 | G57: 0.02503636377 | H57: 0.3836816355 | I57: 1.020058088 | J57: 0.9267675382 | K57: -0.002761856946 | L57: -0.0005197035577 | M57: 0.9259533941 | N57: 0.585662077 | O57: 510.4447775 | P57: 262.5652706 | Q57: 1468.517068 | R57: 3274.43107 | S57: 3077.075815 | T57: 9291.363472 | U57: 9377.419565 | V57: 1.455697374 | W57: 1.495924078 | X57: 86.0560924 | Y57: 0.04022670385 | Z57: 19822.58401 | AA57: 20541.062 | AB57: 718.4779845 | AC57: 0 | AD57: 1
A58: 50 | B58: 0.3441886609 | C58: 0.6643108243 | D58: 0.3694368911 | E58: 5.777725459 | F58: 0.5041843395 | G58: 0.03994678762 | H58: 0.1404869473 | I58: 0.6394257343 | J58: 0.9817340496 | K58: -0.001489952773 | L58: -0.0003923975595 | M58: 0.9061551826 | N58: 0.6088997124 | O58: 358.1647403 | P58: 460.0674059 | Q58: 889.8388706 | R58: 1552.572493 | S58: 5318.558914 | T58: 7834.416393 | U58: 7835.529051 | V58: 1.043532386 | W58: 1.110919114 | X58: 1.112658097 | Y58: 0.06738672783 | Z58: 13036.23133 | AA58: 14382.85322 | AB58: 1346.621898 | AC58: 0 | AD58: 1
A59: 51 | B59: 0.1613730538 | C59: 0.8567472808 | D59: 0.2002897978 | E59: 0.7156435267 | F59: 0.4059970255 | G59: 0.1693901869 | H59: -0.1084235887 | I59: 2.034341867 | J59: 0.9583577033 | K59: -0.002856245833 | L59: -0.0005314084824 | M59: 0.9001196449 | N59: 0.5347637421 | O59: 562.4129242 | P59: 108.3745661 | Q59: 448.68547 | R59: 1503.779959 | S59: 6551.581646 | T59: 8639.835075 | U59: 8790.440243 | V59: 1.451366272 | W59: 1.473479964 | X59: 150.6051676 | Y59: 0.02211369174 | Z59: 20387.49037 | AA59: 20679.15904 | AB59: 291.6686671 | AC59: 0 | AD59: 1
A60: 52 | B60: 2.010640442 | C60: 0.4506703615 | D60: 2.872678057 | E60: 2.233851701 | F60: 0.608503108 | G60: 0.02358385555 | H60: 0.01383310447 | I60: 1.866693117 | J60: 0.9469540749 | K60: -0.006414370547 | L60: -0.000605879281 | M60: 0.8821987246 | N60: 0.5265112988 | O60: 532.0816065 | P60: 93.46144578 | Q60: 1131.368362 | R60: 1907.361423 | S60: 5175.584493 | T60: 9299.055318 | U60: 9762.174409 | V60: 2.394885996 | W60: 2.741980101 | X60: 463.1190903 | Y60: 0.3470941058 | Z60: 38598.66459 | AA60: 45077.42762 | AB60: 6478.763025 | AC60: 0 | AD60: 1
A61: 53 | B61: 0.7377794511 | C61: 0.166247277 | D61: 1.933385802 | E61: 1.862477091 | F61: 0.3994966062 | G61: 0.1625215202 | H61: -0.1386197816 | I61: 3.07032444 | J61: 0.9601262517 | K61: -0.003396437741 | L61: -0.0004774094918 | M61: 0.8598476482 | N61: 0.6748508089 | O61: 1123.9118 | P61: 146.2337273 | Q61: 976.9695043 | R61: 1596.71576 | S61: 2774.401604 | T61: 8366.328553 | U61: 8202.572768 | V61: 2.250197569 | W61: 2.327404524 | X61: -163.7557844 | Y61: 0.0772069545 | Z61: 36637.62284 | AA61: 38345.51771 | AB61: 1707.894874 | AC61: 0 | AD61: 1
A62: 54 | B62: 2.42906641 | C62: 0.3895958083 | D62: 4.573348279 | E62: 1.48978654 | F62: 0.4691554667 | G62: 0.07536194844 | H62: 0.07068512183 | I62: 1.759645501 | J62: 0.9743196509 | K62: -0.0009868182576 | L62: -0.0005641883637 | M62: 0.9115106858 | N62: 0.5765150987 | O62: 778.1971248 | P62: 104.8255103 | Q62: 931.6012959 | R62: 2682.01102 | S62: 5349.284454 | T62: 8604.314994 | U62: 8917.312199 | V62: 2.506842869 | W62: 2.735648928 | X62: 312.9972047 | Y62: 0.2288060585 | Z62: 41532.54239 | AA62: 45795.66636 | AB62: 4263.123965 | AC62: 0 | AD62: 1
A63: 55 | B63: 2.168210186 | C63: 0.2442562524 | D63: 3.623570889 | E63: 2.744651123 | F63: 0.3862368263 | G63: 0.01387548086 | H63: 0.3880454085 | I63: 0.5430637437 | J63: 0.920462258 | K63: -0.0009600414553 | L63: -0.0006828355105 | M63: 0.8600216011 | N63: 0.5950304947 | O63: 618.2092772 | P63: 200.5497017 | Q63: 903.2470527 | R63: 4483.528871 | S63: 2597.632937 | T63: 8023.310765 | U63: 8846.706102 | V63: 2.234499988 | W63: 2.995662528 | X63: 823.395337 | Y63: 0.7611625403 | Z63: 36666.68899 | AA63: 51066.54446 | AB63: 14399.85547 | AC63: 0 | AD63: 1
A64: 56 | B64: 0.4014607027 | C64: 0.4664779316 | D64: 0.4895414897 | E64: 3.844254071 | F64: 0.4912383775 | G64: 0.0175885201 | H64: -0.2744205382 | I64: 2.241425395 | J64: 0.9248403643 | K64: -0.002215994066 | L64: -0.0008253331392 | M64: 0.9465855922 | N64: 0.5958472278 | O64: 428.2272953 | P64: 158.3485152 | Q64: 1128.031116 | R64: 1800.779457 | S64: 3506.399236 | T64: 8633.9541 | U64: 8732.476725 | V64: 1.494409586 | W64: 1.554014461 | X64: 98.52262493 | Y64: 0.05960487497 | Z64: 21254.23762 | AA64: 22347.81249 | AB64: 1093.574874 | AC64: 0 | AD64: 1
A65: 57 | B65: 0.3723441202 | C65: 0.4046689904 | D65: 0.6757222413 | E65: 1.518021933 | F65: 0.1710536561 | G65: 0.02391718724 | H65: 0.03281882782 | I65: 2.239188096 | J65: 0.9627371194 | K65: -0.001581053174 | L65: -0.0005354578795 | M65: 0.8625670236 | N65: 0.5251989997 | O65: 343.0518383 | P65: 134.3150219 | Q65: 833.373966 | R65: 2743.474517 | S65: 1977.202878 | T65: 7753.087355 | U65: 7799.792133 | V65: 1.794023148 | W65: 1.978444008 | X65: 46.70477751 | Y65: 0.18442086 | Z65: 28127.37561 | AA65: 31769.08803 | AB65: 3641.712423 | AC65: 0 | AD65: 1
A66: 58 | B66: 1.567980158 | C66: 0.9252686734 | D66: 1.651063764 | E66: 1.50433551 | F66: 0.4060950047 | G66: 0.4711336363 | H66: -0.00631848025 | I66: 0.3576441285 | J66: 0.9505288826 | K66: -0.001718923667 | L66: -0.0004436631189 | M66: 0.9010799979 | N66: 0.5818684857 | O66: 328.8189153 | P66: 230.2795657 | Q66: 714.4217233 | R66: 6886.51686 | S66: 4227.550855 | T66: 7704.056365 | U66: 7654.984567 | V66: 0.9638668637 | W66: 0.9712408447 | X66: -49.0717974 | Y66: 0.007373980982 | Z66: 11573.28091 | AA66: 11769.83233 | AB66: 196.551417 | AC66: 0 | AD66: 1
A67: 59 | B67: 0.9516038431 | C67: 0.6462356391 | D67: 1.329217956 | E67: 1.30638748 | F67: 0.2593829153 | G67: 0.1550384475 | H67: -0.05432997579 | I67: 0.2759670788 | J67: 0.9650148512 | K67: -0.001564397084 | L67: -0.000503911372 | M67: 0.9575706722 | N67: 0.6519556911 | O67: 549.9817553 | P67: 169.1840715 | Q67: 1445.206931 | R67: 4518.356269 | S67: 4819.929566 | T67: 9620.280036 | U67: 9637.277978 | V67: 1.207706479 | W67: 1.389309549 | X67: 16.9979417 | Y67: 0.1816030702 | Z67: 14533.84954 | AA67: 18148.913 | AB67: 3615.063463 | AC67: 0 | AD67: 1
A68: 60 | B68: 3.056998224 | C68: 0.6570194414 | D68: 4.19740811 | E68: 1.324911501 | F68: 0.4341370743 | G68: 0.1134445912 | H68: 0.2110767157 | I68: 0.2303548806 | J68: 0.8872092598 | K68: -0.0007251408584 | L68: -0.000371780432 | M68: 0.8541813861 | N68: 0.5393598021 | O68: 662.3822824 | P68: 317.3855869 | Q68: 801.2075965 | R68: 5265.637317 | S68: 3467.096708 | T68: 7077.392142 | U68: 7125.404204 | V68: 1.64789089 | W68: 1.777274543 | X68: 48.01206229 | Y68: 0.1293836531 | Z68: 25880.42566 | AA68: 28420.08666 | AB68: 2539.661 | AC68: 0 | AD68: 1
A69: 61 | B69: 3.15022709 | C69: 0.6857808206 | D69: 4.113678547 | E69: 1.413554229 | F69: 0.466950801 | G69: 0.02416286662 | H69: -0.1344372583 | I69: 2.22294944 | J69: 0.9668481875 | K69: -0.000821802913 | L69: -0.0006715500922 | M69: 0.9306581591 | N69: 0.6423105177 | O69: 528.991447 | P69: 139.6757021 | Q69: 1751.054014 | R69: 1227.424858 | S69: 3713.219574 | T69: 9116.427435 | U69: 9533.373859 | V69: 3.281551179 | W69: 3.537151023 | X69: 416.946424 | Y69: 0.2555998439 | Z69: 56514.59614 | AA69: 61209.64659 | AB69: 4695.050455 | AC69: 0 | AD69: 1
A70: 62 | B70: 1.372817207 | C70: 0.622104389 | D70: 1.902329401 | E70: 1.455017722 | F70: 0.5194501887 | G70: 0.01544698161 | H70: 0.1669522127 | I70: 2.31766356 | J70: 0.9469699223 | K70: -0.0008354904635 | L70: -0.000628154738 | M70: 0.8929993251 | N70: 0.7001750327 | O70: 522.1198371 | P70: 116.9789405 | Q70: 684.3444352 | R70: 1445.406637 | S70: 10831.35131 | T70: 13200.96949 | U70: 13634.72949 | V70: 2.867064286 | W70: 3.116128639 | X70: 433.7599919 | Y70: 0.2490643533 | Z70: 44140.31623 | AA70: 48687.8433 | AB70: 4547.527073 | AC70: 0 | AD70: 1
A71: 63 | B71: 3.168718572 | C71: 0.7726610076 | D71: 3.659246562 | E71: 1.791946573 | F71: 0.5485215369 | G71: 0.03829770586 | H71: -0.07571436613 | I71: 1.53973099 | J71: 0.9663643169 | K71: -0.001567206196 | L71: -0.0002632179771 | M71: 0.9260435392 | N71: 0.6699281807 | O71: 352.3172748 | P71: 240.5144291 | Q71: 237.4608135 | R71: 3119.871334 | S71: 4789.521431 | T71: 7165.150338 | U71: 7247.532004 | V71: 2.951219165 | W71: 3.050899384 | X71: 82.38166625 | Y71: 0.09968021852 | Z71: 51859.23297 | AA71: 53770.45567 | AB71: 1911.222704 | AC71: 0 | AD71: 1
A72: 64 | B72: 0.8454979966 | C72: 0.9775429927 | D72: 0.8554312568 | E72: 1.944617161 | F72: 0.3463160692 | G72: 0.1171445364 | H72: 0.01945384279 | I72: 0.3812184725 | J72: 0.9391955776 | K72: -0.001802367625 | L72: -0.0004539364195 | M72: 0.8936282451 | N72: 0.5679274381 | O72: 302.5428308 | P72: 34.24915805 | Q72: 1617.619815 | R72: 2454.2785 | S72: 2684.548196 | T72: 6245.560451 | U72: 6426.918449 | V72: 1.082669724 | W72: 1.088039104 | X72: 181.3579984 | Y72: 0.005369380012 | Z72: 15407.83403 | AA72: 15333.86363 | AB72: -73.97039813 | AC72: 1 | AD72: 0
A73: 65 | B73: 1.893534585 | C73: 0.671689719 | D73: 2.144931149 | E73: 3.192296527 | F73: 0.4705535999 | G73: 0.08758525125 | H73: -0.1502063927 | I73: 0.9756214524 | J73: 0.9753220146 | K73: -0.0004364390813 | L73: -0.0004208505644 | M73: 0.896164243 | N73: 0.6165101624 | O73: 872.0822669 | P73: 92.01356644 | Q73: 439.5230835 | R73: 5331.663316 | S73: 4882.836385 | T73: 9017.984173 | U73: 10043.26432 | V73: 1.864150447 | W73: 1.9677821 | X73: =U73-T73 -> 1025.280149 | Y73: =W73-V73 -> 0.1036316526 | Z73: =V73*threshold-T73 -> 28265.02477 | AA73: =W73*threshold-U73 -> 29312.37768 | AB73: =AA73-Z73 -> 1047.352902 | AC73: =1*(Z73>AA73) -> 0 | AD73: 1
A74: 66 | B74: 2.897287944 | C74: 0.7409240952 | D74: 3.501077096 | E74: 1.584068332 | F74: 0.2828696262 | G74: 0.1927816509 | H74: -0.2007315383 | I74: 0.5241646645 | J74: 0.9661251852 | K74: -0.004356145424 | L74: -0.0001700498687 | M74: 0.9244860597 | N74: 0.5552881766 | O74: 557.8256945 | P74: 92.70165855 | Q74: 1439.429435 | R74: 4308.931458 | S74: 5265.129736 | T74: 7776.118366 | U74: 8202.376554 | V74: 1.670257651 | W74: 1.771352804 | X74: 426.2581884 | Y74: 0.1010951529 | Z74: 25629.03465 | AA74: 27224.67952 | AB74: 1595.644869 | AC74: 0 | AD74: =1-AC74 -> 1
A75: 67 | B75: 1.518247891 | C75: 0.3964113933 | D75: 4.824224383 | E75: 0.8003704983 | F75: 0.2752430242 | G75: 0.2969722609 | H75: -0.2626148048 | I75: 0.4060475073 | J75: 0.9719196787 | K75: -0.0006322614495 | L75: -0.000453271023 | M75: 0.839890938 | N75: 0.5149092461 | O75: 196.9592913 | P75: 236.2229952 | Q75: 1146.284283 | R75: 4072.093216 | S75: 9986.364186 | T75: 12777.02729 | U75: 11418.19554 | V75: 0.9897912719 | W75: 1.271348118 | X75: -1358.831753 | Y75: 0.2815568459 | Z75: 7018.798145 | AA75: 14008.76682 | AB75: 6989.96867 | AC75: 0 | AD75: 1
A76: 68 | B76: 0.6503412132 | C76: 0.9559383589 | D76: 0.6849188927 | E76: 0.8698650986 | F76: 0.2191136463 | G76: 0.2313825413 | H76: -0.2232798091 | I76: 1.212642811 | J76: 0.9641831854 | K76: -0.001423929912 | L76: -0.0002400430631 | M76: 0.9064295188 | N76: 0.5498749871 | O76: 491.2076079 | P76: 233.5765799 | Q76: 1216.371973 | R76: 2863.006865 | S76: 4246.735003 | T76: 8010.479022 | U76: 8130.167423 | V76: 1.149316923 | W76: 1.163068412 | X76: 119.6884009 | Y76: 0.01375148907 | Z76: 14975.85944 | AA76: 15131.20082 | AB76: 155.3413804 | AC76: 0 | AD76: 1
A77: 69 | B77: 1.45544297 | C77: 0.4199783464 | D77: 2.19233173 | E77: 2.117760779 | F77: 0.453402391 | G77: 0.1898220712 | H77: 0.4415010435 | I77: 0.837017912 | J77: 0.9565445508 | K77: -0.002207816837 | L77: -0.0009502543189 | M77: 0.9219383488 | N77: 0.5266030102 | O77: 715.2465771 | P77: 188.4491471 | Q77: 515.822023 | R77: 3867.734625 | S77: 13579.00047 | T77: 16008.96141 | U77: 16024.64659 | V77: 1.607125224 | W77: 1.740092336 | X77: 15.68518043 | Y77: 0.1329671117 | Z77: 16133.54307 | AA77: 18777.20012 | AB77: 2643.657054 | AC77: 0 | AD77: 1
A78: 70 | B78: 2.864607161 | C78: 0.3448296258 | D78: 3.80984649 | E78: 3.733740749 | F78: 0.4276847149 | G78: 0.1691034086 | H78: 0.1417335434 | I78: 0.627015702 | J78: 0.9653929174 | K78: -0.0004557175795 | L78: -0.0001491293358 | M78: 0.932418088 | N78: 0.6367961751 | O78: 278.6234077 | P78: 139.4574713 | Q78: 1380.503531 | R78: 1969.500625 | S78: 5680.195647 | T78: 7084.734195 | U78: 6803.375504 | V78: 1.944953508 | W78: 2.034603934 | X78: -281.3586913 | Y78: 0.08965042641 | Z78: 31814.33597 | AA78: 33888.70319 | AB78: 2074.367219 | AC78: 0 | AD78: 1
A79: 71 | B79: 0.6818817374 | C79: 0.281155003 | D79: 1.717054202 | E79: 1.373943175 | F79: 0.3835681927 | G79: 0.1271783112 | H79: -0.06520961961 | I79: 0.6713479635 | J79: 0.9776187356 | K79: -0.001371888174 | L79: -0.0003580994482 | M79: 0.9019073364 | N79: 0.6640974357 | O79: 371.5679189 | P79: 217.6061169 | Q79: 1034.978944 | R79: 3700.03707 | S79: 2625.252562 | T79: 6961.398577 | U79: 6402.99241 | V79: 1.161375836 | W79: 1.611394966 | X79: -558.4061669 | Y79: 0.4500191295 | Z79: 16266.11814 | AA79: 25824.9069 | AB79: 9558.788757 | AC79: 0 | AD79: 1
A80: 72 | B80: 0.1015611788 | C80: 0.3608046313 | D80: 0.1427499272 | E80: 2.994476824 | F80: 0.4894572602 | G80: 0.07705899515 | H80: 0.01327743604 | I80: 2.025816949 | J80: 0.9383913511 | K80: -0.002583535519 | L80: -0.0007939971258 | M80: 0.8150876723 | N80: 0.5967770402 | O80: 380.3946612 | P80: 235.3861607 | Q80: 919.2583978 | R80: 2068.103894 | S80: 3125.551139 | T80: 8037.172276 | U80: 8039.261843 | V80: 1.466754415 | W80: 1.486099816 | X80: 2.089566706 | Y80: 0.01934540141 | Z80: 21297.91602 | AA80: 21682.73448 | AB80: 384.8184615 | AC80: 0 | AD80: 1
A81: 73 | B81: 4.313555808 | C81: 0.6077132319 | D81: 6.693147083 | E81: 1.133684672 | F81: 0.316889717 | G81: 0.005216116041 | H81: 0.1632075863 | I81: 0.2727898798 | J81: 0.9723214209 | K81: -0.001322754554 | L81: -0.0003717124014 | M81: 0.8735540247 | N81: 0.6653919828 | O81: 592.9598927 | P81: 255.4003268 | Q81: 801.6419129 | R81: 3618.784306 | S81: 4728.401024 | T81: 8597.137026 | U81: 9792.293143 | V81: 3.501317653 | W81: 4.418425673 | X81: 1195.156117 | Y81: 0.9171080198 | Z81: 61429.21604 | AA81: 78576.22032 | AB81: 17147.00428 | AC81: 0 | AD81: 1
A82: 74 | B82: 1.800375837 | C82: 0.3882998786 | D82: 3.004082258 | E82: 1.847696196 | F82: 0.1783196497 | G82: 0.411371004 | H82: -0.2809999795 | I82: 0.4109857456 | J82: 0.9871348101 | K82: -0.0006821230186 | L82: -0.0004844720173 | M82: 0.8742188508 | N82: 0.6544809658 | O82: 435.1327683 | P82: 295.8947962 | Q82: 284.2334602 | R82: 902.7432079 | S82: 2931.971696 | T82: 3637.464141 | U82: 3687.970085 | V82: 1.127635479 | W82: 1.279629385 | X82: 50.50594342 | Y82: 0.151993906 | Z82: 18915.24544 | AA82: 21904.61761 | AB82: 2989.372176 | AC82: 0 | AD82: 1
A83: 75 | B83: 0.8132824267 | C83: 0.4087464985 | D83: 1.971438494 | E83: 1.010412679 | F83: 0.3244719684 | G83: 0.2663474213 | H83: -0.04242535003 | I83: 0.9959273515 | J83: 0.9442170522 | K83: -0.002080193456 | L83: -0.0006977265041 | M83: 0.9255735837 | N83: 0.6088055438 | O83: 263.0450096 | P83: 167.6375015 | Q83: 1644.032934 | R83: 2614.332663 | S83: 4619.688919 | T83: 8329.809936 | U83: 7370.609812 | V83: 1.190051856 | W83: 1.402938647 | X83: -959.2001239 | Y83: 0.2128867918 | Z83: 15471.22718 | AA83: 20688.16314 | AB83: 5216.93596 | AC83: 0 | AD83: 1
A84: 76 | B84: 1.49562421 | C84: 0.6540093386 | D84: 1.829095856 | E84: 2.109686026 | F84: 0.3490884059 | G84: 0.1113989884 | H84: -0.1352533169 | I84: 1.258401683 | J84: 0.9673289332 | K84: -0.0002243439488 | L84: -0.0003314995427 | M84: 0.8951375323 | N84: 0.6665183079 | O84: 480.3752849 | P84: 129.7681509 | Q84: 749.4796788 | R84: 2447.706132 | S84: 2212.272154 | T84: 5109.339471 | U84: 5416.964751 | V84: 1.849274335 | W84: 1.973741879 | X84: 307.6252807 | Y84: 0.124467544 | Z84: 31876.14723 | AA84: 34057.87283 | AB84: 2181.725599 | AC84: 0 | AD84: 1
A85: 77 | B85: 1.296150398 | C85: 0.5337325188 | D85: 1.510159971 | E85: 4.108578775 | F85: 0.5933821417 | G85: 0.2546429317 | H85: 0.07443605912 | I85: 0.2607651213 | J85: 0.9354815399 | K85: -0.001627978524 | L85: -0.0005176074742 | M85: 0.9137576195 | N85: 0.5901754993 | O85: 348.3308861 | P85: 237.3283148 | Q85: 1175.139923 | R85: 4588.791563 | S85: 5500.553615 | T85: 9072.354073 | U85: 8827.492136 | V85: 1.178835479 | W85: 1.231854779 | X85: -244.8619375 | Y85: 0.05301930065 | Z85: 14504.3555 | AA85: 15809.60345 | AB85: 1305.247951 | AC85: 0 | AD85: 1
A86: 78 | B86: 1.425581157 | C86: 0.531721344 | D86: 2.051490683 | E86: 1.735324307 | F86: 0.2137266293 | G86: 0.055856242 | H86: 0.117438837 | I86: 0.1228807627 | J86: 0.9711951535 | K86: -0.0008983109283 | L86: -0.0002352513553 | M86: 0.8950961304 | N86: 0.5782369003 | O86: 256.9469633 | P86: 207.1446233 | Q86: 776.3706737 | R86: 1843.373742 | S86: 2276.993979 | T86: 4710.877523 | U86: 4708.358269 | V86: 1.552933611 | W86: 1.906769608 | X86: -2.51925355 | Y86: 0.3538359965 | Z86: 26347.7947 | AA86: 33427.03388 | AB86: 7079.239184 | AC86: 0 | AD86: 1
A87: 79 | B87: 0.6618956001 | C87: 0.73165598 | D87: 0.7227653603 | E87: 3.551446192 | F87: 0.5901915097 | G87: 0.009927295114 | H87: 0.1788893586 | I87: 0.849647917 | J87: 0.942546537 | K87: -0.001712984609 | L87: -0.0008949954458 | M87: 0.8831400074 | N87: 0.5569546393 | O87: 274.9217134 | P87: 218.5580786 | Q87: 1093.923671 | R87: 3108.957916 | S87: 5228.565506 | T87: 9714.983481 | U87: 9741.063078 | V87: 1.305040338 | W87: 1.346373152 | X87: 26.07959696 | Y87: 0.04133281424 | Z87: 16385.82328 | AA87: 17186.39997 | AB87: 800.5766879 | AC87: 0 | AD87: 1
A88: 80 | B88: 0.9711955444 | C88: 0.8067887425 | D88: 1.065544385 | E88: 2.315670844 | F88: 0.3648026802 | G88: 0.06281664947 | H88: 0.5300926187 | I88: 0.3505712113 | J88: 0.9707425924 | K88: -0.0008084340086 | L88: -0.0007545563237 | M88: 0.9520114271 | N88: 0.582940628 | O88: 430.2677883 | P88: 152.831076 | Q88: 1332.962942 | R88: 2647.750768 | S88: 1979.390676 | T88: 6465.860157 | U88: 6672.55308 | V88: 1.646320095 | W88: 1.704880902 | X88: 206.6929222 | Y88: 0.0585608075 | Z88: 26460.54174 | AA88: 27425.06497 | AB88: 964.5232279 | AC88: 0 | AD88: 1
A89: 81 | B89: 0.6237350171 | C89: 0.6008885959 | D89: 0.7269209848 | E89: 3.327052999 | F89: 0.2753454234 | G89: 0.03039817183 | H89: 0.3298813118 | I89: 1.069143846 | J89: 0.9759474051 | K89: -0.001371634148 | L89: -0.0004886605954 | M89: 0.9079264477 | N89: 0.659976847 | O89: 271.093549 | P89: 104.1730365 | Q89: 649.6149094 | R89: 3859.973658 | S89: 4220.659155 | T89: 8982.547011 | U89: 9053.971612 | V89: 1.821656562 | W89: 1.890617515 | X89: 71.42460102 | Y89: 0.06896095271 | Z89: 27450.58424 | AA89: 28758.37869 | AB89: 1307.794453 | AC89: 0 | AD89: 1
A90: 82 | B90: 2.211333978 | C90: 0.6742723611 | D90: 3.032621519 | E90: 1.247884284 | F90: 0.6872047211 | G90: 0.09528831369 | H90: 0.1219688187 | I90: 0.9555542127 | J90: 0.8861371088 | K90: -0.000941573742 | L90: -0.0007331210868 | M90: 0.9168485167 | N90: 0.5707225437 | O90: 454.8914327 | P90: 154.8962701 | Q90: 584.549102 | R90: 4451.241786 | S90: 5057.250811 | T90: 8165.741133 | U90: 8056.116736 | V90: 1.641926367 | W90: 1.732062648 | X90: -109.6243964 | Y90: 0.09013628064 | Z90: 24672.78621 | AA90: 26585.13622 | AB90: 1912.350009 | AC90: 0 | AD90: 1
A91: 83 | B91: 2.315340286 | C91: 0.637886763 | D91: 2.885277887 | E91: 2.04301194 | F91: 0.3565996236 | G91: 0.0373643256 | H91: 0.3074382927 | I91: 0.04437128149 | J91: 0.9336004051 | K91: -0.001130624236 | L91: -0.0007730692141 | M91: 0.8998798934 | N91: 0.5990608335 | O91: 541.0018227 | P91: 113.1747945 | Q91: 1019.98803 | R91: 2684.952666 | S91: 12876.87798 | T91: 3620.915289 | U91: 4991.94598 | V91: 8.904867572 | W91: 8.981309914 | X91: 1371.030691 | Y91: 0.07644234156 | Z91: 174476.4362 | AA91: 174634.2523 | AB91: 157.81614 | AC91: 0 | AD91: 1
A92: 84 | B92: 0.7090335674 | C92: 0.8046080058 | D92: 0.7663847124 | E92: 2.795013257 | F92: 0.1750253875 | G92: 0.5901931763 | H92: 0.1055695017 | I92: 1.015224749 | J92: 0.9552409254 | K92: -0.002318974279 | L92: -0.0005187607137 | M92: 0.8728038541 | N92: 0.6696362442 | O92: 703.6467265 | P92: 210.8868086 | Q92: 554.0186294 | R92: 1612.686676 | S92: 2236.59793 | T92: 3925.879695 | U92: 4140.776188 | V92: 1.140828309 | W92: 1.142914605 | X92: 214.8964933 | Y92: 0.002086296021 | Z92: 18890.68648 | AA92: 18717.51591 | AB92: -173.1705729 | AC92: 1 | AD92: 0
A93: 85 | B93: 3.15228739 | C93: 0.2325521003 | D93: 7.436404417 | E93: 1.699534529 | F93: 0.3389327023 | G93: 0.3165752346 | H93: 0.5252059922 | I93: 1.328641411 | J93: 0.9727047188 | K93: -0.003275434805 | L93: -0.0004429172571 | M93: 0.8954847599 | N93: 0.5243373898 | O93: 372.8963542 | P93: 270.0560993 | Q93: 897.9248072 | R93: 1210.645659 | S93: 4470.055888 | T93: 5742.956319 | U93: 5185.102955 | V93: 1.650866941 | W93: 1.570370769 | X93: -557.8533643 | Y93: -0.0804961717 | Z93: 27274.3825 | AA93: 26222.31243 | AB93: -1052.07007 | AC93: 1 | AD93: 0
A94: 86 | B94: 3.602505183 | C94: 0.7607735494 | D94: 4.168753045 | E94: 1.872897233 | F94: 0.5480322249 | G94: 0.02487397779 | H94: 0.1868033419 | I94: 0.4852762669 | J94: 0.96687352 | K94: -0.004031703555 | L94: -0.0004510933314 | M94: 0.9106516435 | N94: 0.6279587426 | O94: 294.5652547 | P94: 226.8564722 | Q94: 1354.836011 | R94: 3117.703251 | S94: 1864.497266 | T94: 5585.688857 | U94: 5501.103406 | V94: 2.800537148 | W94: 2.967659143 | X94: -84.58545033 | Y94: 0.1671219952 | Z94: 50425.0541 | AA94: 53852.07946 | AB94: 3427.025353 | AC94: 0 | AD94: 1
A95: 87 | B95: 2.918964392 | C95: 0.3856266026 | D95: 6.823891765 | E95: 1.12209673 | F95: 0.2433874223 | G95: 0.0368513522 | H95: 0.09369706615 | I95: 1.045757196 | J95: 0.9697240577 | K95: -0.002525839281 | L95: -0.0005707348025 | M95: 0.8745762493 | N95: 0.572189781 | O95: 253.2791302 | P95: 181.154312 | Q95: 693.7559664 | R95: 2939.520306 | S95: 6312.433412 | T95: 9155.862476 | U95: 8431.848213 | V95: 2.60612413 | W95: 3.603452602 | X95: -724.0142624 | Y95: 0.997328472 | Z95: 42966.62012 | AA95: 63637.20382 | AB95: 20670.5837 | AC95: 0 | AD95: 1
A96: 88 | B96: 2.064295484 | C96: 0.5957795545 | D96: 2.351888499 | E96: 3.970605303 | F96: 0.4431332246 | G96: 0.002556221563 | H96: -0.2080022061 | I96: 0.3939494428 | J96: 0.9608891043 | K96: -0.002455290321 | L96: -0.0004237251925 | M96: 0.9314183513 | N96: 0.6217750776 | O96: 336.6177827 | P96: 409.6631269 | Q96: 1068.156615 | R96: 2614.665724 | S96: 10393.48275 | T96: 13491.30472 | U96: 13321.43172 | V96: 2.080892819 | W96: 2.289713081 | X96: -169.8730066 | Y96: 0.2088202629 | Z96: 28126.55165 | AA96: 32472.82991 | AB96: 4346.278264 | AC96: 0 | AD96: 1
A97: 89 | B97: 1.501618231 | C97: 0.7134842424 | D97: 1.651275692 | E97: 3.553451688 | F97: 0.6503104703 | G97: 0.1546885627 | H97: 0.2159828626 | I97: 1.432347363 | J97: 0.9633807963 | K97: -0.001529977177 | L97: -0.0002414699203 | M97: 0.9380811524 | N97: 0.6034480029 | O97: 1133.574878 | P97: 324.0540842 | Q97: 1784.465768 | R97: 2731.432227 | S97: 4502.187375 | T97: 9492.60892 | U97: 10218.56782 | V97: 2.027500395 | W97: 2.046403761 | X97: 725.9588983 | Y97: 0.01890336522 | Z97: 31057.39899 | AA97: 30709.50739 | AB97: -347.8915939 | AC97: 1 | AD97: 0
A98: 90 | B98: 2.205241709 | C98: 0.466471802 | D98: 2.931122761 | E98: 2.679887307 | F98: 0.1319924295 | G98: 0.04649054988 | H98: -0.07793223153 | I98: 0.200230177 | J98: 0.9357804506 | K98: -0.0003036489272 | L98: -0.000393195151 | M98: 0.9352671283 | N98: 0.6753388342 | O98: 233.3444075 | P98: 237.9413332 | Q98: 1287.673934 | R98: 4174.170884 | S98: 6786.611358 | T98: 11136.47059 | U98: 10865.81678 | V98: 2.049562396 | W98: 2.462297763 | X98: -270.6538041 | Y98: 0.4127353672 | Z98: 29854.77734 | AA98: 38380.13849 | AB98: 8525.361148 | AC98: 0 | AD98: 1
A99: 91 | B99: 0.4412853629 | C99: 0.9458750895 | D99: 0.4522191374 | E99: 2.273522337 | F99: 0.6996805569 | G99: 0.1207496158 | H99: 0.08970520131 | I99: 1.4091002 | J99: 0.9895151239 | K99: -0.002647817672 | L99: -0.000481753019 | M99: 0.8953624079 | N99: 0.4593394719 | O99: 740.5400957 | P99: 284.7856582 | Q99: 366.4587256 | R99: 2208.33557 | S99: 5414.289269 | T99: 7908.84854 | U99: 8080.085173 | V99: 1.27811632 | W99: 1.284062151 | X99: 171.2366323 | Y99: 0.005945830499 | Z99: 17653.47787 | AA99: 17601.15784 | AB99: -52.32002235 | AC99: 1 | AD99: 0
A100: 92 | B100: 1.390817871 | C100: 0.6558466444 | D100: 1.774685356 | E100: 1.730711285 | F100: 0.1041171432 | G100: 0.04144276366 | H100: 0.05399085385 | I100: 0.6864442199 | J100: 0.9646033381 | K100: -0.0006876863518 | L100: -0.0006758109706 | M100: 0.8684019485 | N100: 0.6016592702 | O100: 480.7240178 | P100: 153.7647281 | Q100: 548.6924624 | R100: 3962.30129 | S100: 4790.123749 | T100: 8822.338955 | U100: 9183.905044 | V100: 1.646268479 | W100: 1.871754646 | X100: 361.5660893 | Y100: 0.2254861672 | Z100: 24103.03063 | AA100: 28251.18788 | AB100: 4148.157254 | AC100: 0 | AD100: 1
A101: 93 | B101: 3.604296251 | C101: 0.8393534308 | D101: 3.746862455 | E101: 4.51438883 | F101: 0.2372475115 | G101: 0.06773121397 | H101: 0.1619600649 | I101: 2.262871133 | J101: 0.9672810022 | K101: -0.001246717956 | L101: -0.0005086739504 | M101: 0.9293056426 | N101: 0.5456191164 | O101: 858.7501732 | P101: 185.6246749 | Q101: 569.9946507 | R101: 1555.125502 | S101: 9655.331003 | T101: 10944.51665 | U101: 12709.72935 | V101: 3.451380449 | W101: 3.4882062 | X101: 1765.212697 | Y101: 0.03682575175 | Z101: 58083.09232 | AA101: 57054.39466 | AB101: -1028.697662 | AC101: 1 | AD101: 0
A102: 94 | B102: 0.7789601189 | C102: 0.5836631927 | D102: 1.152208411 | E102: 1.37538787 | F102: 0.3328570613 | G102: 0.1823917654 | H102: 0.05928887918 | I102: 0.400976697 | J102: 0.9444076386 | K102: -0.0003566696107 | L102: -0.0007342118651 | M102: 0.8312750977 | N102: 0.5339122827 | O102: 401.4995637 | P102: 136.0394547 | Q102: 1588.778157 | R102: 4426.684933 | S102: 2444.439226 | T102: 7631.445704 | U102: 7418.021528 | V102: 0.9674625045 | W102: 1.112284355 | X102: -213.4241768 | Y102: 0.1448218502 | Z102: 11717.80438 | AA102: 14827.66557 | AB102: 3109.861181 | AC102: 0 | AD102: 1
A103: 95 | B103: 3.666028665 | C103: 0.7171872984 | D103: 4.222351384 | E103: 2.352850426 | F103: 0.4739324539 | G103: 0.01841484551 | H103: -0.04474914668 | I103: 0.8629315171 | J103: 0.9830204419 | K103: -0.001392221462 | L103: -0.0003454835869 | M103: 0.9267299945 | N103: 0.5154358183 | O103: 761.3259891 | P103: 179.7339851 | Q103: 1492.195445 | R103: 1245.147058 | S103: 7028.241578 | T103: 9040.779285 | U103: 10686.15646 | V103: 3.049975504 | W103: 3.303356929 | X103: 1645.377172 | Y103: 0.2533814255 | Z103: 51958.73079 | AA103: 55380.98213 | AB103: 3422.251339 | AC103: 0 | AD103: 1
A104: 96 | B104: 1.017427129 | C104: 0.5559472811 | D104: 1.330830516 | E104: 2.186311266 | F104: 0.8187300144 | G104: 0.1419422233 | H104: 0.240203526 | I104: 0.7638193639 | J104: 0.9672713201 | K104: -0.002486211265 | L104: -0.0003831331811 | M104: 0.826164333 | N104: 0.5653119891 | O104: 812.8388561 | P104: 381.3869597 | Q104: 810.3159999 | R104: 4966.117724 | S104: 2645.824416 | T104: 7736.210379 | U104: 7713.058024 | V104: 1.327488362 | W104: 1.406024002 | X104: -23.15235553 | Y104: 0.07853564013 | Z104: 18813.55686 | AA104: 20407.42202 | AB104: 1593.865158 | AC104: 0 | AD104: 1
A105: 97 | B105: 0.4742119341 | C105: 0.3622463792 | D105: 0.7637016608 | E105: 2.13091699 | F105: 0.3740659012 | G105: 0.1607201186 | H105: 0.05112392059 | I105: 0.844722576 | J105: 0.9519835111 | K105: -0.001570966447 | L105: -0.000310317157 | M105: 0.9262793701 | N105: 0.6007212811 | O105: 423.4728644 | P105: 154.5969751 | Q105: 905.3410045 | R105: 4047.172226 | S105: 1913.460223 | T105: 6754.106863 | U105: 6660.352112 | V105: 1.095689508 | W105: 1.24634229 | X105: -93.75475116 | Y105: 0.1506527824 | Z105: 15159.6833 | AA105: 18266.49369 | AB105: 3106.810398 | AC105: 0 | AD105: 1
A106: 98 | B106: 0.4262772712 | C106: 0.262223591 | D106: 1.921268266 | E106: 0.8890227014 | F106: 0.1937446869 | G106: 0.009233244432 | H106: -0.1305348377 | I106: 2.518316815 | J106: 0.9529614274 | K106: -0.001927447237 | L106: -0.0005317546054 | M106: 0.9589794989 | N106: 0.601131986 | O106: 763.9078202 | P106: 286.5589434 | Q106: 1256.73604 | R106: 996.6977117 | S106: 6523.473815 | T106: 11889.07043 | U106: 12463.72267 | V106: 2.065442455 | W106: 3.138648069 | X106: 574.6522359 | Y106: 1.073205614 | Z106: 29419.77866 | AA106: 50309.23871 | AB106: 20889.46005 | AC106: 0 | AD106: 1
A107: 99 | B107: 1.843641346 | C107: 0.5753449096 | D107: 2.230214265 | E107: 2.903971081 | F107: 0.06584713724 | G107: 0.3368767857 | H107: -0.1505316006 | I107: 1.510186339 | J107: 0.9742462193 | K107: -0.0003970408499 | L107: -0.0006502323563 | M107: 0.8574718749 | N107: 0.6284205005 | O107: 259.8532099 | P107: 286.2314294 | Q107: 78.96527432 | R107: 1408.463036 | S107: 4194.194642 | T107: 5048.71531 | U107: 4952.613949 | V107: 1.630626974 | W107: 1.681732826 | X107: -96.10136107 | Y107: 0.05110585201 | Z107: 27563.82416 | AA107: 28682.04256 | AB107: 1118.218401 | AC107: 0 | AD107: 1
A108: 100 | B108: 0.9502768271 | C108: 0.4083466135 | D108: 1.666033943 | E108: 1.595230814 | F108: 0.4683881235 | G108: 0.0338150929 | H108: -0.001768985481 | I108: 0.3848362013 | J108: 0.9614913499 | K108: -0.001269776564 | L108: -0.0004640893209 | M108: 0.874628822 | N108: 0.5598194545 | O108: 355.8536832 | P108: 392.0624748 | Q108: 1043.754403 | R108: 3654.852746 | S108: 4942.55554 | T108: 9399.585396 | U108: 9192.940801 | V108: 1.211518034 | W108: 1.638636802 | X108: -206.6445951 | Y108: 0.4271187679 | Z108: 14830.77529 | AA108: 23579.79524 | AB108: 8749.019952 | AC108: 0 | AD108: 1
A109: 101 | B109: 1.414906505 | C109: 0.7808686876 | D109: 1.54958686 | E109: 2.720358006 | F109: 0.2610375773 | G109: 0.06889661604 | H109: -0.2901207455 | I109: 4.156591168 | J109: 0.9609031669 | K109: -0.006329450214 | L109: -0.0002853211505 | M109: 0.9363314744 | N109: 0.583073798 | O109: 384.8163361 | P109: 118.1912329 | Q109: 973.0363646 | R109: 2374.10712 | S109: 4500.113031 | T109: 11923.67352 | U109: 12137.82257 | V109: 2.98765833 | W109: 3.037373361 | X109: 214.149054 | Y109: 0.04971503164 | Z109: 47829.49308 | AA109: 48609.64466 | AB109: 780.1515787 | AC109: 0 | AD109: 1
A110: 102 | B110: 0.8544595162 | C110: 0.7390340929 | D110: 1.090800404 | E110: 1.238385871 | F110: 0.5609973785 | G110: 0.0226502656 | H110: 0.0587734922 | I110: 2.134703646 | J110: 0.9301110417 | K110: -0.001874950404 | L110: -0.0004491215361 | M110: 0.873480525 | N110: 0.5934348923 | O110: 477.7305703 | P110: 419.8503478 | Q110: 590.2238471 | R110: 5647.043338 | S110: 7033.768121 | T110: 13809.92754 | U110: 13773.98468 | V110: 2.238549682 | W110: 2.361204929 | X110: -35.94285968 | Y110: 0.1226552464 | Z110: 30961.0661 | AA110: 33450.11389 | AB110: 2489.047788 | AC110: 0 | AD110: 1
A111: 103 | B111: 0.6559175581 | C111: 0.4732758704 | D111: 1.475583179 | E111: 0.9226705891 | F111: 0.4665998769 | G111: 0.08737476114 | H111: 0.1300227885 | I111: 0.4606346199 | J111: 0.8824289153 | K111: -0.001436602447 | L111: -0.0008757543739 | M111: 0.8191630411 | N111: 0.5721445018 | O111: 311.6296232 | P111: 151.0978917 | Q111: 1456.636682 | R111: 3939.035784 | S111: 3028.171455 | T111: 8122.040863 | U111: 7584.439123 | V111: 0.9971079155 | W111: 1.301990839 | X111: -537.60174 | Y111: 0.3048829232 | Z111: 11820.11745 | AA111: 18455.37765 | AB111: 6635.260205 | AC111: 0 | AD111: 1
A112: 104 | B112: 2.962348773 | C112: 0.3194569016 | D112: 8.94629201 | E112: 1.032459627 | F112: 0.1394447051 | G112: 0.06590470693 | H112: 0.04541740714 | I112: 0.7201941796 | J112: 0.9395118555 | K112: -0.001258387428 | L112: -0.0004919659918 | M112: 0.9384396668 | N112: 0.512121388 | O112: 746.2250094 | P112: 89.94791303 | Q112: 1982.450572 | R112: 3610.515909 | S112: 4713.818825 | T112: 8930.322348 | U112: 9543.203333 | V112: 2.343606098 | W112: 3.636436966 | X112: 612.8809851 | Y112: 1.292830868 | Z112: 37941.79962 | AA112: 63185.53599 | AB112: 25243.73637 | AC112: 0 | AD112: 1
A113: 105 | B113: 0.7371257671 | C113: 0.3175386336 | D113: 1.181934185 | E113: 2.429647867 | F113: 0.201643543 | G113: 0.02658102479 | H113: -0.270638308 | I113: 0.5591129641 | J113: 0.9257415374 | K113: -0.001412284351 | L113: -0.0005244404561 | M113: 0.9007588559 | N113: 0.6389048495 | O113: 410.7170174 | P113: 190.9845343 | Q113: 737.8912524 | R113: 1783.602025 | S113: 13650.3704 | T113: 15409.29816 | U113: 15477.70472 | V113: 1.025971175 | W113: 1.320091396 | X113: 68.40656183 | Y113: 0.2941202211 | Z113: 5110.125337 | AA113: 10924.1232 | AB113: 5813.99786 | AC113: 0 | AD113: 1
A114: 106 | B114: 0.8357830302 | C114: 0.4915737499 | D114: 1.426325456 | E114: 1.328642776 | F114: 0.3204266502 | G114: 0.02009153444 | H114: 0.03275081157 | I114: 1.144981288 | J114: 0.9458488202 | K114: -0.003882872384 | L114: -0.001048743798 | M114: 0.9141023714 | N114: 0.5478276083 | O114: 418.3172023 | P114: 195.7827121 | Q114: 900.9062449 | R114: 3700.04285 | S114: 13852.53964 | T114: 17907.73016 | U114: 17892.70756 | V114: 1.484516363 | W114: 1.86777166 | X114: -15.02259598 | Y114: 0.3832552977 | Z114: 11782.59709 | AA114: 19462.72564 | AB114: 7680.128549 | AC114: 0 | AD114: 1
A115: 107 | B115: 1.716544181 | C115: 0.477845972 | D115: 2.337323424 | E115: 2.392234214 | F115: 0.7467151985 | G115: 0.05707755049 | H115: 0.2042443287 | I115: 1.737567782 | J115: 0.9721018886 | K115: -0.004795866637 | L115: -0.0004645659814 | M115: 0.8549436765 | N115: 0.6183914504 | O115: 552.5695245 | P115: 236.9861273 | Q115: 802.9402764 | R115: 2168.753233 | S115: 5539.680422 | T115: 8933.503811 | U115: 9005.973851 | V115: 2.449126928 | W115: 2.547154714 | X115: 72.47004024 | Y115: 0.09802778659 | Z115: 40049.03475 | AA115: 41937.12044 | AB115: 1888.085691 | AC115: 0 | AD115: 1
A116: 108 | B116: 0.5202244454 | C116: 0.5446492242 | D116: 0.6858529929 | E116: 2.198287988 | F116: 0.7730209599 | G116: 0.1158989795 | H116: 0.212037421 | I116: 0.862933396 | J116: 0.9750577736 | K116: -0.0003906272257 | L116: -0.0003630345031 | M116: 0.826715191 | N116: 0.6017757576 | O116: 281.144666 | P116: 290.8391969 | Q116: 641.1608107 | R116: 2792.139661 | S116: 3320.507985 | T116: 6788.586872 | U116: 6697.047007 | V116: 1.261532125 | W116: 1.336395614 | X116: -91.53986484 | Y116: 0.0748634888 | Z116: 18442.05563 | AA116: 20030.86527 | AB116: 1588.809641 | AC116: 0 | AD116: 1
A117: 109 | B117: 1.935152711 | C117: 0.4307775015 | D117: 2.741126613 | E117: 2.418739942 | F117: 0.4611922704 | G117: 0.0292712962 | H117: -0.406624015 | I117: 1.578362081 | J117: 0.9629237443 | K117: -0.002197945008 | L117: -0.0001300816094 | M117: 0.9138206509 | N117: 0.6473488252 | O117: 289.5068545 | P117: 100.4143407 | Q117: 508.090437 | R117: 663.6858893 | S117: 3147.346447 | T117: 4340.557004 | U117: 4641.582434 | V117: 2.345870757 | W117: 2.758657339 | X117: 301.0254295 | Y117: 0.4127865816 | Z117: 42576.85814 | AA117: 50531.56434 | AB117: 7954.706203 | AC117: 0 | AD117: 1
A118: 110 | B118: 3.464200179 | C118: 0.5496075189 | D118: 4.079768507 | E118: 3.659552783 | F118: 0.2157194907 | G118: 0.4113277224 | H118: 0.2670833607 | I118: 1.02299673 | J118: 0.9308661572 | K118: -0.002940212456 | L118: -0.0007293045254 | M118: 0.9077255319 | N118: 0.5877607644 | O118: 250.5219875 | P118: 133.8490605 | Q118: 1180.892024 | R118: 1824.964002 | S118: 8664.464547 | T118: 9063.310778 | U118: 9043.475858 | V118: 1.413185782 | W118: 1.410472462 | X118: -19.83491996 | Y118: -0.002713320716 | Z118: 19200.40487 | AA118: 19165.97338 | AB118: -34.43149435 | AC118: 1 | AD118: 0
A119: 111 | B119: 2.315890081 | C119: 0.6464003566 | D119: 2.718773635 | E119: 2.720524312 | F119: 0.3908471454 | G119: 0.04530724613 | H119: -0.1600654202 | I119: 0.4577626435 | J119: 0.9819684101 | K119: -0.003624289969 | L119: -0.0005169363134 | M119: 0.9167841043 | N119: 0.5775156586 | O119: 336.6468453 | P119: 121.8627084 | Q119: 663.3356813 | R119: 1271.412774 | S119: 5534.161915 | T119: 6779.060249 | U119: 7139.336782 | V119: 2.059401579 | W119: 2.27250329 | X119: 360.276533 | Y119: 0.2131017112 | Z119: 34408.97132 | AA119: 38310.72902 | AB119: 3901.757691 | AC119: 0 | AD119: 1
A120: 112 | B120: 3.684040215 | C120: 0.3668178398 | D120: 5.923012165 | E120: 2.112080405 | F120: 0.1548646836 | G120: 0.01317617974 | H120: -0.1606998425 | I120: 1.344380088 | J120: 0.937301284 | K120: -0.0005819022626 | L120: -0.0006714815309 | M120: 0.9180160958 | N120: 0.6757491865 | O120: 544.5529168 | P120: 149.9619374 | Q120: 860.30861 | R120: 6813.46273 | S120: 8224.959681 | T120: 14466.40659 | U120: 15265.92167 | V120: 3.423998647 | W120: 4.549491323 | X120: 799.5150819 | Y120: 1.125492675 | Z120: 54013.56636 | AA120: 75723.90478 | AB120: 21710.33842 | AC120: 0 | AD120: 1
A121: 113 | B121: 4.329343424 | C121: 0.3656078609 | D121: 6.629084501 | E121: 2.361675896 | F121: 0.2299599891 | G121: 0.1592149708 | H121: 0.09171217089 | I121: 2.738934641 | J121: 0.9339540741 | K121: -0.002174110651 | L121: -0.0003157554788 | M121: 0.9243545846 | N121: 0.5097281445 | O121: 267.1803416 | P121: 185.0641679 | Q121: 1048.432254 | R121: 1793.247651 | S121: 6090.651326 | T121: 8349.408281 | U121: 7507.551431 | V121: 2.63691446 | W121: 2.647860273 | X121: -841.8568495 | Y121: 0.01094581229 | Z121: 44388.88093 | AA121: 45449.65402 | AB121: 1060.773095 | AC121: 0 | AD121: 1
A122: 114 | B122: 2.001639857 | C122: 0.5609470777 | D122: 2.350208161 | E122: 3.601214948 | F122: 0.3424994428 | G122: 0.01219450597 | H122: -0.04790203569 | I122: 2.218056026 | J122: 0.9445845253 | K122: -0.0004278672825 | L122: -0.0004995051605 | M122: 0.9121887404 | N122: 0.5571148012 | O122: 622.714462 | P122: 303.5753522 | Q122: 868.4355137 | R122: 2762.207423 | S122: 3587.785663 | T122: 9022.513961 | U122: 9614.269372 | V122: 2.893005693 | W122: 3.100047171 | X122: 591.7554107 | Y122: 0.2070414771 | Z122: 48837.59991 | AA122: 52386.67404 | AB122: 3549.074132 | AC122: 0 | AD122: 1
A123: 115 | B123: 1.522161015 | C123: 0.7732560807 | D123: 1.696995786 | E123: 2.365020255 | F123: 0.2692778342 | G123: 0.01556298545 | H123: -0.2067548335 | I123: 2.272460608 | J123: 0.9478894809 | K123: -0.004362385847 | L123: -0.0004136938723 | M123: 0.9183179617 | N123: 0.6868101401 | O123: 977.6104743 | P123: 187.2347914 | Q123: 716.5156988 | R123: 1303.777781 | S123: 4805.732166 | T123: 7894.37759 | U123: 9003.392277 | V123: 2.779147393 | W123: 2.88074182 | X123: 1109.014687 | Y123: 0.1015944268 | Z123: 47688.57028 | AA123: 48611.44413 | AB123: 922.8738491 | AC123: 0 | AD123: 1
A124: 116 | B124: 0.4974644821 | C124: 0.5209880722 | D124: 0.641160309 | E124: 2.56951475 | F124: 0.1463153443 | G124: 0.01715141921 | H124: -0.1146895481 | I124: 1.034054726 | J124: 0.9671202935 | K124: -0.002254647266 | L124: -0.0003765408885 | M124: 0.8981925344 | N124: 0.6166586079 | O124: 891.6646247 | P124: 175.8381516 | Q124: 633.642001 | R124: 2019.085628 | S124: 3568.611332 | T124: 6273.518999 | U124: 6662.552716 | V124: 1.196969624 | W124: 1.298303376 | X124: 389.0337178 | Y124: 0.1013337521 | Z124: 17665.87347 | AA124: 19303.5148 | AB124: 1637.641323 | AC124: 0 | AD124: 1
A125: 117 | B125: 2.838503176 | C125: 0.4546433074 | D125: 5.784213933 | E125: 1.107306169 | F125: 0.5304032595 | G125: 0.2033671485 | H125: -0.1268597318 | I125: 1.441857655 | J125: 0.955051824 | K125: -0.001703691119 | L125: -0.0001738168361 | M125: 0.8857230747 | N125: 0.5579255236 | O125: 621.4096562 | P125: 279.6533607 | Q125: 769.2767458 | R125: 2914.247726 | S125: 2467.04091 | T125: 4608.402967 | U125: 4386.740229 | V125: 1.566206574 | W125: 1.606514885 | X125: -221.6627381 | Y125: 0.04030831125 | Z125: 26715.72851 | AA125: 27743.55748 | AB125: 1027.828963 | AC125: 0 | AD125: 1
A126: 118 | B126: 0.8638866378 | C126: 0.4822286153 | D126: 1.205695237 | E126: 2.187769697 | F126: 0.5755340713 | G126: 0.0740323476 | H126: 0.4490757842 | I126: 1.114029295 | J126: 0.9853384144 | K126: -0.001770541001 | L126: -0.0005796376415 | M126: 0.929555423 | N126: 0.560262265 | O126: 176.7860395 | P126: 135.9548515 | Q126: 1112.047239 | R126: 2598.716499 | S126: 5105.435176 | T126: 9568.731347 | U126: 9370.959055 | V126: 1.880767144 | W126: 2.051688707 | X126: -197.7722924 | Y126: 0.1709215632 | Z126: 28046.61153 | AA126: 31662.81508 | AB126: 3616.203556 | AC126: 0 | AD126: 1
A127: 119 | B127: 1.289747702 | C127: 0.5400669525 | D127: 1.496110826 | E127: 4.150737438 | F127: 0.4324391527 | G127: 0.03065032747 | H127: -0.052699663 | I127: 3.535589177 | J127: 0.9166686608 | K127: -0.0003530493925 | L127: -0.0003787398191 | M127: 0.8793167206 | N127: 0.5769587009 | O127: 748.346551 | P127: 143.6845382 | Q127: 1148.367868 | R127: 1831.14689 | S127: 4947.458864 | T127: 12593.91321 | U127: 13241.12629 | V127: 2.876460345 | W127: 2.970893101 | X127: 647.2130813 | Y127: 0.09443275582 | Z127: 44935.2937 | AA127: 46176.73574 | AB127: 1241.442035 | AC127: 0 | AD127: 1
A128: 120 | B128: 0.5393648084 | C128: 0.8419174136 | D128: 0.6211071296 | E128: 1.219414862 | F128: 0.3049883024 | G128: 0.03287786924 | H128: 0.1275799019 | I128: 1.931982878 | J128: 0.9842719419 | K128: -0.001568259715 | L128: -0.0003948462454 | M128: 0.8894220652 | N128: 0.6113162593 | O128: 130.4073702 | P128: 176.9538939 | Q128: 657.7516211 | R128: 3399.059245 | S128: 5328.717296 | T128: 10254.54714 | U128: 10199.36458 | V128: 2.241245861 | W128: 2.291843831 | X128: -55.18255971 | Y128: 0.05059797002 | Z128: 34570.37007 | AA128: 35637.51203 | AB128: 1067.14196 | AC128: 0 | AD128: 1
A129: 121 | B129: 0.1612072085 | C129: 0.5503532314 | D129: 0.2272998696 | E129: 1.73815602 | F129: 0.2792415022 | G129: 0.1858922818 | H129: -0.1717329888 | I129: 1.369119966 | J129: 0.958929655 | K129: -0.001143709464 | L129: -0.0005867834331 | M129: 0.8266930256 | N129: 0.6132052264 | O129: 1237.199116 | P129: 290.02801 | Q129: 767.6025795 | R129: 3668.029531 | S129: 7500.048977 | T129: 11954.72282 | U129: 12082.48502 | V129: 1.1097658 | W129: 1.14024307 | X129: 127.7622005 | Y129: 0.0304772704 | Z129: 10240.59318 | AA129: 10722.37638 | AB129: 481.7832075 | AC129: 0 | AD129: 1
A130: 122 | B130: 1.346910055 | C130: 0.6060539132 | D130: 1.72929042 | E130: 2.003962608 | F130: 0.305027711 | G130: 0.004148447747 | H130: 0.1093258774 | I130: 0.7200937959 | J130: 0.9863451449 | K130: -0.00107833546 | L130: -0.0006250019967 | M130: 0.923661202 | N130: 0.5856171643 | O130: 390.2795145 | P130: 244.4440813 | Q130: 353.0131692 | R130: 2836.367252 | S130: 4808.235216 | T130: 7854.140676 | U130: 8053.510992 | V130: 1.813516003 | W130: 2.088766571 | X130: 199.3703161 | Y130: 0.2752505675 | Z130: 28416.17939 | AA130: 33721.82042 | AB130: 5305.641034 | AC130: 0 | AD130: 1
A131: 123 | B131: 3.588442971 | C131: 0.7299772726 | D131: 4.067237481 | E131: 2.512997057 | F131: 0.3101153169 | G131: 0.005136431845 | H131: 0.2744851185 | I131: 1.465485039 | J131: 0.9606116644 | K131: -0.001398003217 | L131: -0.000908377292 | M131: 0.9035567358 | N131: 0.6198885993 | O131: 194.6482041 | P131: 101.6640757 | Q131: 604.2637269 | R131: 1987.975405 | S131: 2465.929249 | T131: 5541.044722 | U131: 5787.695705 | V131: 3.777466088 | W131: 4.037489514 | X131: 246.6509835 | Y131: 0.2600234263 | Z131: 70008.27704 | AA131: 74962.09458 | AB131: 4953.817543 | AC131: 0 | AD131: 1
A132: 124 | B132: 1.104095144 | C132: 0.3062004435 | D132: 6.523986507 | E132: 0.6662214104 | F132: 0.4095006732 | G132: 0.1106487891 | H132: -0.08377001639 | I132: 1.27509389 | J132: 0.9385771913 | K132: -0.001934801581 | L132: -0.000363531851 | M132: 0.8510672223 | N132: 0.6032922814 | O132: 249.5536471 | P132: 161.9545453 | Q132: 1563.425603 | R132: 6209.466706 | S132: 2615.661962 | T132: 9584.398243 | U132: 6579.914046 | V132: 1.546355031 | W132: 1.983478327 | X132: -3004.484197 | Y132: 0.4371232955 | Z132: 21342.70238 | AA132: 33089.65249 | AB132: 11746.95011 | AC132: 0 | AD132: 1
A133: 125 | B133: 2.276580693 | C133: 0.5167034577 | D133: 2.931918661 | E133: 2.610008042 | F133: 0.6717871328 | G133: 0.1370592121 | H133: 0.09134628515 | I133: 1.104939294 | J133: 0.9689679353 | K133: -0.002372082194 | L133: -0.0002073666573 | M133: 0.9261458139 | N133: 0.6296399459 | O133: 458.4313348 | P133: 98.6606642 | Q133: 481.7460924 | R133: 4993.869474 | S133: 4547.170235 | T133: 7350.650528 | U133: 7179.240032 | V133: 1.89102929 | W133: 1.923001911 | X133: -171.4104957 | Y133: 0.03197262125 | Z133: 30469.93527 | AA133: 31280.79819 | AB133: 810.8629207 | AC133: 0 | AD133: 1
A134: 126 | B134: 1.303727141 | C134: 0.6292666278 | D134: 1.575126851 | E134: 2.449387185 | F134: 0.2412673992 | G134: 0.2201194195 | H134: -0.1701014104 | I134: 0.9237379791 | J134: 0.9578901203 | K134: -0.004621694237 | L134: -0.0008625608673 | M134: 0.8984869307 | N134: 0.5729764274 | O134: 1051.759662 | P134: 181.2526482 | Q134: 981.1516748 | R134: 3534.034389 | S134: 5926.825225 | T134: 9137.304692 | U134: 9864.764821 | V134: 1.299814521 | W134: 1.394805314 | X134: 727.4601292 | Y134: 0.09499079288 | Z134: 16858.98574 | AA134: 18031.34147 | AB134: 1172.355728 | AC134: 0 | AD134: 1
A135: 127 | B135: 0.1284148999 | C135: 0.9002041087 | D135: 0.1378395153 | E135: 1.484444194 | F135: 0.2292148441 | G135: 0.0258305366 | H135: 0.1209419151 | I135: 0.8813706609 | J135: 0.9070386654 | K135: -0.00186411805 | L135: -0.0006557976852 | M135: 0.8459709877 | N135: 0.5326686704 | O135: 468.9637054 | P135: 372.4324564 | Q135: 518.591133 | R135: 3939.505489 | S135: 4373.975889 | T135: 8884.703585 | U135: 8895.903807 | V135: 0.83542337 | W135: 0.8413804597 | X135: 11.20022168 | Y135: 0.005957089695 | Z135: 7823.763815 | AA135: 7931.705387 | AB135: 107.9415722 | AC135: 0 | AD135: 1
A136: 128 | B136: 3.192397993 | C136: 0.3168114901 | D136: 6.595647727 | E136: 1.584052821 | F136: 0.3773221392 | G136: 0.07829501262 | H136: -0.1457610946 | I136: 0.6071661388 | J136: 0.960128081 | K136: -0.0003158833784 | L136: -0.0007161092779 | M136: 0.9067214061 | N136: 0.5606146701 | O136: 132.048461 | P136: 247.4775679 | Q136: 862.5400695 | R136: 1902.297042 | S136: 5228.470684 | T136: 6942.105519 | U136: 5914.792477 | V136: 2.129305295 | W136: 2.669740779 | X136: -1027.313042 | Y136: 0.5404354842 | Z136: 35644.00038 | AA136: 47480.02311 | AB136: 11836.02273 | AC136: 0 | AD136: 1
A137: 129 | B137: 0.571470059 | C137: 0.4786921077 | D137: 0.8288481994 | E137: 1.981302497 | F137: 0.3228285422 | G137: 0.06904756625 | H137: 0.02010532732 | I137: 1.274898838 | J137: 0.9489192735 | K137: -0.00195805298 | L137: -0.0002266720542 | M137: 0.8092305539 | N137: 0.596193901 | O137: 817.2492701 | P137: 204.8161317 | Q137: 411.5783412 | R137: 1330.203111 | S137: 3685.72341 | T137: 5514.572554 | U137: 5909.171821 | V137: 1.412875517 | W137: 1.543400085 | X137: =U137-T137 -> 394.5992665 | Y137: =W137-V137 -> 0.1305245682 | Z137: =V137*threshold-T137 -> 22742.93779 | AA137: =W137*threshold-U137 -> 24958.82988 | AB137: =AA137-Z137 -> 2215.892097 | AC137: =1*(Z137>AA137) -> 0 | AD137: 1
A138: 130 | B138: 0.675541475 | C138: 0.5384319177 | D138: 0.8613605044 | E138: 2.547727868 | F138: 0.1856707535 | G138: 0.1927780405 | H138: -0.3024265877 | I138: 0.1666394358 | J138: 0.9500601845 | K138: -0.006492695983 | L138: -0.0005956375558 | M138: 0.8780671057 | N138: 0.5543959346 | O138: 249.6066859 | P138: 137.3910562 | Q138: 319.6332045 | R138: 2946.138085 | S138: 5206.149963 | T138: 7828.877913 | U138: 7793.666118 | V138: 0.7952693694 | W138: 0.8940572962 | X138: -35.21179546 | Y138: 0.09878792676 | Z138: 8076.509476 | AA138: 10087.47981 | AB138: 2010.970331 | AC138: 0 | AD138: =1-AC138 -> 1
A139: 131 | B139: 1.054712031 | C139: 0.4877224546 | D139: 2.290212902 | E139: 0.9260124635 | F139: 0.2904528194 | G139: 0.001695676119 | H139: 0.09426648955 | I139: 0.7413369043 | J139: 0.9264166267 | K139: -0.002298253098 | L139: -0.0006817310146 | M139: 0.890181272 | N139: 0.513284066 | O139: 621.7535505 | P139: 243.6671601 | Q139: 635.840545 | R139: 2513.032592 | S139: 3595.351021 | T139: 6819.67889 | U139: 7620.048046 | V139: 1.485679449 | W139: 2.347801587 | X139: 800.3691561 | Y139: 0.8621221387 | Z139: 22893.91008 | AA139: 39335.9837 | AB139: 16442.07362 | AC139: 0 | AD139: 1
A140: 132 | B140: 0.8771614498 | C140: 0.4387515993 | D140: 1.173997342 | E140: 2.826353865 | F140: 0.4182097847 | G140: 0.0008396107506 | H140: -0.343993263 | I140: 0.2646209558 | J140: 0.9763205653 | K140: -0.00412595507 | L140: -0.0002084773181 | M140: 0.8977300976 | N140: 0.6518883508 | O140: 342.1297531 | P140: 127.3978398 | Q140: 818.2636325 | R140: 2319.72035 | S140: 4519.049801 | T140: 7221.004587 | U140: 7408.245765 | V140: 1.118896614 | W140: 1.336424987 | X140: 187.2411782 | Y140: 0.2175283732 | Z140: 15156.9277 | AA140: 19320.25398 | AB140: 4163.326286 | AC140: 0 | AD140: 1
A141: 133 | B141: 0.6969302961 | C141: 0.2616872675 | D141: 1.275501593 | E141: 2.218041537 | F141: 0.5615933127 | G141: 0.04941166704 | H141: 0.05676546006 | I141: 1.517670853 | J141: 0.9748282552 | K141: -0.001026889815 | L141: -0.0005770455061 | M141: 0.9169004906 | N141: 0.5706044848 | O141: 299.4420062 | P141: 306.1100057 | Q141: 388.95228 | R141: 1187.614723 | S141: 2701.770103 | T141: 4649.506483 | U141: 4628.475122 | V141: 1.750927914 | W141: 2.07910506 | X141: -21.03136147 | Y141: 0.3281771465 | Z141: 30369.05179 | AA141: 36953.62609 | AB141: 6584.574292 | AC141: 0 | AD141: 1
A142: 134 | B142: 1.139131714 | C142: 0.6841121992 | D142: 1.534649882 | E142: 1.27378373 | F142: 0.7382228758 | G142: 0.02922305555 | H142: -0.1365221178 | I142: 1.051681724 | J142: 0.9654987482 | K142: -0.002331655702 | L142: -0.0005947918541 | M142: 0.8302404066 | N142: 0.6328433169 | O142: 492.6640621 | P142: 56.54111892 | Q142: 1314.031467 | R142: 4526.169497 | S142: 2095.191825 | T142: 7768.49449 | U142: 8004.145511 | V142: 1.550368231 | W142: 1.73462045 | X142: 235.6510213 | Y142: 0.1842522192 | Z142: 23238.87013 | AA142: 26688.26349 | AB142: 3449.393362 | AC142: 0 | AD142: 1
A143: 135 | B143: 1.241231248 | C143: 0.4823807591 | D143: 2.074213416 | E143: 1.419771188 | F143: 0.1594238062 | G143: 0.04197426383 | H143: 0.1795786848 | I143: 0.3483202191 | J143: 0.9869803349 | K143: -0.000949389587 | L143: -0.0008032261631 | M143: 0.9166976415 | N143: 0.4776650332 | O143: 436.0374372 | P143: 117.8495272 | Q143: 619.6557535 | R143: 2023.879149 | S143: 2813.223413 | T143: 5275.629503 | U143: 5665.478779 | V143: 1.484183444 | W143: 2.008808794 | X143: 389.8492756 | Y143: 0.5246253498 | Z143: 24408.03938 | AA143: 34510.6971 | AB143: 10102.65772 | AC143: 0 | AD143: 1
A144: 136 | B144: 2.150064865 | C144: 0.6588870603 | D144: 2.531991146 | E144: 2.551576375 | F144: 0.9836459727 | G144: 0.07028711771 | H144: -0.2177481987 | I144: 1.918562364 | J144: 0.9792719891 | K144: -0.002160548452 | L144: -0.0001727718817 | M144: 0.8605619681 | N144: 0.598363099 | O144: 254.2130916 | P144: 101.2877097 | Q144: 1203.816481 | R144: 2635.428142 | S144: 2419.792499 | T144: 5938.0036 | U144: 5634.088418 | V144: 2.20603142 | W144: 2.182355558 | X144: -303.9151825 | Y144: -0.02367586242 | Z144: 38182.62481 | AA144: 38013.02274 | AB144: -169.6020659 | AC144: 1 | AD144: 0
A145: 137 | B145: 1.802584594 | C145: 0.478303429 | D145: 3.172509061 | E145: 1.304631737 | F145: 0.2335313142 | G145: 0.130190803 | H145: -0.09846516395 | I145: 0.4807710927 | J145: 0.9604480244 | K145: -0.0003059811391 | L145: -0.0006428241203 | M145: 0.8960320438 | N145: 0.6196587458 | O145: 470.2804068 | P145: 204.8946124 | Q145: 793.6478278 | R145: 2919.523456 | S145: 4988.756383 | T145: 7621.706191 | U145: 7556.9048 | V145: 1.552988218 | W145: 1.955449531 | X145: -64.80139102 | Y145: 0.4024613138 | Z145: 23438.05816 | AA145: 31552.08583 | AB145: 8114.027667 | AC145: 0 | AD145: 1
A146: 138 | B146: 3.848073516 | C146: 0.712914075 | D146: 4.611707929 | E146: 1.869317452 | F146: 0.2441283365 | G146: 0.1873472489 | H146: 0.2364664702 | I146: 2.195494613 | J146: 0.9583669566 | K146: -0.001874048245 | L146: -0.0004001529295 | M146: 0.8731060427 | N146: 0.5464196811 | O146: 905.2957472 | P146: 244.9333362 | Q146: 454.3706866 | R146: 4742.501629 | S146: 3592.730821 | T146: 6251.102614 | U146: 7233.02741 | V146: 2.338848975 | W146: 2.335766156 | X146: 981.9247963 | Y146: -0.003082819099 | Z146: 40525.87689 | AA146: 39482.29571 | AB146: -1043.581178 | AC146: 1 | AD146: 0
A147: 139 | B147: 3.006752587 | C147: 0.3497857962 | D147: 5.18092952 | E147: 1.930505893 | F147: 0.3402894836 | G147: 0.05928586823 | H147: 0.2027522102 | I147: 0.0744532531 | J147: 0.9846860048 | K147: -0.001736801621 | L147: -0.0007265042157 | M147: 0.9322102588 | N147: 0.6455039604 | O147: 624.9455731 | P147: 172.9136974 | Q147: 1516.261849 | R147: 2237.935807 | S147: 4340.506598 | T147: 11194.28661 | U147: 10358.43907 | V147: 1.610986395 | W147: 2.458542238 | X147: -835.8475346 | Y147: 0.8475558432 | Z147: 21025.4413 | AA147: 38812.40569 | AB147: 17786.9644 | AC147: 0 | AD147: 1
A148: 140 | B148: 1.307086688 | C148: 0.5869517483 | D148: 1.71739843 | E148: 1.951624344 | F148: 0.5149258394 | G148: 0.1130734445 | H148: -0.1577125959 | I148: 0.8241649344 | J148: 0.9414598248 | K148: -0.00153756661 | L148: -0.0001370783044 | M148: 0.9104131907 | N148: 0.5673456008 | O148: 571.9996032 | P148: 367.9496026 | Q148: 1540.029233 | R148: 2012.711628 | S148: 2894.46642 | T148: 6091.991213 | U148: 6140.611576 | V148: 1.354930171 | W148: 1.520658247 | X148: 48.62036307 | Y148: 0.1657280756 | Z148: 21006.61222 | AA148: 24272.55337 | AB148: 3265.94115 | AC148: 0 | AD148: 1
A149: 141 | B149: 0.656292323 | C149: 0.8993947453 | D149: 0.8090551228 | E149: 0.5067039484 | F149: 0.3541393959 | G149: 0.02497709369 | H149: 0.07015782506 | I149: 0.2419349153 | J149: 0.9451504715 | K149: -0.0004381753538 | L149: -0.0007034746968 | M149: 0.8914124315 | N149: 0.5748784656 | O149: 423.8578357 | P149: 171.8686865 | Q149: 1229.635533 | R149: 3316.341228 | S149: 5117.43085 | T149: 9088.803188 | U149: 9395.741927 | V149: 1.209233032 | W149: 1.334452305 | X149: 306.9387392 | Y149: 0.1252192727 | Z149: 15095.85746 | AA149: 17293.30417 | AB149: 2197.446714 | AC149: 0 | AD149: 1
A150: 142 | B150: 0.827836819 | C150: 0.4813775959 | D150: 1.13801719 | E150: 2.297429407 | F150: 0.1064925348 | G150: 0.003491384917 | H150: -0.02948888336 | I150: 0.5028273782 | J150: 0.9288092061 | K150: -0.0003358802619 | L150: -0.0005845634768 | M150: 0.8795796927 | N150: 0.5746696495 | O150: 297.6695241 | P150: 364.9374889 | Q150: 722.7487819 | R150: 1757.531518 | S150: 4616.498559 | T150: 7064.266543 | U150: 7028.505283 | V150: 1.146046514 | W150: 1.355271904 | X150: -35.76125976 | Y150: 0.2092253906 | Z150: 15856.66373 | AA150: 20076.9328 | AB150: 4220.269071 | AC150: 0 | AD150: 1
A151: 143 | B151: 5.854300143 | C151: 0.5714510158 | D151: 9.868339458 | E151: 1.071667152 | F151: 0.3669157576 | G151: 0.03849444432 | H151: 0.007043237235 | I151: 0.364325169 | J151: 0.9497026324 | K151: -0.003389230516 | L151: -0.0003892507942 | M151: 0.9133725323 | N151: 0.5792290351 | O151: 351.3893614 | P151: 118.8259474 | Q151: 793.3711452 | R151: 3244.40399 | S151: 5207.208569 | T151: 7021.933295 | U151: 7230.928966 | V151: 2.935007761 | W151: 3.342126142 | X151: 208.9956714 | Y151: 0.407118381 | Z151: 51678.22192 | AA151: 59611.59386 | AB151: 7933.371948 | AC151: 0 | AD151: 1
A152: 144 | B152: 0.521830312 | C152: 0.7156056154 | D152: 1.20036584 | E152: 0.4016930808 | F152: 0.5701157689 | G152: 0.04799225561 | H152: 0.272594994 | I152: 0.3060723485 | J152: 0.9500812562 | K152: -0.0002524253769 | L152: -0.0005867327706 | M152: 0.8320699394 | N152: 0.6820967459 | O152: 702.3029834 | P152: 139.2814659 | Q152: 1072.127038 | R152: 3722.327992 | S152: 2084.043097 | T152: 6312.459628 | U152: 7066.916983 | V152: 1.274350114 | W152: 1.509704937 | X152: 754.4573547 | Y152: 0.2353548229 | Z152: 19174.54265 | AA152: 23127.18175 | AB152: 3952.639103 | AC152: 0 | AD152: 1
A153: 145 | B153: 2.793853777 | C153: 0.7111115505 | D153: 3.23184731 | E153: 2.341010464 | F153: 0.3366497595 | G153: 0.1675922544 | H153: 0.08279589434 | I153: 0.6320423309 | J153: 0.9273510369 | K153: -0.002780373191 | L153: -0.0005408822756 | M153: 0.9156237744 | N153: 0.6339854846 | O153: 509.7361106 | P153: 241.2580604 | Q153: 735.8545802 | R153: 3752.605432 | S153: 4477.108527 | T153: 6860.27963 | U153: 7078.419859 | V153: 1.815873684 | W153: 1.886284345 | X153: 218.1402295 | Y153: 0.07041066105 | Z153: 29457.19405 | AA153: 30647.26704 | AB153: 1190.072991 | AC153: 0 | AD153: 1
A154: 146 | B154: 2.378348013 | C154: 0.6621012055 | D154: 3.49760115 | E154: 1.06914087 | F154: 0.5737403815 | G154: 0.004732202849 | H154: -0.06333832111 | I154: 2.407847606 | J154: 0.9414356744 | K154: -0.002361985848 | L154: -0.0006956854357 | M154: 0.893739583 | N154: 0.6190824792 | O154: 203.9375071 | P154: 239.8049562 | Q154: 654.9894621 | R154: 2823.875902 | S154: 9700.835351 | T154: 13173.71934 | U154: 12649.70105 | V154: 2.954830029 | W154: 3.338815317 | X154: -524.0182855 | Y154: 0.3839852881 | Z154: 45922.88124 | AA154: 54126.60529 | AB154: 8203.724047 | AC154: 0 | AD154: 1
A155: 147 | B155: 0.3621622159 | C155: 0.7741683984 | D155: 0.4159941949 | E155: 1.847074269 | F155: 0.1635917351 | G155: 0.2448396333 | H155: -0.2735960325 | I155: 0.7969799298 | J155: 0.9592170961 | K155: -0.001281663098 | L155: -0.0004128796098 | M155: 0.8982908858 | N155: 0.5589511339 | O155: 357.4726603 | P155: 107.4451867 | Q155: 898.9237538 | R155: 1794.130187 | S155: 6602.057728 | T155: 8823.428624 | U155: 8873.768035 | V155: 0.7544448784 | W155: 0.7837822562 | X155: 50.33941163 | Y155: 0.0293373778 | Z155: 6265.468945 | AA155: 6801.877089 | AB155: 536.4081444 | AC155: 0 | AD155: 1
A156: 148 | B156: 3.630554598 | C156: 0.5108547807 | D156: 5.608541337 | E156: 1.544405147 | F156: 0.4591396865 | G156: 0.09700011884 | H156: -0.1782961215 | I156: 0.3033209478 | J156: 0.9571002851 | K156: -0.001001774705 | L156: -0.0002689315622 | M156: 0.8917654132 | N156: 0.5791466247 | O156: 552.6937411 | P156: 226.4344438 | Q156: 389.3983587 | R156: 1128.326541 | S156: 5161.617837 | T156: 5890.642741 | U156: 6467.421305 | V156: 1.959946203 | W156: 2.184144813 | X156: 576.7785648 | Y156: 0.22419861 | Z156: 33308.28132 | AA156: 37215.47495 | AB156: 3907.193635 | AC156: 0 | AD156: 1
A157: 149 | B157: 0.1143631634 | C157: 0.4487416613 | D157: 0.2036296728 | E157: 1.388931542 | F157: 0.2060584934 | G157: 0.1401120696 | H157: -0.2366911779 | I157: 2.371168623 | J157: 0.9412722587 | K157: -0.001434974082 | L157: -0.0005279273785 | M157: 0.8708357005 | N157: 0.5467586259 | O157: 984.1744761 | P157: 165.7974436 | Q157: 609.5954089 | R157: 2557.397805 | S157: 5482.35885 | T157: 9542.13478 | U157: 9626.972222 | V157: 1.494898553 | W157: 1.53626953 | X157: 84.83744201 | Y157: 0.04137097729 | Z157: 20355.83628 | AA157: 21098.41838 | AB157: 742.5821038 | AC157: 0 | AD157: 1
A158: 150 | B158: 4.088718726 | C158: 0.3670628262 | D158: 8.092257443 | E158: 1.468078761 | F158: 0.2886957836 | G158: 0.07501604234 | H158: -0.07038357947 | I158: 1.358879212 | J158: 0.930488261 | K158: -0.001542317377 | L158: -0.0002411042377 | M158: 0.8683380669 | N158: 0.5816594328 | O158: 244.6774771 | P158: 147.8266153 | Q158: 643.8866099 | R158: 3343.95485 | S158: 2925.533656 | T158: 5513.099974 | U158: 4762.406055 | V158: 2.57617728 | W158: 2.970820493 | X158: -750.6939191 | Y158: 0.3946432133 | Z158: 46010.44562 | AA158: 54654.00381 | AB158: 8643.558185 | AC158: 0 | AD158: 1
A159: 151 | B159: 0.004343037754 | C159: 0.4285019517 | D159: 0.01110997216 | E159: 0.9022547749 | F159: 0.4604212793 | G159: 0.01879319634 | H159: -0.3063669117 | I159: 0.6914703438 | J159: 0.9627178961 | K159: -0.001000161733 | L159: -0.0008523059292 | M159: 0.9049179849 | N159: 0.553623087 | O159: 306.8535161 | P159: 219.1515092 | Q159: 501.2907019 | R159: 3126.470425 | S159: 7513.510796 | T159: 10754.6805 | U159: 10842.53155 | V159: 0.163927976 | W159: 0.3722299336 | X159: 87.85105246 | Y159: 0.2083019576 | Z159: -7476.12098 | AA159: -3397.93288 | AB159: 4078.1881 | AC159: 0 | AD159: 1
A160: 152 | B160: 1.891884351 | C160: 0.3174510371 | D160: 2.579608257 | E160: 3.700626086 | F160: 0.4925273193 | G160: 0.08488518708 | H160: -0.2110232308 | I160: 1.233135214 | J160: 0.9688389877 | K160: -0.0005693295599 | L160: -0.0002003555313 | M160: 0.8854139846 | N160: 0.6564372089 | O160: 206.9657128 | P160: 175.5711911 | Q160: 1457.707053 | R160: 3723.836764 | S160: 9099.664602 | T160: 13004.15483 | U160: 12374.01218 | V160: 2.001100904 | W160: 2.234869698 | X160: -630.142654 | Y160: 0.2337687948 | Z160: 27017.86324 | AA160: 32323.38179 | AB160: 5305.51855 | AC160: 0 | AD160: 1
A161: 153 | B161: 0.5856825937 | C161: 0.6391489181 | D161: 0.7017195418 | E161: 2.476367344 | F161: 0.4411690121 | G161: 0.1684677663 | H161: 0.1572602319 | I161: 2.340548475 | J161: 0.9520006313 | K161: -0.0004163652941 | L161: -0.000234834374 | M161: 0.90756814 | N161: 0.5264233653 | O161: 148.3321746 | P161: 112.4390053 | Q161: 1092.434478 | R161: 1886.517825 | S161: 6442.472672 | T161: 11649.66969 | U161: 11524.77092 | V161: 2.224790841 | W161: 2.2527264 | X161: -124.8987723 | Y161: 0.02793555873 | Z161: 32846.14713 | AA161: 33529.75708 | AB161: 683.6099469 | AC161: 0 | AD161: 1
A162: 154 | B162: 1.443630914 | C162: 0.7192101816 | D162: 1.576524268 | E162: 3.742870774 | F162: 0.2774052845 | G162: 0.05205388065 | H162: 0.2833846119 | I162: 0.8433089351 | J162: 0.9647106243 | K162: -0.002061640218 | L162: -0.0003609475486 | M162: 0.9112760468 | N162: 0.5702366314 | O162: 544.688114 | P162: 219.0310186 | Q162: 1314.316031 | R162: 2670.780083 | S162: 5900.178497 | T162: 10012.02245 | U162: 10389.97627 | V162: 1.922565292 | W162: 2.000881503 | X162: 377.9538159 | Y162: 0.07831621139 | Z162: 28439.28338 | AA162: 29627.65379 | AB162: 1188.370412 | AC162: 0 | AD162: 1
A163: 155 | B163: 1.803609813 | C163: 0.520044582 | D163: 3.49007526 | E163: 0.9904679002 | F163: 0.2004129507 | G163: 0.1705714145 | H163: 0.6181924335 | I163: 1.359889925 | J163: 0.9676635904 | K163: -0.0007477773886 | L163: -0.0006371780134 | M163: 0.8377078775 | N163: 0.5836280098 | O163: 334.276791 | P163: 236.5302598 | Q163: 966.6197087 | R163: 966.9913869 | S163: 9245.975878 | T163: 11356.18925 | U163: 10914.97196 | V163: 2.225070217 | W163: 2.33184526 | X163: -441.2172922 | Y163: 0.1067750428 | Z163: 33145.21509 | AA163: 35721.93324 | AB163: 2576.718147 | AC163: 0 | AD163: 1
A164: 156 | B164: 0.652786628 | C164: 0.4353267256 | D164: 0.8658102688 | E164: 2.944804755 | F164: 0.4951050648 | G164: 0.1220621927 | H164: 0.3163865531 | I164: 0.3852881494 | J164: 0.8769053669 | K164: -0.0007356116858 | L164: -0.0003699800196 | M164: 0.8644225163 | N164: 0.5359082046 | O164: 751.4947642 | P164: 27.11391751 | Q164: 687.8478003 | R164: 5654.122178 | S164: 6871.269165 | T164: 12439.0262 | U164: 12701.1556 | V164: 1.024085541 | W164: 1.125043121 | X164: 262.1293963 | Y164: 0.1009575795 | Z164: 8042.684626 | AA164: 9799.70682 | AB164: 1757.022194 | AC164: 0 | AD164: 1
A165: 157 | B165: 1.149871173 | C165: 0.3131468857 | D165: 1.546666561 | E165: 3.916595392 | F165: 0.7243630241 | G165: 0.4310371368 | H165: -0.1753759854 | I165: 0.929516388 | J165: 0.9326074485 | K165: -0.001541962332 | L165: -0.000506898419 | M165: 0.8781168435 | N165: 0.5573614563 | O165: 912.9322953 | P165: 195.2912005 | Q165: 1179.70693 | R165: 2911.623175 | S165: 2734.717111 | T165: 4930.146831 | U165: 4958.315606 | V165: 0.9358121993 | W165: 0.9533866285 | X165: 28.16877465 | Y165: 0.01757442926 | Z165: 13786.09715 | AA165: 14109.41697 | AB165: 323.3198106 | AC165: 0 | AD165: 1
A166: 158 | B166: 1.223887768 | C166: 0.4573910916 | D166: 3.083781184 | E166: 0.8464410208 | F166: 0.4651195861 | G166: 0.05858487804 | H166: -0.1410951334 | I166: 0.147939061 | J166: 0.9457450245 | K166: -0.001771082709 | L166: -0.0005779894348 | M166: 0.9300123128 | N166: 0.4315466321 | O166: 309.2986884 | P166: 317.5160788 | Q166: 1115.253228 | R166: 4453.684242 | S166: 3767.837254 | T166: 8421.752726 | U166: 7436.565993 | V166: 1.234413537 | W166: 1.86610405 | X166: -985.1867335 | Y166: 0.631690513 | Z166: 16266.51802 | AA166: 29885.51501 | AB166: 13618.99699 | AC166: 0 | AD166: 1
A167: 159 | B167: 1.518672624 | C167: 0.9165793986 | D167: 1.602039274 | E167: 1.629967578 | F167: 0.2026458463 | G167: 0.177778222 | H167: 0.05952479066 | I167: 0.5840235826 | J167: 0.9303308392 | K167: -0.00313801877 | L167: -0.0009239874661 | M167: 0.9125020819 | N167: 0.7058169537 | O167: 505.8534322 | P167: 220.6184192 | Q167: 1696.022174 | R167: 2701.208168 | S167: 10156.54079 | T167: 13185.99489 | U167: 13448.54487 | V167: 1.507753781 | W167: 1.535902241 | X167: 262.5499871 | Y167: 0.02814846041 | Z167: 16969.08073 | AA167: 17269.49995 | AB167: 300.4192211 | AC167: 0 | AD167: 1
A168: 160 | B168: 0.5462320029 | C168: 0.6682400754 | D168: 0.712189408 | E168: 1.519440727 | F168: 0.07705312999 | G168: 0.02220744927 | H168: 0.2964870766 | I168: 2.222876187 | J168: 0.9645078175 | K168: -0.003097295282 | L168: -0.0003643247986 | M168: 0.9347406838 | N168: 0.5865919753 | O168: 296.4542716 | P168: 148.7262205 | Q168: 741.4489758 | R168: 3270.701333 | S168: 2944.549587 | T168: 9087.242399 | U168: 9134.173008 | V168: 2.481727497 | W168: 2.587623309 | X168: 46.93060939 | Y168: 0.1058958118 | Z168: 40547.30754 | AA168: 42618.29316 | AB168: 2070.985626 | AC168: 0 | AD168: 1
A169: 161 | B169: 0.4203197568 | C169: 0.6628039833 | D169: 0.6995810341 | E169: 0.8072689365 | F169: 0.1514545152 | G169: 0.03393578422 | H169: 0.3527482389 | I169: 0.243240422 | J169: 0.9353762045 | K169: -0.001287888374 | L169: -0.0002498808469 | M169: 0.9256397876 | N169: 0.5843852022 | O169: 557.1841545 | P169: 165.2296574 | Q169: 1463.88663 | R169: 1612.983266 | S169: 1625.012316 | T169: 5178.953002 | U169: 5427.103578 | V169: 1.159253844 | W169: 1.378431621 | X169: 248.1505761 | Y169: 0.2191777765 | Z169: 18006.12388 | AA169: 22141.52884 | AB169: 4135.404954 | AC169: 0 | AD169: 1
A170: 162 | B170: 0.05548623208 | C170: 0.4606073659 | D170: 0.08032425674 | E170: 2.09551859 | F170: 0.2059793798 | G170: 0.2659840407 | H170: -0.008790424238 | I170: 1.663243529 | J170: 0.945435964 | K170: -0.0006702261381 | L170: -0.0003771293783 | M170: 0.8785457935 | N170: 0.5964483382 | O170: 521.5260155 | P170: 154.3286416 | Q170: 890.4155971 | R170: 4897.173141 | S170: 8483.370409 | T170: 14886.45132 | U170: 14866.78427 | V170: 1.434710491 | W170: 1.44307358 | X170: -19.66705075 | Y170: 0.008363088495 | Z170: 13807.75851 | AA170: 13994.68733 | AB170: 186.9288206 | AC170: 0 | AD170: 1
A171: 163 | B171: 2.261166535 | C171: 0.550205078 | D171: 2.691255947 | E171: 3.431195296 | F171: 0.423181365 | G171: 0.1179482727 | H171: 0.03535744343 | I171: 0.6716408054 | J171: 0.9488950959 | K171: -0.001574038172 | L171: -0.0007300167071 | M171: 0.9295115858 | N171: 0.5832275446 | O171: 381.4870381 | P171: 156.3161185 | Q171: 937.0175581 | R171: 1588.799017 | S171: 1179.410416 | T171: 3092.772968 | U171: 3328.010209 | V171: 1.8766229 | W171: 2.009543673 | X171: 235.2372404 | Y171: 0.1329207734 | Z171: 34439.68503 | AA171: 36862.86326 | AB171: 2423.178227 | AC171: 0 | AD171: 1
A172: 164 | B172: 1.027452775 | C172: 0.5309115265 | D172: 1.20574667 | E172: 3.956845878 | F172: 0.154941808 | G172: 0.07995622588 | H172: -0.1109478309 | I172: 0.994486617 | J172: 0.9717914737 | K172: -0.001708813358 | L172: -0.001519647541 | M172: 0.8858946627 | N172: 0.605315572 | O172: 447.6568517 | P172: 75.04031168 | Q172: 772.3832301 | R172: 4461.601791 | S172: 2529.900203 | T172: 7353.005733 | U172: 7631.66691 | V172: 1.464958941 | W172: 1.56774397 | X172: 278.6611769 | Y172: 0.1027850284 | Z172: 21946.17309 | AA172: 23723.21248 | AB172: 1777.039391 | AC172: 0 | AD172: 1
A173: 165 | B173: 1.549664312 | C173: 0.4153542388 | D173: 2.698302384 | E173: 1.584291564 | F173: 0.4477892744 | G173: 0.0964688161 | H173: 0.02200507505 | I173: 0.9263369681 | J173: 0.9382224838 | K173: -0.0009931998454 | L173: -0.0007088261193 | M173: 0.8610245391 | N173: 0.7140454335 | O173: 1419.838226 | P173: 202.8676205 | Q173: 726.9795951 | R173: 2484.091614 | S173: 4276.314827 | T173: 6956.44905 | U173: 8528.719232 | V173: 1.717425189 | W173: 2.001359536 | X173: 1572.270182 | Y173: 0.283934347 | Z173: 27392.05473 | AA173: 31498.47149 | AB173: 4106.416758 | AC173: 0 | AD173: 1
A174: 166 | B174: 2.231603131 | C174: 0.3163530927 | D174: 4.048479065 | E174: 1.932262645 | F174: 0.0672486726 | G174: 0.04413851261 | H174: -0.3115023545 | I174: 0.8388388814 | J174: 0.9359501909 | K174: -0.001503790124 | L174: -0.0002512952757 | M174: 0.904955641 | N174: 0.6340426004 | O174: 628.5733522 | P174: 150.2863963 | Q174: 316.4257078 | R174: 1788.636101 | S174: 6485.33351 | T174: 7960.196637 | U174: 9098.496688 | V174: 2.01613132 | W174: 2.954981208 | X174: 1138.300051 | Y174: 0.9388498875 | Z174: 32362.42977 | AA174: 50001.12747 | AB174: 17638.6977 | AC174: 0 | AD174: 1
A175: 167 | B175: 1.244341202 | C175: 0.3623845793 | D175: 2.368130395 | E175: 1.577401492 | F175: 0.1865653579 | G175: 0.0664614409 | H175: -0.03208392065 | I175: 1.255038101 | J175: 0.9373916207 | K175: -0.003075835626 | L175: -0.0007519899288 | M175: 0.8949071166 | N175: 0.5991914031 | O175: 403.8164281 | P175: 160.5930298 | Q175: 608.4267131 | R175: 2955.564595 | S175: 4950.722574 | T175: 8278.973871 | U175: 8316.715988 | V175: 1.734890183 | W175: 2.262759104 | X175: 37.74211767 | Y175: 0.5278689214 | Z175: 26418.82979 | AA175: 36938.4661 | AB175: 10519.63631 | AC175: 0 | AD175: 1
A176: 168 | B176: 1.965379734 | C176: 0.4727300382 | D176: 2.858699079 | E176: 1.999648876 | F176: 0.1990307533 | G176: 0.002590317537 | H176: 0.02341567159 | I176: 0.8023734599 | J176: 0.9606480068 | K176: -0.003602109707 | L176: -0.0005192983983 | M176: 0.9163603271 | N176: 0.6454385865 | O176: 639.6766822 | P176: 277.2742168 | Q176: 1162.897171 | R176: 5624.094905 | S176: 5095.540819 | T176: 11785.98603 | U176: 12530.04454 | V176: 2.235063347 | W176: 2.827329092 | X176: 744.0585088 | Y176: 0.5922657449 | Z176: 32915.28092 | AA176: 44016.53731 | AB176: 11101.25639 | AC176: 0 | AD176: 1
A177: 169 | B177: 1.959448612 | C177: 0.3891518906 | D177: 2.830098845 | E177: 2.567086448 | F177: 0.1374001144 | G177: 0.003071260444 | H177: 0.1710699585 | I177: 0.3509537413 | J177: 0.9773486528 | K177: -0.0003629357949 | L177: -0.0007153151935 | M177: 0.8729008528 | N177: 0.6143087144 | O177: 199.3450233 | P177: 195.848521 | Q177: 1632.381393 | R177: 4858.459906 | S177: 8104.324074 | T177: 14076.31451 | U177: 13848.21247 | V177: 2.114852212 | W177: 2.688151753 | X177: -228.1020387 | Y177: 0.5732995414 | Z177: 28220.72973 | AA177: 39914.8226 | AB177: 11694.09287 | AC177: 0 | AD177: 1
A178: 170 | B178: 0.7928551856 | C178: 1.091964864 | D178: 0.7755160533 | E178: 3.978793182 | F178: 0.06304649584 | G178: 0.1156203754 | H178: -0.2759453757 | I178: 0.6437646206 | J178: 0.90732632 | K178: -0.001715563196 | L178: -0.0005097732313 | M178: 0.8786870905 | N178: 0.4496906205 | O178: 641.9234729 | P178: 75.2454747 | Q178: 1184.889536 | R178: 3880.144508 | S178: 4036.193911 | T178: 8325.989671 | U178: 8713.889976 | V178: 0.8719714925 | W178: 0.8616011386 | X178: 387.9003057 | Y178: -0.01037035395 | Z178: 9113.44018 | AA178: 8518.132795 | AB178: -595.3073846 | AC178: 1 | AD178: 0
A179: 171 | B179: 1.589816988 | C179: 0.4660378705 | D179: 2.261760054 | E179: 2.165774649 | F179: 0.4187061062 | G179: 0.09037933036 | H179: -0.1619834872 | I179: 1.410854399 | J179: 0.9426172682 | K179: -0.002288606204 | L179: -0.0005742891468 | M179: 0.8615643723 | N179: 0.5123426178 | O179: 862.9155567 | P179: 80.64337267 | Q179: 1107.168146 | R179: 5174.572784 | S179: 13298.85365 | T179: 17938.01261 | U179: 18425.19535 | V179: 1.691427197 | W179: 1.927351376 | X179: 487.1827478 | Y179: 0.2359241796 | Z179: 15890.53132 | AA179: 20121.83217 | AB179: 4231.300845 | AC179: 0 | AD179: 1
A180: 172 | B180: 3.145701718 | C180: 0.8049033262 | D180: 3.441680063 | E180: 2.413550372 | F180: 0.5118165711 | G180: 0.05341351827 | H180: -0.0824288834 | I180: 0.5921751356 | J180: 0.9584059606 | K180: -0.001919651441 | L180: -0.0002746387143 | M180: 0.8702017162 | N180: 0.616823732 | O180: 287.2000535 | P180: 237.247291 | Q180: 899.9636223 | R180: 5230.00521 | S180: 3722.900837 | T180: 7813.66522 | U180: 7683.163012 | V180: 2.251605329 | W180: 2.336849346 | X180: -130.502208 | Y180: 0.08524401639 | Z180: 37218.44137 | AA180: 39053.8239 | AB180: 1835.382536 | AC180: 0 | AD180: 1
A181: 173 | B181: 2.16928926 | C181: 0.6737026587 | D181: 2.521347262 | E181: 2.626214768 | F181: 0.2735951282 | G181: 0.02563251531 | H181: -0.2399731599 | I181: 0.8005312277 | J181: 0.9586537763 | K181: -0.00418656536 | L181: -0.00056314482 | M181: 0.8695672498 | N181: 0.6274545442 | O181: 406.2897604 | P181: 138.1603393 | Q181: 1644.366452 | R181: 3072.607228 | S181: 6935.382996 | T181: 10733.36695 | U181: 11156.21867 | V181: 2.024493379 | W181: 2.225599216 | X181: 422.851718 | Y181: 0.2011058365 | Z181: 29756.50064 | AA181: 33355.76565 | AB181: 3599.265012 | AC181: 0 | AD181: 1
A182: 174 | B182: 1.931645309 | C182: 0.4731943683 | D182: 3.943614013 | E182: 1.048371003 | F182: 0.2133616432 | G182: 0.002781833969 | H182: 0.1108169149 | I182: 0.4028914723 | J182: 0.9443619933 | K182: -0.0007101406946 | L182: -0.0008380820773 | M182: 0.8756108219 | N182: 0.6275709923 | O182: 736.545825 | P182: 103.685672 | Q182: 972.7616306 | R182: 2737.644782 | S182: 4321.431177 | T182: 7699.333071 | U182: 9485.473007 | V182: 2.101972981 | W182: 3.303226791 | X182: 1786.139936 | Y182: 1.20125381 | Z182: 34340.12654 | AA182: 56579.06281 | AB182: 22238.93626 | AC182: 0 | AD182: 1
A183: 175 | B183: 0.8022652347 | C183: 0.5893041402 | D183: 1.023435533 | E183: 2.171884226 | F183: 0.3617160613 | G183: 0.04891672753 | H183: 0.01663134627 | I183: 1.704795266 | J183: 0.9048177275 | K183: -0.002465353495 | L183: -0.0002147183245 | M183: 0.9156929163 | N183: 0.6258219073 | O183: 223.786259 | P183: 191.3950787 | Q183: 866.1614862 | R183: 3056.870521 | S183: 9649.806712 | T183: 13835.91698 | U183: 13753.33316 | V183: 1.970212621 | W183: 2.087587708 | X183: -82.58381652 | Y183: 0.1173750875 | Z183: 25568.33544 | AA183: 27998.421 | AB183: 2430.085567 | AC183: 0 | AD183: 1
A184: 176 | B184: 0.5403002557 | C184: 0.7096581227 | D184: 0.6241946441 | E184: 2.376184785 | F184: 1.096745918 | G184: 0.01480943742 | H184: -0.12164305 | I184: 0.5907803026 | J184: 0.9484208347 | K184: -0.003077914798 | L184: -0.0005743302483 | M184: 0.8911295511 | N184: 0.5710206447 | O184: 655.690148 | P184: 114.0595451 | Q184: 1940.223783 | R184: 3172.959842 | S184: 3935.863646 | T184: 8822.919128 | U184: 9092.426699 | V184: 0.9375539244 | W184: 0.9953297592 | X184: 269.507571 | Y184: 0.05777583483 | Z184: 9928.15936 | AA184: 10814.16849 | AB184: 886.0091257 | AC184: 0 | AD184: 1
A185: 177 | B185: 2.632741773 | C185: 0.5496649817 | D185: 4.590250164 | E185: 1.076519016 | F185: 0.1963182374 | G185: 0.0174642574 | H185: 0.1108426578 | I185: 1.790281977 | J185: 0.9113689724 | K185: -0.002718284621 | L185: -0.0008431958171 | M185: 0.8952357745 | N185: 0.6306568911 | O185: 994.2985412 | P185: 241.0555387 | Q185: 978.3325775 | R185: 5803.318987 | S185: 3854.49009 | T185: 11439.23656 | U185: 13235.04664 | V185: 2.950077917 | W185: 3.710678831 | X185: 1795.810086 | Y185: 0.7606009141 | Z185: 47562.32178 | AA185: 60978.52998 | AB185: 13416.20819 | AC185: 0 | AD185: 1
A186: 178 | B186: 2.362828053 | C186: 0.4739973311 | D186: 4.318370071 | E186: 1.238027045 | F186: 0.4094957431 | G186: 0.0258857601 | H186: 0.06589785023 | I186: 0.3981829156 | J186: 0.9531492356 | K186: -0.00323125658 | L186: -0.0006739079895 | M186: 0.8857970335 | N186: 0.6035239373 | O186: 768.8628592 | P186: 191.2672127 | Q186: 628.0416493 | R186: 2527.875385 | S186: 4050.877952 | T186: 6687.460289 | U186: 7863.90849 | V186: 2.112589216 | W186: 2.800090484 | X186: 1176.448201 | Y186: 0.6875012677 | Z186: 35564.32403 | AA186: 48137.90118 | AB186: 12573.57715 | AC186: 0 | AD186: 1
A187: 179 | B187: 2.480578408 | C187: 0.2842690735 | D187: 3.804903718 | E187: 2.940245929 | F187: 0.7003118883 | G187: 0.02872273444 | H187: 0.01558727589 | I187: 0.669409547 | J187: 0.9595198021 | K187: -0.002172852905 | L187: -0.0002988726283 | M187: 0.851621189 | N187: 0.6145377562 | O187: 420.8981372 | P187: 174.1238542 | Q187: 1128.407334 | R187: 5178.039285 | S187: 3963.9207 | T187: 9018.988472 | U187: 8356.061005 | V187: 2.162709575 | W187: 2.596640827 | X187: -662.9274668 | Y187: 0.4339312525 | Z187: 34235.20302 | AA187: 43576.75554 | AB187: 9341.552516 | AC187: 0 | AD187: 1
A188: 180 | B188: 0.7092707543 | C188: 0.4461349113 | D188: 1.130249541 | E188: 1.732209082 | F188: 0.8778454561 | G188: 0.1296757015 | H188: -0.07558312445 | I188: 0.9309761247 | J188: 0.9451877792 | K188: -0.001992578364 | L188: -0.0004953434348 | M188: 0.8504881043 | N188: 0.5626863703 | O188: 254.5170075 | P188: 352.5649262 | Q188: 1640.885316 | R188: 1505.142011 | S188: 3464.527121 | T188: 6696.492346 | U188: 6306.680011 | V188: 1.084051547 | W188: 1.231569518 | X188: -389.812336 | Y188: 0.1475179708 | Z188: 14984.5386 | AA188: 18324.71035 | AB188: 3340.171752 | AC188: 0 | AD188: 1
A189: 181 | B189: 0.8050865844 | C189: 0.7196493044 | D189: 0.8532163696 | E189: 5.666075151 | F189: 0.3111630917 | G189: 0.01005486173 | H189: -0.4108680017 | I189: 0.4208666446 | J189: 0.9161330148 | K189: -0.001816150937 | L189: -0.0009226660223 | M189: 0.9044118081 | N189: 0.5667605129 | O189: 201.9934379 | P189: 192.387149 | Q189: 816.3684512 | R189: 1412.474467 | S189: 3960.803631 | T189: 5836.616602 | U189: 5842.298233 | V189: 0.9877775542 | W189: 0.9526739176 | X189: 5.681631649 | Y189: -0.03510363662 | Z189: 13918.93448 | AA189: 13211.18012 | AB189: -707.754364 | AC189: 1 | AD189: 0
A190: 182 | B190: 1.405663589 | C190: 0.6004160271 | D190: 1.649485023 | E190: 3.189252207 | F190: 0.2766673786 | G190: 0.1433162573 | H190: -0.01611177606 | I190: 1.326752908 | J190: 0.9716953781 | K190: -0.00241071196 | L190: -0.0007319523181 | M190: 0.8937409238 | N190: 0.6446333518 | O190: 1409.879172 | P190: 307.5177134 | Q190: 1038.26142 | R190: 4227.075935 | S190: 5790.049479 | T190: 10470.52006 | U190: 11638.11625 | V190: 1.86407679 | W190: 1.951251616 | X190: 1167.596191 | Y190: 0.0871748264 | Z190: 26811.01574 | AA190: 27386.91608 | AB190: 575.900337 | AC190: 0 | AD190: 1
A191: 183 | B191: 0.6530742018 | C191: 0.394763093 | D191: 0.9161629612 | E191: 2.745819352 | F191: 0.4825652584 | G191: 0.0446406507 | H191: 0.2809428832 | I191: 1.81936054 | J191: 0.9601297571 | K191: -0.002414039667 | L191: -0.0002565305913 | M191: 0.9285573695 | N191: 0.6555744783 | O191: 587.9771936 | P191: 490.7200189 | Q191: 185.8992961 | R191: 2726.240077 | S191: 5758.963953 | T191: 8473.191959 | U191: 8554.286408 | V191: 2.514861932 | W191: 2.658304204 | X191: 81.09444965 | Y191: 0.1434422727 | Z191: 41824.04667 | AA191: 44611.79768 | AB191: 2787.751004 | AC191: 0 | AD191: 1
A192: 184 | B192: 2.490884758 | C192: 0.2714071202 | D192: 5.084134246 | E192: 1.827833845 | F192: 0.2887628371 | G192: 0.1407453027 | H192: -0.3881832331 | I192: 3.489841448 | J192: 0.9502635613 | K192: -0.001341520995 | L192: -0.0002302700465 | M192: 0.8712034431 | N192: 0.6157317249 | O192: 468.3639137 | P192: 255.3479452 | Q192: 1305.072193 | R192: 2940.47875 | S192: 3308.257683 | T192: 9621.980112 | U192: 7415.986849 | V192: 2.930807897 | W192: 2.788291985 | X192: -2205.993264 | Y192: -0.1425159119 | Z192: 48994.17783 | AA192: 48349.85285 | AB192: -644.3249752 | AC192: 1 | AD192: 0
A193: 185 | B193: 1.689290811 | C193: 0.6284875711 | D193: 2.249513871 | E193: 1.621614448 | F193: 0.3844632881 | G193: 0.09789781369 | H193: -0.2037769159 | I193: 1.399575387 | J193: 0.9607024867 | K193: -0.002078698973 | L193: -0.0006140694736 | M193: 0.872366287 | N193: 0.6920283561 | O193: 901.9075093 | P193: 180.3152492 | Q193: 997.8831807 | R193: 3478.043219 | S193: 3646.500409 | T193: 7618.32099 | U193: 8357.892345 | V193: 1.945349158 | W193: 2.104046968 | X193: 739.5713553 | Y193: 0.1586978108 | Z193: 31288.66216 | AA193: 33723.04702 | AB193: 2434.38486 | AC193: 0 | AD193: 1
A194: 186 | B194: 5.043617565 | C194: 0.351303225 | D194: 9.570019676 | E194: 1.633234171 | F194: 0.6240517369 | G194: 0.05252664452 | H194: -0.05254094172 | I194: 1.277709789 | J194: 0.9312607645 | K194: -0.003358359698 | L194: -0.000481151487 | M194: 0.9188384555 | N194: 0.554792349 | O194: 767.5717834 | P194: 39.13738037 | Q194: 1061.261925 | R194: 4196.584964 | S194: 1968.486307 | T194: 4187.477038 | U194: 4979.049359 | V194: 2.502080107 | W194: 2.655286448 | X194: 791.5723207 | Y194: 0.1532063406 | Z194: 45854.12511 | AA194: 48126.6796 | AB194: 2272.554492 | AC194: 0 | AD194: 1
A195: 187 | B195: 1.451818214 | C195: 0.2675201237 | D195: 2.070218805 | E195: 3.715954882 | F195: 0.4864499485 | G195: 0.1800530656 | H195: -0.3676868847 | I195: 0.6019866431 | J195: 0.9540059953 | K195: -0.004112725397 | L195: -0.0005574454304 | M195: 0.8730613353 | N195: 0.5591172245 | O195: 209.6763814 | P195: 85.32364556 | Q195: 692.8853202 | R195: 5354.467746 | S195: 5662.961524 | T195: 9493.866246 | U195: 8813.115579 | V195: 1.201175728 | W195: 1.405776429 | X195: -680.7506669 | Y195: 0.2046007011 | Z195: 14529.64831 | AA195: 19302.413 | AB195: 4772.764689 | AC195: 0 | AD195: 1
A196: 188 | B196: 1.482120981 | C196: 0.2067799936 | D196: 2.4355036 | E196: 3.173274144 | F196: 0.5040537609 | G196: 0.1735201522 | H196: -0.1193130745 | I196: 0.3751483441 | J196: 0.9271049236 | K196: -0.002186042883 | L196: -0.0008415164079 | M196: 0.9293130983 | N196: 0.5664226773 | O196: 621.4738707 | P196: 165.0998745 | Q196: 1516.724173 | R196: 2789.102808 | S196: 6245.841168 | T196: 8940.474171 | U196: 8769.505042 | V196: 1.280605179 | W196: 1.559928647 | X196: -170.9691288 | Y196: 0.2793234686 | Z196: 16671.62941 | AA196: 22429.06791 | AB196: 5757.438502 | AC196: 0 | AD196: 1
A197: 189 | B197: 1.311535435 | C197: 0.6983950186 | D197: 1.517414442 | E197: 2.461916707 | F197: 0.4894583508 | G197: 0.006026613999 | H197: -0.1030256208 | I197: 1.478952029 | J197: 0.9664347416 | K197: -0.004497821707 | L197: -0.0003612642774 | M197: 0.912475899 | N197: 0.5982122807 | O197: 337.4886093 | P197: 364.1203955 | Q197: 262.1086362 | R197: 5105.768097 | S197: 8776.06634 | T197: 13622.93688 | U197: 13558.3222 | V197: 2.090822571 | W197: 2.229246605 | X197: -64.61467458 | Y197: 0.1384240333 | Z197: 28193.51455 | AA197: 31026.60989 | AB197: 2833.09534 | AC197: 0 | AD197: 1
A198: 190 | B198: 0.7139456967 | C198: 0.3276122649 | D198: 1.076363616 | E198: 2.71820876 | F198: 0.1572573805 | G198: 0.0599919875 | H198: 0.2554339323 | I198: 0.1735158463 | J198: 0.9185030833 | K198: -0.002170198048 | L198: -0.0006818449058 | M198: 0.8288943472 | N198: 0.6112284498 | O198: 572.2244646 | P198: 192.0590329 | Q198: 2159.101655 | R198: 2839.884294 | S198: 8547.4215 | T198: 13399.2925 | U198: 13554.62024 | V198: 1.138990758 | W198: 1.339565261 | X198: 155.327733 | Y198: 0.2005745034 | Z198: 9380.522656 | AA198: 13236.68499 | AB198: 3856.162334 | AC198: 0 | AD198: 1
A199: 191 | B199: 2.495542335 | C199: 0.6238960865 | D199: 3.313018306 | E199: 1.664956771 | F199: 0.3543571128 | G199: 0.09097737798 | H199: -0.2618567093 | I199: 1.450742946 | J199: 0.9487493107 | K199: -0.00381368211 | L199: -0.0004471888737 | M199: 0.9175029735 | N199: 0.6277618607 | O199: 266.1104955 | P199: 64.88179479 | Q199: 883.6532606 | R199: 3266.082015 | S199: 9265.657583 | T199: 11725.45424 | U199: 11607.87625 | V199: 2.189230142 | W199: 2.380525408 | X199: -117.5779849 | Y199: 0.1912952656 | Z199: 32059.14861 | AA199: 36002.63191 | AB199: 3943.483297 | AC199: 0 | AD199: 1
A200: 192 | B200: 0.9165598624 | C200: 1.053784807 | D200: 0.889761518 | E200: 1.765465282 | F200: 0.5346058784 | G200: 0.1851614327 | H200: -0.2368012086 | I200: 0.8796124211 | J200: 0.9665505885 | K200: -0.001783707665 | L200: -0.0004093172528 | M200: 0.8866252046 | N200: 0.5526953192 | O200: 633.3985381 | P200: 290.6264911 | Q200: 683.4361935 | R200: 2112.676762 | S200: 2459.001128 | T200: 4830.878472 | U200: 5081.588998 | V200: 1.080337569 | W200: 1.069144682 | X200: 250.7105262 | Y200: -0.01119288688 | Z200: 16775.87291 | AA200: 16301.30464 | AB200: -474.5682638 | AC200: 1 | AD200: 0
... 808 more rows
